{"text_format":"1","workbook":"xlsx","n_sheets":8,"sheets":["Introduction","Scenarios","Calculations","Justifications","C and J Calc Summary","Single layer solutions","Delamination","Two Layer Solutions Layer Two"],"not_rendered":{"charts":2,"images":4,"macros":1,"external_links":0,"defined_names":234,"comments":2,"pivot_tables":0},"unopened":[],"bounds":{"document_bytes":16777216,"sheet_cells":100000,"rows_first":2000,"rows_last":500,"rows_between":2000,"halvings":0,"cell_chars":16384,"cell_head_chars":4096},"cells_cut":0,"cells_raw":0,"read":"whole","date_system":"1900"}

{"sheet":"Introduction","index":0,"n_rows":29,"n_cols":1,"rows_kept":29,"cut":false,"hidden":false,"merged":[[20,0,20,7]]}
["Contaminant Fluxes from Hydraulic Containment"]
["Landfills Worksheet Version 1.0"]
[]
["© Environment Agency, 2004. Prepared by ESI"]
["Produced under Science Group: Air, Land & Water Project SC0310"]
[]
["Statement of Use"]
["This worksheet has been prepared to help assessors quantify the contaminant flux from a hydraulic containment landfill"]
["constructed to the specifications in the Landfill Regulations (2002). It has been prepared to allow Agency staff to assess third party calculations"]
["of the diffusive contaminant flux from hydraulic containment landfills."]
[]
["Data needs to be entered only in YELLOW cells. Assessors have to specify a preferred option from a pull-down menu"]
["in BLUE cells, interim calculation results are presented in GREY cells and final results in GREEN cells. "]
["Only data in YELLOW or BLUE cells may be changed."]
[]
["Site name"]
["Sabdown Quarry"]
["Assessor's name"]
["Byrne Looby"]
["Date"]
["2023-08-01"]
[]
[]
["Liability: The Environment Agency does not promise that the worksheet will provide any particular facilities or functions. "]
["You must ensure that the worksheet meets your needs and you remain solely responsible for the competent use of the worksheet. "]
["You are entirely responsible for the consequences of any use of the worksheet and the Agency provides no warranty about "]
["the fitness for purpose or performance of any part of the worksheet. We do not promise that the media will always be free from "]
["defects, computer viruses, software locks or other similar code or that the operation of the worksheet will be uninterrupted or error free. "]
["You should carry out all necessary virus checks prior to installing on your computing system."]

{"sheet":"Scenarios","index":1,"n_rows":28,"n_cols":7,"rows_kept":28,"cut":false,"hidden":false,"merged":[]}
["SELECT LANDFILL CONSTRUCTION SCENARIO"]
[]
["Scenario 1"]
[]
[]
[null,null,null,null,null,null,"The landfill is constructed in a clay pit, underlain by a confined aquifer.  "]
[null,null,null,null,null,null,"Water and contaminant fluxes occur across the bottom of the landfill only."]
[]
[]
[]
[]
[]
["Scenario 2"]
[]
[null,null,null,null,null,null,"The landfill is lined and located in a permeable formation "]
[null,null,null,null,null,null,"a finite distance above an impermeable layer.  The water and "]
[null,null,null,null,null,null,"contaminant fluxes can occur through the base and sides of the landfill."]
[]
[]
[]
[]
[]
[]
["Scenario 3"]
[]
[null,null,null,null,null,null,"The landfill is lined and located in a permeable formation "]
[null,null,null,null,null,null,"a finite distance below an impermeable layer.  The water and "]
[null,null,null,null,null,null,"contaminant fluxes can occur through the sides of the landfill only."]

{"sheet":"Calculations","index":2,"n_rows":174,"n_cols":37,"rows_kept":174,"cut":false,"hidden":false,"merged":[[1,8,1,11],[19,8,21,11]]}
[]
["Conditional formatting 0=white, 1=normal, 2=red",null,{"$f":"Introduction!A17","v":"Sabdown Quarry"},null,{"$f":"Introduction!A21","v":"2023-08-01"},null,null,null,{"$f":"Cont_Nme","v":"Arsenic"},null,null,null,null,null,null,null,null,null,null,null,null,null,null,null,null,null,null,null,null,null,null,"Yes",null,"Inorganic","Good contact","Yes","s_per_year"]
[null,null,null,null,null,null,null,null,null,null,null,null,null,null,null,null,null,null,null,null,null,null,null,null,null,null,null,null,null,null,null,"No",null,"Organic","Poor contact","No",{"$f":"365*24*60*60","v":31536000}]
[null,null,"CONCEPTUAL MODEL AND LANDFILL CONSTRUCTION",null,null,null,{"$f":"IF(Cont_Class=\"List I\", 0, 1)","v":0},null,"STEADY STATE DILUTION",null,null,null,null,null,null,null,null,null,null,null,null,null,null,null,null,null,null,null,null,null,null,null,null,"List I",null,null,"s_per_day"]
[null,null,"Conceptual model of landfill construction","CM",3,"-",{"$f":"IF(Cont_Class=\"List I\", 0, 1)","v":0},null,"Hydraulic gradient in the aquifer","aq_I",2E-3,"-",null,null,null,null,null,null,null,null,null,null,null,null,null,null,null,null,null,null,null,null,null,"List II",null,null,86400]
[{"$f":"IF(CM=1,0,1)","v":1},null,"Is a geomembrane present?","GM_opt","No","-",0,null,"Hydraulic conductivity of the aquifer","k_aq",1E-10,"m/s",null,null,null,null,null,null,null,null,null,null,null,null,null,null,null,null,null,null,null,null,null,null,null,null,"tlarge"]
[null,null,null,null,null,null,0,null,"Downgradient distance of compliance point from landfill","dist_cp",60,"m",null,null,null,null,null,null,null,null,null,null,null,null,null,null,null,null,null,null,null,null,null,null,null,null,1E+40]
[null,null,"Basal width perpendicular to groundwater flow","Width_LF",130,"m",0,null,"Mixing width","Mix_W",{"$f":"Width_LF","v":130},"m",null,null,null,null,null,null,null,null,null,null,null,null,null,null,null,null,null,null,null,null,null,null,null,null,"tscale"]
[null,null,"Basal length parallel to groundwater flow","Length_LF",50,"m",0,null,"Mixing depth","Mix_D",{"$f":"IF(CM=1,MIN(Aq_max,(Length_LF+dist_cp)/9.45),IF(CM=2,MIN(ABS(LFbase_elev-Aqbound_elev),(Length_LF+dist_cp)/9.45),MIN(ABS(Head_outLF-Aqbound_elev),(Length_LF+dist_cp)/9.45)))","v":11.640211640211641},"m",null,null,null,null,null,null,null,null,null,null,null,null,null,null,null,null,null,null,null,null,null,null,null,null,{"$f":"10^(LOG(tmax/tmin)/(50))","v":1.2589254117941673}]
[null,null,"Basal area","Base_Area",{"$f":"Width_LF*Length_LF","v":6500},"m2",0,null,{"$f":"IF(CM=3,\"Dilution flow in aquifer downstream to the landfill\",\"Dilution flow in aquifer directly under the landfill\")","v":"Dilution flow in aquifer downstream to the landfill"},"aq_Q",{"$f":"k_aq*aq_I*Mix_W*Mix_D","v":3.0264550264550268E-10},"m3/s",null,null,null,null,null,{"$f":"\"Concentration of \" & I2 & \" at \" & IF(Cont_Class=\"List I\", \"external edge of liner\", \"compliance point in aquifer\")","v":"Concentration of Arsenic at external edge of liner"},{"$f":"\"Mass of \" & I2 & \" leaving the landfill per second\"","v":"Mass of Arsenic leaving the landfill per second"}]
[{"$f":"IF($D$157<=0,2,1)","v":1},null,"Elevation of base of landfill","LFbase_elev",75,"maOD"]
[{"$f":"IF(OR(D157<=0, D161<0),2,1)","v":1},null,{"$f":"IF(CM=1,\"Elevation of top of aquifer\",\"Elevation of base of aquifer\")","v":"Elevation of base of aquifer"},"Aqbound_elev",75.010000000000005,"maOD",null,null,"CONTAMINANT AND WATER FLUXES",null,null,null,null,null,null,null,"Time years","Concentration (mg/l)","Mass flux (kg/s)"]
[{"$f":"IF(CM>1,0,1)","v":0},null,"Maximum thickness of underlying aquifer","Aq_max",1,"m",null,null,"Groundwater flux into landfill",null,{"$f":" ( IF(Solution_type=\"b\",MIN(Q_giroud,Q_darcy),Q)+ IF(GM_delam=\"Yes\",Q_Delam,0))","v":7.3281599999995846E-5},"m3/s",null,null,null,null,{"$f":"tmin","v":1},{"$f":"IF($D$163<=0,0,IF(ISNUMBER(IF(Solution_type=\"a\",Single_Lay_Sol,IF(GM_delam=\"Yes\",Delam_Sol,IF(Solution_type=\"b\",TwoLay_sol,Single_Lay_Sol)))),IF(Solution_type=\"a\",Single_Lay_Sol,IF(GM_delam=\"Yes\",Delam_Sol,IF(Solution_type=\"b\",TwoLay_sol,Single_Lay_Sol))),0))","v":0},{"$f":"IF($D$163<=0,0,IF(ISNUMBER(IF(Solution_type=\"a\",Single_Lay_Mass,IF(GM_delam=\"Yes\",Delam_Mass_Sol,IF(Solution_type=\"b\",Two_Lay_Mass,Single_Lay_Mass)))),IF(Solution_type=\"a\",Single_Lay_Mass,IF(GM_delam=\"Yes\",Delam_Mass_Sol,IF(Solution_type=\"b\",Two_Lay_Mass,Single_Lay_Mass))),0)) / 86400","v":0}]
[{"$f":"IF(OR(D159<=0, D158<=0, D160<=0, D161<0),2,1)","v":1},null,"Leachate head inside landfill","Head_inLF",125.9,"maOD",null,null,"Maximum contaminant concentration at compliance point at tmax","C_comp",{"$f":"IF(Cont_Class=\"List I\",C_bar,IF(C_bar>0.1*Conc_LF,\">10% leachate\",C_bar))","v":0},"mg/l",null,null,null,null,{"$f":"Q13*tscale","v":1.2589254117941673},0,0]
[{"$f":"IF(D160<=0,2,1)","v":1},null,"Groundwater head outside landfill","Head_outLF",126,"maOD",null,null,null,null,null,null,null,null,null,null,{"$f":"Q14*tscale","v":1.5848931924611136},0,0]
[1,null,"Area of liner below the water table","Area_contact",{"$f":"IF(CM=1, Base_Area, IF( CM = 2, ( Base_Area +2 * ABS(Head_inLF-LFbase_elev) * (Width_LF+Length_LF)), 2 * ABS(Head_inLF-Aqbound_elev) * (Width_LF+Length_LF)))","v":18320.400000000001},"m2",null,null,"CHART PARAMETERS",null,null,null,null,null,null,null,1.99526231496888,0,0]
[null,null,null,null,null,null,null,null,"Minimum axis display","tmin",1,"years",null,null,null,null,2.5118864315095806,0,0]
[null,null,"CONTAMINANT PARAMETERS",null,null,null,null,null,"Maximum axis display","tmax",100000,"years",null,null,null,null,3.16227766016838,0,0]
[null,null,"Contaminant name","Cont_Nme","Arsenic","-",null,null,null,null,null,null,null,null,null,null,3.9810717055349736,0,0]
[null,null,"Contaminant type","Cont_Type","Inorganic","-",null,null,{"$f":"IF(test_expire(),IF(Area_delam_check*Area_defect_check>0,C152,C174),C154)","v":{"$error":"#NAME?"}},null,null,null,null,null,null,null,5.0118723362727247,0,0]
[null,null,"Contaminant classification","Cont_Class","List I","-",null,null,null,null,null,null,null,null,null,null,6.3095734448019352,0,0]
[null,null,"Concentration in landfill leachate","Conc_LF",1.2999999999999999E-2,"mg/l",null,null,null,null,null,null,null,null,null,null,7.9432823472428185,0,0]
[null,null,"Free water diffusion coefficient ","Dw_cl",7.1700000000000001E-10,"m2/s",null,null,null,null,null,null,null,null,null,null,10.000000000000005,0,0]
[null,null,null,null,null,null,null,null,null,null,null,null,null,null,null,null,12.58925411794168,0,0]
[null,null,"Partition coefficient in clay","Kd_cl",500,"l/kg",null,null,null,null,null,null,null,null,null,null,15.848931924611145,0,0]
[null,null,"Retardation factor in clay","R_cl",{"$f":"1+(0.001*rho*Kd_cl/n)","v":7001},"-",null,null,null,null,null,null,null,null,null,null,19.952623149688812,0,0]
[null,null,"Half life in clay (0 for no decay)","thalf_cl",0,"days",null,null,null,null,null,null,null,null,null,null,25.118864315095824,0,0]
[null,null,"Decay in sorbed phase?","Decay_sorb","No","-",null,null,null,null,null,null,null,null,null,null,{"$f":"Q27*tscale","v":31.622776601683825},0,0]
[null,null,"Decay constant in clay","Decay_cl",{"$f":"IF(thalf_cl<=0,0,LN(2)/(thalf_cl*s_per_day)/IF(Decay_sorb=\"Yes\",1,R_cl))","v":0},"1/s",null,null,null,null,null,null,null,null,null,null,39.81071705534977,0,0]
[null,null,null,null,null,null,null,null,null,null,null,null,null,null,null,null,50.118723362727287,0,0]
[{"$f":"IF(Solution_type=\"a\",0,IF(Cont_Type=\"Inorganic\",0,1))","v":0},null,"Partition coefficient to geomembrane","Kd_gm",0.2,"-",null,null,null,null,null,null,null,null,null,null,63.0957344480194,0,0]
[{"$f":"IF(Solution_type=\"a\",0,IF(Cont_Type=\"Inorganic\",0,1))","v":0},null,"Diffusion coefficient in geomembrane","Dw_gm",2.9000000000000003E-14,"m2/s",null,null,null,null,null,null,null,null,null,null,79.432823472428254,0,0]
[null,null,null,null,null,null,null,null,null,null,null,null,null,null,null,null,100.00000000000014,0,0]
[null,null,"MINERAL BARRIER / LINER",null,null,null,null,null,null,null,null,null,null,null,null,null,125.89254117941691,0,0]
[null,null,{"$f":"IF(CM=1,\"Thickness of mineral barrier is calculated as \" & thick_cl & \"m\",\"Thickness of mineral liner\")","v":"Thickness of mineral liner"},"thick_clbr",0.5,"m",null,null,null,null,null,null,null,null,null,null,158.48931924611159,0,0]
[null,null,"Hydraulic conductivity","k_cl",1E-8,"m/s",null,null,null,null,null,null,null,null,null,null,199.52623149688827,0,0]
[null,null,"Average pore radius ","pore_radius",1.0000000000000001E-5,"m",null,null,null,null,null,null,null,null,null,null,251.18864315095843,0,0]
[null,null,"Effective porosity","n",0.15,"-",null,null,null,null,null,null,null,null,null,null,316.22776601683847,0,0]
[null,null,"Dry bulk density","rho",2100,"kg/m3",null,null,null,null,null,null,null,null,null,null,398.10717055349795,0,0]
[null,null,"Tortuosity","tau_cl",10,"-",null,null,null,null,null,null,null,null,null,null,501.1872336272732,0,0]
[null,null,null,null,null,null,null,null,null,null,null,null,null,null,null,null,630.95734448019448,0,0]
[{"$f":"IF(Solution_type=\"a\", 0,1)","v":0},null,"GEOMEMBRANE BARRIER",null,null,null,null,null,null,null,null,null,null,null,null,null,794.32823472428311,0,0]
[0,null,"Thickness of geomembrane","thick_gm",3.0000000000000001E-3,"m",null,null,null,null,null,null,null,null,null,null,1000.000000000002,0,0]
[0,null,"Quality of geomembrane/clay contact","GM_contact","Good contact","-",null,null,null,null,null,null,null,null,null,null,1258.9254117941698,0,0]
[0,null,"Has part of the geomembrane delaminated?","GM_delam","Yes","-",null,null,null,null,null,null,null,null,null,null,1584.8931924611168,{"$f":"IF($D$163<=0,0,IF(ISNUMBER(IF(Solution_type=\"a\",Single_Lay_Sol,IF(GM_delam=\"Yes\",Delam_Sol,IF(Solution_type=\"b\",TwoLay_sol,Single_Lay_Sol)))),IF(Solution_type=\"a\",Single_Lay_Sol,IF(GM_delam=\"Yes\",Delam_Sol,IF(Solution_type=\"b\",TwoLay_sol,Single_Lay_Sol))),0))","v":0},{"$f":"IF($D$163<=0,0,IF(ISNUMBER(IF(Solution_type=\"a\",Single_Lay_Mass,IF(GM_delam=\"Yes\",Delam_Mass_Sol,IF(Solution_type=\"b\",Two_Lay_Mass,Single_Lay_Mass)))),IF(Solution_type=\"a\",Single_Lay_Mass,IF(GM_delam=\"Yes\",Delam_Mass_Sol,IF(Solution_type=\"b\",Two_Lay_Mass,Single_Lay_Mass))),0)) / 86400","v":0}]
[{"$f":"IF( OR(GM_delam=\"No\", Solution_type=\"a\"), 0,1)","v":0},null,"Area of geomembrane delaminated","Area_Delam",{"$f":"Area_contact","v":18320.400000000001},"m2",null,null,null,null,null,null,null,null,null,null,1995.2623149688839,0,0]
[null,null,null,null,null,null,null,null,null,null,null,null,null,null,null,null,2511.8864315095857,0,0]
[0,null,"MEMBRANE DEFECTS",null,null,null,null,null,null,null,null,null,null,null,null,null,3162.2776601683863,0,0]
[0,null,"Density of pin holes                                               n_pin",2,"/ha",{"$f":"D49/10000","v":2.0000000000000001E-4},null,"/m2",null,null,null,null,null,null,null,null,3981.0717055349814,0,0]
[0,null,"Area of pin holes                                                    A_pin",2.5,"mm2",{"$f":"D50/10^6","v":2.5000000000000002E-6},null,"m2",null,null,null,null,null,null,null,null,5011.8723362727342,0,0]
[0,null,"Density of holes                                                      n_hole",2,"/ha",{"$f":"D51/10000","v":2.0000000000000001E-4},null,"/m2",null,null,null,null,null,null,null,null,6309.5734448019475,0,0]
[0,null,"Area of holes                                                           A_hole",2,"mm2",{"$f":"D52/10^6","v":1.9999999999999999E-6},null,"m2",null,null,null,null,null,null,null,null,7943.2823472428345,0,0]
[0,null,"Density of tears                                                       n_tear",1,"/ha",{"$f":"D53/10000","v":1E-4},null,"/m2",null,null,null,null,null,null,null,null,10000.000000000025,0,0]
[0,null,"Length of tears                                                         l_tear",1000,"mm",{"$f":"D54/1000","v":1},null,"m",null,null,null,null,null,null,null,null,12589.254117941706,0,0]
[0,null,"Width of tears                                                           w_tear",1,"mm",{"$f":"D55/1000","v":1E-3},null,"m",null,null,null,null,null,null,null,null,15848.931924611177,0,0]
[null,null,null,null,null,null,null,null,null,null,null,null,null,null,null,null,{"$f":"Q55*tscale","v":19952.62314968885},0,0]
[null,null,null,null,null,null,null,null,null,null,null,null,null,null,null,null,25118.864315095871,0,0]
[null,null,null,null,null,null,null,null,null,null,null,null,null,null,null,null,31622.776601683883,0,0]
[null,null,null,null,null,null,null,null,null,null,null,null,null,null,null,null,39810.717055349844,0,0]
[null,null,null,null,null,null,null,null,null,null,null,null,null,null,null,null,50118.723362727382,0,0]
[null,null,null,null,null,null,null,null,null,null,null,null,null,null,null,null,63095.734448019524,0,0]
[null,null,null,null,null,null,null,null,null,null,null,null,null,null,null,null,79432.823472428412,0,0]
[null,null,null,null,null,null,null,null,null,null,null,null,null,null,null,null,{"$f":"Q62*tscale","v":100000.00000000033},0,0]
[null,null,"CALCULATIONS START HERE…"]
[null,null,"Type of solution to use (determines flows and areas to use)",null,"Solution_type",{"$f":"IF(OR(CM=1,AND(OR(CM=2,CM=3),GM_opt=\"No\")),\"a\",IF(AND(CM>1,AND(GM_opt=\"Yes\",Cont_Type=\"Organic\")),\"b\",\"c\"))","v":"a"}]
[]
[{"$f":"IF(Solution_type=\"a\", 0,1)","v":0},null,"Giroud constants"]
[{"$f":"IF(Solution_type=\"a\", 0,1)","v":0},null,null,"Good","Poor","CqBase"]
[{"$f":"IF(Solution_type=\"a\", 0,1)","v":0},null,"Cq0",0.21,1.1499999999999999,{"$f":"IF(GM_contact=\"Good contact\",Cq0 Good, IF(GM_contact=\"Poor contact\",Cq0 Poor,0))","v":0.21}]
[{"$f":"IF(Solution_type=\"a\", 0,1)","v":0},null,"Cq8",0.52,1.22,{"$f":"IF(GM_contact=\"Good contact\",Cq8_ Good, IF(GM_contact=\"Poor contact\",Cq8_ Poor,0))","v":0.52}]
[]
[{"$f":"IF(Solution_type=\"a\", 0,1)","v":0},null,null,null,"i_avg_0_base",{"$f":" (ABS(Head_outLF-Head_inLF)/ (thick_cl+IF(GM_opt=\"Yes\",thick_gm,0)))","v":0.19999999999998863}]
[{"$f":"IF(Solution_type=\"a\", 0,1)","v":0},null,null,null,"i_avg_8_base",{"$f":"(ABS(Head_outLF-Head_inLF)/ (thick_cl+IF(GM_opt=\"Yes\",thick_gm,0)))","v":0.19999999999998863}]
[]
[null,null,"Calculated dispersion values"]
[null,null,"Coefficient of mechanical dispersion","D_mech",0,"-"]
[{"$f":"IF(Solution_type=\"a\", 0,1)","v":0},null,"Diffusion coefficient for transport of organic through intact geomembrane","D_org",{"$f":"Dw_gm","v":2.9000000000000003E-14},"m2/s"]
[{"$f":"IF(Solution_type=\"a\", 0,1)","v":0},null,"Diffusion coefficient for transport through a defect","D_def",{"$f":"((Dw_cl+Dt_def))","v":1.3000000716999999E-2},"m2/s"]
[{"$f":"IF(Solution_type=\"a\", 0,1)","v":0},null,"Diffusion coefficient for clay","D_cl",{"$f":"D_mech*ABS(vel_cl)+((1/tau_cl)*(Dw_cl+Dt_cl))","v":7.1700000000098068E-11},"m2/s"]
[]
[]
[{"$f":"IF(Solution_type=\"a\", 0,1)","v":0},null,"Enhanced diffusion against advective flow in clay","Dt_cl",{"$f":"n*pore_radius^2*umax^2/(192*Dw_cl)","v":9.8064853556474215E-22},"m2/s"]
[{"$f":"IF(Solution_type=\"a\", 0,1)","v":0},null,"Enhanced diffusion against advective flow in defect","Dt_def",{"$f":"IF(Solution_type=\"a\",Conc_LF,IF(OR(Defect_Choice=1,Defect_Choice=4),Dt_def_arr Pin,IF(OR(Defect_Choice=2,Defect_Choice=5),Dt_def_arr Hole,Dt_def_arr Tear)))","v":1.2999999999999999E-2},"m2/s"]
[null,null,"Longitudinal mechanical dispersion in the clay","Dl_cl",{"$f":"ABS(D_mech*vel_cl)","v":0},"m2/s"]
[]
[null,null,"Calculated concentrations and hydraulic conductivities"]
[{"$f":"IF(Solution_type=\"b\", 0,1)","v":1},null,"Concentration at top of clay barrier","Conc_def",{"$f":"IF(Solution_type=\"a\",Conc_LF,IF(OR(Defect_Choice=1,Defect_Choice=4),Conc_def_arr Pin,IF(OR(Defect_Choice=2,Defect_Choice=5),Conc_def_arr Hole,Conc_def_arr Tear)))","v":1.2999999999999999E-2},"mg/l"]
[{"$f":"IF(Solution_type<>\"b\", 0,1)","v":0},null,"Concentration  of solvent at top of membrane","Conc_gm",{"$f":"Conc_LF*Kd_gm","v":2.5999999999999999E-3},"mg/l"]
[]
[]
[{"$f":"IF(Solution_type=\"a\", 0,1)","v":0},null,"Flow areas and capture zones"]
[0,null,"Wetted radius","WR_pin ",{"$f":"SQRT((Cq0 CqBase)/PI())*(A_pin ^0.05)*(ABS(Head_outLF-Head_inLF)^0.45)*(k_cl^(-0.13))","v":0.5277542160842067},"m"]
[0,null,null,"WR_hole",{"$f":"SQRT((Cq0 CqBase)/PI())*(A_hole ^0.05)*(ABS(Head_outLF-Head_inLF)^0.45)*(k_cl^(-0.13))","v":0.52189869487167839},"m"]
[0,null,null,"WR_tear",{"$f":"SQRT((Cq0 CqBase)/PI())*(w_tear ^0.1)*(ABS(Head_outLF-Head_inLF)^0.45)*(k_cl^(-0.13))","v":0.50412090939501708},"m"]
[]
[0,null,"Area of Capture zones","CZ_Pin",{"$f":"PI()*WR_pin^2","v":0.87501056261204768},"m2"]
[0,null,null,"CZ_hole",{"$f":"PI()*WR_hole^2","v":0.85570150199950534},"m2"]
[0,null,null,"CZ_tear",{"$f":"PI()*WR_tear^2+(WR_tear*2*(l_tear-w_tear))","v":1.8056313092443816},"m2"]
[]
[0,null,"Total area of capture zones","Area_CZ",{"$f":"MIN((1-IF(CM=1,0,IF(GM_delam=\"Yes\",Frac_Delam,0)))*Area_contact*(n_pin*CZ_Pin+n_hole*CZ_hole+n_tear*CZ_tear),(1-IF(CM=1,0,IF(GM_delam=\"Yes\",Frac_Delam,0)))*Area_contact)","v":0},"m2"]
[0,null,"Total area of geomembrane defects","Area_gm_defs",{"$f":"(1-IF(CM=1,0,IF(GM_delam=\"Yes\",Frac_Delam,0)))*Area_contact*(A_pin*n_pin+A_hole*n_hole+l_tear*w_tear*n_tear)","v":0},"m2"]
[]
[0,null,"Thickness of clay underlying the landfill","thick_cl",{"$f":"IF(CM=1,LFbase_elev-Aqbound_elev,thick_clbr)","v":0.5},"m"]
[]
[0,null,"Fluxes into the landfill through geomembrane defects"]
[null,null,"Upper K threshold for Giroud equation for a pinhole","K_Giroud_pin",{"$f":"((0.4836*(A_pin^0.9))/(Cq0 CqBase*(1+0.1*((ABS(Head_outLF-Head_inLF)/thick_cl)^0.95 ))*(ABS(Head_outLF-Head_inLF)^0.4)))^(1/0.74)","v":1.6002541271937544E-6},"m/s"]
[null,null,"Potential flux through a pinhole using Giroud","Q_pin_Giroud",{"$f":" i_avg_0_base *ABS(Head_outLF-Head_inLF)^0.9 * (k_cl^0.74)*(A_pin ^0.1)*Cq0 CqBase","v":1.7500211252239944E-9},"m3/s"]
[null,null,null,"nparam_pin",{"$f":" 5.554-0.4324*LOG(1.128*(A_pin^0.5))+0.5405*LOG(ABS(Head_outLF-Head_inLF))+1.3514*LOG(Cq0 CqBase)+1.3514*LOG(1+0.1*(ABS(Head_outLF-Head_inLF)/thick_cl)^0.95)","v":5.298679898894207}]
[null,null,"Potential flux through a pinhole using interpolation","Q_pin_Interp",{"$f":"10^( 0.3195 + 2 * LOG( 1.128*(A_pin^0.5) ) + 0.5 * LOG( ABS(Head_outLF-Head_inLF) ) - 0.74 * (( 5 + 2 * LOG( 1.128*(A_pin^0.5) ) - LOG( k_cl )) / nparam_pin )^nparam_pin )","v":4.4618549590511023E-11},"m3/s"]
[]
[null,null,"Upper K threshold for Giroud equation for a hole","K_Giroud_hole",{"$f":"(0.4836*(A_hole^0.9)/(Cq0 CqBase*(1+0.1*((ABS(Head_outLF-Head_inLF)/thick_cl)^0.95 ))*(ABS(Head_outLF-Head_inLF)^0.4)))^(1/0.74)","v":1.2199033575412364E-6},"m/s"]
[null,null,"Potential flux through a hole using Giroud","Q_hole_Giroud",{"$f":" i_avg_0_base *ABS(Head_outLF-Head_inLF)^0.9 * (k_cl^0.74)*(A_hole ^0.1)*Cq0 CqBase","v":1.7114030039989116E-9},"m3/s"]
[null,null,null,"nparam_hole",{"$f":" 5.554-0.4324*LOG(1.128*(A_hole^0.5))+0.5405*LOG(ABS(Head_outLF-Head_inLF))+1.3514*LOG(Cq0 CqBase)+1.3514*LOG(1+0.1*(ABS(Head_outLF-Head_inLF)/thick_cl)^0.95)","v":5.3196318437065484}]
[null,null,"Potential flux through a pinhole using interpolation","Q_hole_Interp",{"$f":"10^( 0.3195 + 2 * LOG( 1.128*(A_hole^0.5) ) + 0.5 * LOG( ABS(Head_outLF-Head_inLF) ) - 0.74 * (( 5 + 2 * LOG( 1.128*(A_hole^0.5) ) - LOG( k_cl )) / nparam_hole)^nparam_hole )","v":8.398430048898118E-11},"m3/s"]
[]
[0,null,"Inward flux through a pinhole in the geomembrane","Q_pin",{"$f":"IF(k_cl<K_Giroud_pin,Q_pin_Giroud,Q_pin_Interp)","v":1.7500211252239944E-9},"m3/s"]
[0,null,"Inward flux through a hole in the geomembrane","Q_hole",{"$f":"IF(k_cl<K_Giroud_hole,Q_hole_Giroud,Q_hole_Interp)","v":1.7114030039989116E-9},"m3/s"]
[0,null,"Inward flux through a tear in the geomembrane","Q_tear",{"$f":" i_avg_0_base *ABS(Head_outLF-Head_inLF)^0.9 *  ( Cq0 CqBase ) * ( w_tear  )^0.2 * ( k_cl)^0.74  + i_avg_8_base* ABS(Head_outLF-Head_inLF)^0.45 * ( Cq8_ CqBase ) * ( l_tear  - w_tear  ) * ( w_tear  )^0.1 * ( k_cl )^0.87","v":3.6226060099106343E-9},"m3/s"]
[]
[null,null,"Fluxes into the landfill"]
[{"$f":"IF(Solution_type=\"a\", 0,1)","v":0},null,"Inward flux through the defects calculated by Giroud equation","Q_giroud",{"$f":"Area_flow*(Q_pin*n_pin+Q_hole*n_hole+Q_tear*n_tear)","v":1.9319694037799744E-8},"m3/s"]
[null,null,"Inward Darcy flow in absence of geomembrane","Q_darcy",{"$f":"k_cl*(Head_outLF-Head_inLF)*Area_contact/(thick_cl)","v":3.6640799999997923E-5},"m3/s"]
[{"$f":"IF((Solution_type<>\"b\"),0,1)","v":0},null,"Inward flux through intact membrane","Q_org",0,"m3/s"]
[null,null,"Inward flux into the landfill","Q",{"$f":"IF(Solution_type=\"a\",Q_darcy,IF(Solution_type=\"b\",Q_org,MIN(Q_giroud,Q_darcy)))","v":3.6640799999997923E-5},"m3/s"]
[]
[null,null,"Velocities"]
[null,null,{"$f":"\"Velocity through the clay  \"& IF(Solution_type=\"b\",\"(underlying intact geomembrane)\", \"\")","v":"Velocity through the clay  "},"vel_cl",{"$f":"IF(Solution_type=\"a\",IF(Area_flow=0,0,(Head_inLF-Head_outLF)/ABS(Head_inLF-Head_outLF)*Q/(Area_flow*n)),vel_cl_used)","v":-1.3333333333332578E-8},"m/s"]
[{"$f":"IF(Solution_type<>\"c\",0,1)","v":0},null,"Average velocity through a defect in the membrane","vel_def",{"$f":"IF(Solution_type=\"a\",Conc_LF,IF(OR(Defect_Choice=1,Defect_Choice=4),vel_def_arr Pin,IF(OR(Defect_Choice=2,Defect_Choice=5),vel_def_arr Hole,vel_def_arr Tear)))","v":1.2999999999999999E-2},"m/s"]
[null,null,"Maximum velocity through centre of a pore in mineral liner","umax",{"$f":"1.5*vel_cl*n","v":-2.9999999999998296E-9},"m/s"]
[{"$f":"IF(Solution_type<>\"c\",0,1)","v":0},null,"Maximum velocity through centre of a pore in defect","umax_def",{"$f":"IF(Solution_type=\"a\",Conc_LF,IF(OR(Defect_Choice=1,Defect_Choice=4),umax_def_arr Pin,IF(OR(Defect_Choice=2,Defect_Choice=5),umax_def_arr Hole,umax_def_arr Tear)))","v":1.2999999999999999E-2},"m/s"]
[]
[{"$f":"IF(OR(Solution_type=\"a\", GM_delam=\"No\"),0,1)","v":0},null,"Delaminated Parameters"]
[{"$f":"IF(OR(Solution_type=\"a\", GM_delam=\"No\"),0,1)","v":0},null,"Inward flux into the landfill over delaminated region","Q_Delam",{"$f":"k_cl*(Head_outLF-Head_inLF)*Area_Delam/(thick_cl)","v":3.6640799999997923E-5},"m3/s"]
[0,null,"Velocity through the clay through the delaminated region","vel_delam",{"$f":"(Head_inLF-Head_outLF)/ABS(Head_inLF-Head_outLF)*Q_Delam/(Area_Delam*n)","v":-1.3333333333332578E-8},"m/s"]
[0,null,"Maximum velocity through centre of a pore in mineral liner through delaminated region","umax_delam",{"$f":"1.5*vel_delam*n","v":-2.9999999999998296E-9},"m/s"]
[0,null,"Enhanced diffusion against advective flow in clay for delaminated region","Dt_Delam",{"$f":"n*pore_radius^2*umax_delam^2/(192*Dw_cl)","v":9.8064853556474215E-22},"m2/s"]
[0,null,"Diffusion coefficient for clay through delaminated region","Dcl_Delam",{"$f":"D_mech*ABS(vel_delam)+((1/tau_cl)*(Dw_cl+Dt_Delam))","v":7.1700000000098068E-11},"m2/s"]
[0,null,"Concentration at top of clay barrier for delaminated region","Conc_delam",{"$f":"Conc_LF","v":1.2999999999999999E-2},"mg/l"]
[]
[null,null,"Summary of parameters for mass calculations"]
[null,null,"Leachate concentration ","C_LF",{"$f":"IF(Solution_type=\"a\",Conc_LF,IF(Solution_type=\"b\",Conc_gm,Conc_def))","v":1.2999999999999999E-2},"mg/l"]
[null,null,"Concentration at edge of barrier","C_bar",{"$f":"MAX(R13:R63)","v":0},"mg/l"]
[null,null,"Diffusion coefficient","D_used",{"$f":"IF(Solution_type=\"b\",D_org,D_cl)","v":7.1700000000098068E-11},"m2/s"]
[null,null,"Distance","x_used",{"$f":"IF(Solution_type=\"b\",thick_cl+thick_gm,thick_cl)","v":0.5},"m"]
[null,null,"Outward flux area","Area_flux",{"$f":"IF(Solution_type=\"c\",Area_CZ,Area_contact*(1-IF(OR(Solution_type=\"a\",CM=1),0,IF(GM_delam=\"Yes\",Frac_Delam,0))))","v":18320.400000000001},"m2"]
[null,null,"Inward flow area","Area_flow",{"$f":"IF(OR(Solution_type=\"c\",Solution_type=\"b\"),Area_CZ,(1-IF(OR(Solution_type=\"a\",CM=1),0,IF(GM_delam=\"Yes\",Frac_Delam,0)))*Area_contact)","v":18320.400000000001},"m2"]
[]
[]
[]
[]
[]
[null,null,{"$f":"IF(D162<0,C164,IF(D157<=0,IF(CM=3,C169,C165),IF(D161<0,C170,IF(D158<=0,C166,IF(D159<=0,C167,IF(D160<=0,C168,IF(Cont_Class=\"List II\",IF(K14>0.1*Conc_LF,C153,\"\"),\"\")))))))","v":""}]
[null,null,"WARNING:  Concentrations at the compliance point are predicted to exceed 10% of the leachate concentration.  The boundary conditions used are only valid for low concentrations, and results may be unreliable above 10% of the leachate concentration."]
[null,null,"WARNING: This spreadsheet has expired!   Please contact the Environment Agency for an updated version."]
[null,null,"Area_delam_check",{"$f":"IF(Area_Delam=0,0,1)","v":1}]
[null,null,"Area_defect_check",{"$f":"IF(D50*D52*D54*D55=0,0,1)","v":1}]
[null,null,"Aquifer base check",{"$f":"IF(LEN(LFbase_elev)*LEN(Aqbound_elev)=0,1,IF(CM=3,Aqbound_elev-LFbase_elev,(LFbase_elev-Aqbound_elev)))","v":1.0000000000005116E-2}]
[null,null,"Head base check",{"$f":"IF(LEN(Head_inLF)*LEN(LFbase_elev)=0,1,(Head_inLF-LFbase_elev))","v":50.900000000000006}]
[null,null,"Head out base check",{"$f":"IF(LEN(Head_outLF)*LEN(LFbase_elev)=0,1,(Head_outLF-LFbase_elev))","v":51}]
[null,null,"Head check",{"$f":"IF(LEN(Head_inLF)*LEN(Head_outLF)=0,1,(Head_outLF-Head_inLF))","v":9.9999999999994316E-2}]
[null,null,"CM3 check",{"$f":"IF(CM=3,IF(Head_inLF<Aqbound_elev,-1,1),1)","v":1}]
[null,null,"Area check",{"$f":"IF(GM_delam=\"Yes\",IF(Area_contact<Area_Delam,-1,1),1)","v":1}]
[null,null,"elev check",{"$f":"LEN(LFbase_elev)*LEN(Aqbound_elev)*LEN(Head_inLF)*LEN(Head_outLF)*MIN(D157:D162)","v":1.5000000000007674}]
[null,null,"WARNING:  The delaminated area should be less than or equal to the area of the landfill!"]
[null,null,{"$f":"\"WARNING:  The base of the landfill should be higher than the \" & IF(CM=1,\"top\", \"base\") & \" of the aquifer!\"","v":"WARNING:  The base of the landfill should be higher than the base of the aquifer!"}]
[null,null,"WARNING:  The leachate head should be higher than the base of the landfill!"]
[null,null,"WARNING:  The groundwater head should be higher than the base of the landfill!"]
[null,null,"WARNING:  The leachate head should be lower than the groundwater head!"]
[null,null,"WARNING:  The base of the landfill should be lower than the top of the aquifer!"]
[null,null,"WARNING:  The leachate head should be greater than the elevation of the base of the aquifer"]
[null,null,"WARNING: The area over which the geomembrane is delaminated must be greater than zero and not greater than the area of the liner below the water table."]
[null,null,"WARNING: The dimensions of the defects should not be set to zero!  Set the density of the required defect to zero to indicate the defect is not present."]
[null,null,{"$f":"IF(Area_delam_check=0,C171,IF(Area_defect_check=0,C172,\"\"))","v":""}]
[null,null,{"$f":"IF(Area_delam_check=0,C173,IF(Area_defect_check=0,C172,\"\"))","v":""}]

{"sheet":"Justifications","index":3,"n_rows":55,"n_cols":7,"rows_kept":55,"cut":false,"hidden":false,"merged":[]}
[]
[null,null,{"$f":"Introduction!$A$17","v":"Sabdown Quarry"},{"$f":"Introduction!$A$21","v":"2023-08-01"}]
[null,null,{"$f":"Introduction!$A$19","v":"Byrne Looby"}]
[]
[null,null,"CONCEPTUAL MODEL AND LANDFILL CONSTRUCTION",null,null,null,"Justification / Reference / Notes"]
[null,null,"Scenario",null,{"$f":"CM","v":3},null,"Conceptual Model"]
[{"$f":"Calculations!A6","v":1},null,"Is a geomembrane present?",null,{"$f":"Calculations!$E$6","v":"No"},null,"Geological Barrier Only"]
[]
[null,null,{"$f":"Calculations!C8","v":"Basal width perpendicular to groundwater flow"},{"$f":"Calculations!D8","v":"Width_LF"},{"$f":"Calculations!E8","v":130},{"$f":"Calculations!F8","v":"m"},"Approximate site dimensions"]
[null,null,{"$f":"Calculations!C9","v":"Basal length parallel to groundwater flow"},{"$f":"Calculations!D9","v":"Length_LF"},{"$f":"Calculations!E9","v":50},{"$f":"Calculations!F9","v":"m"},"Approximate site dimensions"]
[{"$f":"Calculations!A11","v":1},null,{"$f":"Calculations!C11","v":"Elevation of base of landfill"},{"$f":"Calculations!D11","v":"LFbase_elev"},{"$f":"Calculations!E11","v":75},{"$f":"Calculations!F11","v":"maOD"},"Known Base"]
[{"$f":"Calculations!A12","v":1},null,{"$f":"Calculations!C12","v":"Elevation of base of aquifer"},{"$f":"Calculations!D12","v":"Aqbound_elev"},{"$f":"Calculations!E12","v":75.010000000000005},{"$f":"Calculations!F12","v":"maOD"},"Nominal value"]
[{"$f":"Calculations!A13","v":0},null,{"$f":"Calculations!C13","v":"Maximum thickness of underlying aquifer"},{"$f":"Calculations!D13","v":"Aq_max"},{"$f":"Calculations!E13","v":1},{"$f":"Calculations!F13","v":"m"}]
[{"$f":"Calculations!A14","v":1},null,{"$f":"Calculations!C14","v":"Leachate head inside landfill"},{"$f":"Calculations!D14","v":"Head_inLF"},{"$f":"Calculations!E14","v":125.9},{"$f":"Calculations!F14","v":"maOD"},"Hypothetical level based on site design"]
[{"$f":"Calculations!A15","v":1},null,{"$f":"Calculations!C15","v":"Groundwater head outside landfill"},{"$f":"Calculations!D15","v":"Head_outLF"},{"$f":"Calculations!E15","v":126},{"$f":"Calculations!F15","v":"maOD"},"Watertable nominally 1m higher than leachate level "]
[]
[null,null,"CONTAMINANT PARAMETERS"]
[null,null,{"$f":"Calculations!C19","v":"Contaminant name"},{"$f":"Calculations!D19","v":"Cont_Nme"},{"$f":"Calculations!E19","v":"Arsenic"},{"$f":"Calculations!F19","v":"-"},"Hazardous Species prevalent in leachate"]
[null,null,{"$f":"Calculations!C20","v":"Contaminant type"},{"$f":"Calculations!D20","v":"Cont_Type"},{"$f":"Calculations!E20","v":"Inorganic"},{"$f":"Calculations!F20","v":"-"},"-"]
[null,null,{"$f":"Calculations!C21","v":"Contaminant classification"},{"$f":"Calculations!D21","v":"Cont_Class"},{"$f":"Calculations!E21","v":"List I"},{"$f":"Calculations!F21","v":"-"},"-"]
[null,null,{"$f":"Calculations!C22","v":"Concentration in landfill leachate"},{"$f":"Calculations!D22","v":"Conc_LF"},{"$f":"Calculations!E22","v":1.2999999999999999E-2},{"$f":"Calculations!F22","v":"mg/l"},"Maximum predicted concentration increased by a factor of 10"]
[null,null,{"$f":"Calculations!C23","v":"Free water diffusion coefficient "},{"$f":"Calculations!D23","v":"Dw_cl"},{"$f":"Calculations!E23","v":7.1700000000000001E-10},{"$f":"Calculations!$F$23","v":"m2/s"},"Buss et al (2004)"]
[null,null,{"$f":"Calculations!C25","v":"Partition coefficient in clay"},{"$f":"Calculations!D25","v":"Kd_cl"},{"$f":"Calculations!E25","v":500},{"$f":"Calculations!$F$25","v":"l/kg"},"Nominal value based on range of Kd for cadmium"]
[null,null,{"$f":"Calculations!C27","v":"Half life in clay (0 for no decay)"},{"$f":"Calculations!D27","v":"thalf_cl"},{"$f":"Calculations!E27","v":0},{"$f":"Calculations!F27","v":"days"},"Conservative assumption (no decay) as per EA SC0310/SR"]
[null,null,{"$f":"Calculations!C28","v":"Decay in sorbed phase?"},{"$f":"Calculations!D28","v":"Decay_sorb"},{"$f":"Calculations!E28","v":"No"},{"$f":"Calculations!F28","v":"-"},"-"]
[{"$f":"Calculations!A31","v":0},null,{"$f":"Calculations!C31","v":"Partition coefficient to geomembrane"},{"$f":"Calculations!D31","v":"Kd_gm"},{"$f":"Calculations!E31","v":0.2},{"$f":"Calculations!F31","v":"-"}]
[{"$f":"Calculations!A32","v":0},null,{"$f":"Calculations!C32","v":"Diffusion coefficient in geomembrane"},{"$f":"Calculations!D32","v":"Dw_gm"},{"$f":"Calculations!E32","v":2.9000000000000003E-14},{"$f":"Calculations!F32","v":"m2/s"}]
[]
[null,null,"MINERAL BARRIER / LINER"]
[null,null,{"$f":"Calculations!C35","v":"Thickness of mineral liner"},{"$f":"Calculations!D35","v":"thick_clbr"},{"$f":"Calculations!E35","v":0.5},{"$f":"Calculations!F35","v":"m"},"Minimum AGB thickness (underestimate for side wall barrier)"]
[null,null,{"$f":"Calculations!C36","v":"Hydraulic conductivity"},{"$f":"Calculations!D36","v":"k_cl"},{"$f":"Calculations!E36","v":1E-8},{"$f":"Calculations!F36","v":"m/s"},"Nominal maximum permeability"]
[null,null,{"$f":"Calculations!C37","v":"Average pore radius "},{"$f":"Calculations!D37","v":"pore_radius"},{"$f":"Calculations!E37","v":1.0000000000000001E-5},{"$f":"Calculations!F37","v":"m"},"Fetter (2001)"]
[null,null,{"$f":"Calculations!C38","v":"Effective porosity"},{"$f":"Calculations!D38","v":"n"},{"$f":"Calculations!E38","v":0.15},{"$f":"Calculations!F38","v":"-"},"HRA modelling value used (significant overestimate)"]
[null,null,{"$f":"Calculations!C39","v":"Dry bulk density"},{"$f":"Calculations!D39","v":"rho"},{"$f":"Calculations!E39","v":2100},{"$f":"Calculations!F39","v":"kg/m3"},"HRA modelling value used Mean Figure"]
[null,null,{"$f":"Calculations!C40","v":"Tortuosity"},{"$f":"Calculations!D40","v":"tau_cl"},{"$f":"Calculations!E40","v":10},{"$f":"Calculations!F40","v":"-"},"Buss et al (2004, after De Marsily (1986)"]
[]
[{"$f":"Calculations!A42","v":0},null,"GEOMEMBRANE BARRIER"]
[{"$f":"Calculations!A43","v":0},null,{"$f":"Calculations!C43","v":"Thickness of geomembrane"},{"$f":"Calculations!D43","v":"thick_gm"},{"$f":"Calculations!E43","v":3.0000000000000001E-3},{"$f":"Calculations!F43","v":"m"}]
[{"$f":"Calculations!A44","v":0},null,{"$f":"Calculations!C44","v":"Quality of geomembrane/clay contact"},{"$f":"Calculations!D44","v":"GM_contact"},{"$f":"Calculations!E44","v":"Good contact"},{"$f":"Calculations!F44","v":"-"}]
[{"$f":"Calculations!A45","v":0},null,{"$f":"Calculations!C45","v":"Has part of the geomembrane delaminated?"},{"$f":"Calculations!D45","v":"GM_delam"},{"$f":"Calculations!E45","v":"Yes"},{"$f":"Calculations!F45","v":"-"}]
[{"$f":"Calculations!A46","v":0},null,{"$f":"Calculations!C46","v":"Area of geomembrane delaminated"},{"$f":"Calculations!D46","v":"Area_Delam"},{"$f":"Calculations!E46","v":18320.400000000001},{"$f":"Calculations!F46","v":"m2"}]
[]
[{"$f":"Calculations!A49","v":0},null,{"$f":"TRIM(LEFT(Calculations!C49,25))","v":"Density of pin holes"},{"$f":"TRIM(RIGHT(Calculations!C49,10))","v":"n_pin"},{"$f":"Calculations!D49","v":2},{"$f":"Calculations!E49","v":"/ha"}]
[{"$f":"Calculations!A50","v":0},null,{"$f":"TRIM(LEFT(Calculations!C50,25))","v":"Area of pin holes"},{"$f":"TRIM(RIGHT(Calculations!C50,10))","v":"A_pin"},{"$f":"Calculations!D50","v":2.5},{"$f":"Calculations!E50","v":"mm2"}]
[{"$f":"Calculations!A51","v":0},null,{"$f":"TRIM(LEFT(Calculations!C51,25))","v":"Density of holes"},{"$f":"TRIM(RIGHT(Calculations!C51,10))","v":"n_hole"},{"$f":"Calculations!D51","v":2},{"$f":"Calculations!E51","v":"/ha"}]
[{"$f":"Calculations!A52","v":0},null,{"$f":"TRIM(LEFT(Calculations!C52,25))","v":"Area of holes"},{"$f":"TRIM(RIGHT(Calculations!C52,10))","v":"A_hole"},{"$f":"Calculations!D52","v":2},{"$f":"Calculations!E52","v":"mm2"}]
[{"$f":"Calculations!A53","v":0},null,{"$f":"TRIM(LEFT(Calculations!C53,25))","v":"Density of tears"},{"$f":"TRIM(RIGHT(Calculations!C53,10))","v":"n_tear"},{"$f":"Calculations!D53","v":1},{"$f":"Calculations!E53","v":"/ha"}]
[{"$f":"Calculations!A54","v":0},null,{"$f":"TRIM(LEFT(Calculations!C54,25))","v":"Length of tears"},{"$f":"TRIM(RIGHT(Calculations!C54,10))","v":"l_tear"},{"$f":"Calculations!D54","v":1000},{"$f":"Calculations!E54","v":"mm"}]
[{"$f":"Calculations!A55","v":0},null,{"$f":"TRIM(LEFT(Calculations!C55,25))","v":"Width of tears"},{"$f":"TRIM(RIGHT(Calculations!C55,10))","v":"w_tear"},{"$f":"Calculations!D55","v":1},{"$f":"Calculations!E55","v":"mm"}]
[]
[{"$f":"Calculations!G4","v":0},null,"STEADY STATE DILUTION"]
[{"$f":"Calculations!G5","v":0},null,{"$f":"Calculations!I5","v":"Hydraulic gradient in the aquifer"},{"$f":"Calculations!J5","v":"aq_I"},{"$f":"Calculations!K5","v":2E-3},{"$f":"Calculations!L5","v":"-"},"Taken from SLR 2009 HRA, based on EA feedback"]
[{"$f":"Calculations!G6","v":0},null,{"$f":"Calculations!I6","v":"Hydraulic conductivity of the aquifer"},{"$f":"Calculations!J6","v":"k_aq"},{"$f":"Calculations!K6","v":1E-10},{"$f":"Calculations!L6","v":"m/s"},"BH specific data from CL Associates 2003"]
[{"$f":"Calculations!G7","v":0},null,{"$f":"Calculations!I7","v":"Downgradient distance of compliance point from landfill"},{"$f":"Calculations!J7","v":"dist_cp"},{"$f":"Calculations!K7","v":60},{"$f":"Calculations!L7","v":"m"},"Edged of liner (assume 1m thickness as a minimum)"]
[{"$f":"Calculations!G8","v":0},null,{"$f":"Calculations!I10","v":"Dilution flow in aquifer downstream to the landfill"},{"$f":"Calculations!J10","v":"aq_Q"},{"$f":"Calculations!K10","v":3.0264550264550268E-10},{"$f":"Calculations!L10","v":"m3/s"}]

{"sheet":"C and J Calc Summary","index":4,"n_rows":22,"n_cols":8,"rows_kept":22,"cut":false,"hidden":true,"merged":[[14,0,14,2],[19,0,19,2],[4,0,4,2],[9,0,9,2]]}
[]
["All data reported at the latest time"]
[{"$f":"Cont_Class","v":"List I"},{"$f":"Cont_Type","v":"Inorganic"},"Delam",{"$f":"GM_delam","v":"Yes"}]
["List I Concentration solution "]
["Single Layer"]
["Pin","Hole","Tear","Two layer","Delam"]
[{"$f":"'Single layer solutions'!M63","v":0},{"$f":"'Single layer solutions'!Q63","v":0},{"$f":"'Single layer solutions'!U63","v":0},{"$f":"'Two Layer Solutions Layer Two'!L63","v":0},{"$f":"Delamination!K63","v":0}]
[]
["List II Concentration solution "]
["Single Layer"]
["Pin","Hole","Tear","Two layer","Single and two","Delam","Delam and single and two"]
[{"$f":"'Single layer solutions'!L63*Area_CZ_arr Pin*1000/aq_Q","v":0},{"$f":"'Single layer solutions'!P63*Area_CZ_arr Hole*1000/aq_Q","v":0},{"$f":"'Single layer solutions'!T63*Area_CZ_arr Tear*1000/aq_Q","v":0},{"$f":"'Two Layer Solutions Layer Two'!K63*Area_two*1000/aq_Q","v":0},{"$f":"D12+B12+A12+C12","v":0},{"$f":"Delamination!J63*Area_delam*1000/aq_Q","v":0},{"$f":"F12+E12","v":0}]
[]
["List I Mass flux kg/s"]
["Single Layer"]
["Pin","Hole","Tear","Total single","Two layer","Single and two","Delam","Delam and single and two"]
[{"$f":"'Single layer solutions'!N63*Area_CZ_arr Pin","v":0},{"$f":"'Single layer solutions'!R63*Area_CZ_arr Hole","v":0},{"$f":"'Single layer solutions'!V63*Area_CZ_arr Tear","v":0},{"$f":"A17+B17+C17","v":0},{"$f":"'Two Layer Solutions Layer Two'!M63*Area_two","v":0},{"$f":"E17+D17","v":0},{"$f":"Delamination!L63*Area_delam","v":0},{"$f":"G17+F17","v":0}]
[]
["List II Mass flux kg/s"]
["Single Layer"]
["Pin","Hole","Tear","Total","Two layer","Single and two","Delam","Delam and single and two"]
[{"$f":"'Single layer solutions'!L63*Area_CZ_arr Pin","v":0},{"$f":"'Single layer solutions'!P63*Area_CZ_arr Hole","v":0},{"$f":"'Single layer solutions'!T63*Area_CZ_arr Tear","v":0},{"$f":"A22+B22+C22","v":0},{"$f":"'Two Layer Solutions Layer Two'!K63*Area_two","v":0},{"$f":"E22+D22","v":0},{"$f":"Delamination!J63*Area_delam","v":0},{"$f":"F22+G22","v":0}]

{"sheet":"Single layer solutions","index":5,"n_rows":63,"n_cols":25,"rows_kept":63,"cut":false,"hidden":true,"merged":[[8,7,8,10],[8,11,8,14],[8,15,8,18],[8,19,8,22]]}
["CM1 ","Inorg and Org","List I ","List II",null,null,"vel_def_arr","umax_def_arr","Dt_def_arr","D_def_arr","vel_cl_arr","umax_cl_arr","Dt_cl_arr","D_cl_arr","number","Area_CZ_arr","area_def_arr","pore_rad_def_arr","Conc_def_arr","Multiplying factor at large times",null,null,null,"vel_cl_used",{"$f":"IF(Solution_type=\"a\",Conc_LF,IF(OR(Defect_Choice=1,Defect_Choice=4),vel_cl_arr Pin,IF(OR(Defect_Choice=2,Defect_Choice=5),vel_cl_arr Hole,vel_cl_arr Tear)))","v":1.2999999999999999E-2}]
["CM2","Inorg","ListI","ListII","no gm","Pin",{"$f":"(Head_inLF-Head_outLF)/ABS(Head_inLF-Head_outLF)*Q_pin/(A_Pin)","v":-7.0000845008959766E-4},{"$f":"1.5*vel_def_arr Pin*1","v":-1.0500126751343964E-3},{"$f":"1*pore_rad_def_arr Pin^2*umax_def_arr Pin^2/(192*Dw_cl)","v":6.3732188929567912E-6},{"$f":"((Dw_cl+Dt_def_arr Pin))","v":6.3739358929567909E-6},{"$f":"(Head_inLF-Head_outLF)/ABS(Head_inLF-Head_outLF)*Q_pin/CZ_Pin","v":-1.9999999999998847E-9},{"$f":"1.5*vel_cl_arr Pin*n","v":-4.4999999999997404E-10},{"$f":"n*pore_radius^2*umax_cl_arr Pin^2/(192*Dw_cl)","v":2.2064592050206661E-23},{"$f":"D_mech*ABS(vel_cl_arr Pin)+((1/tau_cl)*(Dw_cl+Dt_cl_arr Pin))","v":7.1700000000002206E-11},{"$f":"n_pin","v":2.0000000000000001E-4},{"$f":"MIN(MIN((1-IF(CM=1,0,IF(GM_delam=\"Yes\",Frac_Delam,0))))*Area_contact*(n_pin*CZ_Pin), MIN((1-IF(CM=1,0,IF(GM_delam=\"Yes\",Frac_Delam,0))))*Area_contact*n_pin*CZ_Pin/P6)","v":0},{"$f":"A_Pin*n_pin*Area_contact*(1-IF(CM=1,0,IF(GM_delam=\"Yes\",Frac_Delam,0)))","v":0},{"$f":"SQRT((A_Pin/PI()))","v":8.920620580763856E-4},{"$f":"IF(O2=0,0,IF(Solution_type=\"a\",Conc_LF,(Conc_LF/2)*(ERFC_esi((thick_gm-(vel_def_arr Pin*tlarge))/(2*SQRT(D_def_arr Pin*tlarge)))+(EXP(vel_def_arr Pin*thick_gm/D_def_arr Pin)*ERFC_esi((thick_gm+(vel_def_arr Pin*tlarge))/(2*SQRT(D_def_arr Pin*tlarge)))))))","v":1.2999999999999999E-2},{"$f":"(EXP(MIN(700,(vel_cl_arr Pin*x/(2*D_cl_arr Pin))*(1-SQRT(vel_cl_arr Pin^2+(4*Decay_cl*R_cl*D_cl_arr Pin))/vel_cl_arr Pin)))*ERFC_esi((1/(2*SQRT(D_cl_arr Pin*tlarge/R_cl)))*(x-(vel_cl_arr Pin*tlarge*SQRT(vel_cl_arr Pin^2+(4*Decay_cl*R_cl*D_cl_arr Pin))/vel_cl_arr Pin/R_cl)))+EXP(MIN(700,(vel_cl_arr Pin*x/(2*D_cl_arr Pin))*(1+SQRT(vel_cl_arr Pin^2+(4*Decay_cl*R_cl*D_cl_arr Pin))/vel_cl_arr Pin)))*ERFC_esi((1/(2*SQRT(D_cl_arr Pin*tlarge/R_cl)))*(x+(vel_cl_arr Pin*tlarge*SQRT(vel_cl_arr Pin^2+(4*Decay_cl*R_cl*D_cl_arr Pin))/vel_cl_arr Pin/R_cl))))","v":{"$error":"#NAME?"}},{"$f":"S2*T2","v":{"$error":"#NAME?"}},null,null,"umax_cl_used",{"$f":"IF(Solution_type=\"a\",Conc_LF,IF(OR(Defect_Choice=1,Defect_Choice=4),umax_cl_arr Pin,IF(OR(Defect_Choice=2,Defect_Choice=5),umax_cl_arr Hole,umax_cl_arr Tear)))","v":1.2999999999999999E-2}]
["CM3 ","Inorg","List I","ListII","no gm","Hole",{"$f":"(Head_inLF-Head_outLF)/ABS(Head_inLF-Head_outLF)*Q_hole/(A_hole)","v":-8.5570150199945584E-4},{"$f":"1.5*vel_def_arr Hole*1","v":-1.2835522529991838E-3},{"$f":"1*pore_rad_def_arr Hole^2*umax_def_arr Hole^2/(192*Dw_cl)","v":7.6188047749853996E-6},{"$f":"((Dw_cl+Dt_def_arr Hole))","v":7.6195217749853992E-6},{"$f":"(Head_inLF-Head_outLF)/ABS(Head_inLF-Head_outLF)*Q_hole/CZ_hole","v":-1.9999999999998843E-9},{"$f":"1.5*vel_cl_arr Hole*n","v":-4.4999999999997399E-10},{"$f":"n*pore_radius^2*umax_cl_arr Hole^2/(192*Dw_cl)","v":2.2064592050206655E-23},{"$f":"D_mech*ABS(vel_cl_arr Hole)+((1/tau_cl)*(Dw_cl+Dt_cl_arr Hole))","v":7.1700000000002206E-11},{"$f":"n_hole","v":2.0000000000000001E-4},{"$f":"MIN(MIN((1-IF(CM=1,0,IF(GM_delam=\"Yes\",Frac_Delam,0))))*Area_contact*(n_hole*CZ_hole), MIN((1-IF(CM=1,0,IF(GM_delam=\"Yes\",Frac_Delam,0))))*Area_contact*(n_hole*CZ_hole)/P6)","v":0},{"$f":"A_hole*n_hole*Area_contact*(1-IF(CM=1,0,IF(GM_delam=\"Yes\",Frac_Delam,0)))","v":0},{"$f":"SQRT((A_hole/PI()))","v":7.9788456080286531E-4},{"$f":"IF(O3=0,0,IF(Solution_type=\"a\",Conc_LF,(Conc_LF/2)*(ERFC_esi((thick_gm-(vel_def_arr Hole*tlarge))/(2*SQRT(D_def_arr Hole*tlarge)))+(EXP(vel_def_arr Hole*thick_gm/D_def_arr Hole)*ERFC_esi((thick_gm+(vel_def_arr Hole*tlarge))/(2*SQRT(D_def_arr Hole*tlarge)))))))","v":1.2999999999999999E-2},{"$f":"(EXP(MIN(700,(vel_cl_arr Hole*x/(2*D_cl_arr Hole))*(1-SQRT(vel_cl_arr Hole^2+(4*Decay_cl*R_cl*D_cl_arr Hole))/vel_cl_arr Hole)))*ERFC_esi((1/(2*SQRT(D_cl_arr Hole*tlarge/R_cl)))*(x-(vel_cl_arr Hole*tlarge*SQRT(vel_cl_arr Hole^2+(4*Decay_cl*R_cl*D_cl_arr Hole))/vel_cl_arr Hole/R_cl)))+EXP(MIN(700,(vel_cl_arr Hole*x/(2*D_cl_arr Hole))*(1+SQRT(vel_cl_arr Hole^2+(4*Decay_cl*R_cl*D_cl_arr Hole))/vel_cl_arr Hole)))*ERFC_esi((1/(2*SQRT(D_cl_arr Hole*tlarge/R_cl)))*(x+(vel_cl_arr Hole*tlarge*SQRT(vel_cl_arr Hole^2+(4*Decay_cl*R_cl*D_cl_arr Hole))/vel_cl_arr Hole/R_cl))))","v":{"$error":"#NAME?"}},{"$f":"S3*T3","v":{"$error":"#NAME?"}},null,null,"Dt_cl_used",{"$f":"IF(Solution_type=\"a\",Conc_LF,IF(OR(Defect_Choice=1,Defect_Choice=4),Dt_cl_arr Pin,IF(OR(Defect_Choice=2,Defect_Choice=5),Dt_cl_arr Hole,Dt_cl_arr Tear)))","v":1.2999999999999999E-2}]
["1,2,3","List I for defect",null,null,null,"Tear",{"$f":"(Head_inLF-Head_outLF)/ABS(Head_inLF-Head_outLF)*Q_tear/(w_tear*l_tear)","v":-3.622606009910634E-6},{"$f":"1.5*vel_def_arr Tear*1","v":-5.4339090148659511E-6},{"$f":"1*pore_rad_def_arr Tear^2*umax_def_arr Tear^2/(192*Dw_cl)","v":5.3622165529552847E-11},{"$f":"((Dw_cl+Dt_def_arr Tear))","v":7.7062216552955286E-10},{"$f":"(Head_inLF-Head_outLF)/ABS(Head_inLF-Head_outLF)*Q_tear/CZ_tear","v":-2.0062822301340231E-9},{"$f":"1.5*vel_cl_arr Tear*n","v":-4.5141350178015521E-10},{"$f":"n*pore_radius^2*umax_cl_arr Tear^2/(192*Dw_cl)","v":2.2203424597871143E-23},{"$f":"D_mech*ABS(vel_cl_arr Tear)+((1/tau_cl)*(Dw_cl+Dt_cl_arr Tear))","v":7.1700000000002231E-11},{"$f":"n_tear","v":1E-4},{"$f":"MIN(MIN((1-IF(CM=1,0,IF(GM_delam=\"Yes\",Frac_Delam,0))))*Area_contact*(n_tear*CZ_tear), MIN((1-IF(CM=1,0,IF(GM_delam=\"Yes\",Frac_Delam,0))))*Area_contact*(n_tear*CZ_tear)/P6)","v":0},{"$f":"w_tear*l_tear*n_tear*Area_contact*(1-IF(CM=1,0,IF(GM_delam=\"Yes\",Frac_Delam,0)))","v":0},{"$f":"MIN(w_tear/2,l_tear/2)","v":5.0000000000000001E-4},{"$f":"IF(O4=0,0,IF(Solution_type=\"a\",Conc_LF,(Conc_LF/2)*(ERFC_esi((thick_gm-(vel_def_arr Tear*tlarge))/(2*SQRT(D_def_arr Tear*tlarge)))+(EXP(vel_def_arr Tear*thick_gm/D_def_arr Tear)*ERFC_esi((thick_gm+(vel_def_arr Tear*tlarge))/(2*SQRT(D_def_arr Tear*tlarge)))))))","v":1.2999999999999999E-2},{"$f":"(EXP(MIN(700,(vel_cl_arr Tear*x/(2*D_cl_arr Tear))*(1-SQRT(vel_cl_arr Tear^2+(4*Decay_cl*R_cl*D_cl_arr Tear))/vel_cl_arr Tear)))*ERFC_esi((1/(2*SQRT(D_cl_arr Tear*tlarge/R_cl)))*(x-(vel_cl_arr Tear*tlarge*SQRT(vel_cl_arr Tear^2+(4*Decay_cl*R_cl*D_cl_arr Tear))/vel_cl_arr Tear/R_cl)))+EXP(MIN(700,(vel_cl_arr Tear*x/(2*D_cl_arr Tear))*(1+SQRT(vel_cl_arr Tear^2+(4*Decay_cl*R_cl*D_cl_arr Tear))/vel_cl_arr Tear)))*ERFC_esi((1/(2*SQRT(D_cl_arr Tear*tlarge/R_cl)))*(x+(vel_cl_arr Tear*tlarge*SQRT(vel_cl_arr Tear^2+(4*Decay_cl*R_cl*D_cl_arr Tear))/vel_cl_arr Tear/R_cl))))","v":{"$error":"#NAME?"}},{"$f":"S4*T4","v":{"$error":"#NAME?"}},{"$f":"MAX(U2:U4)","v":{"$error":"#NAME?"}},null,"D_cl_used",{"$f":"IF(Solution_type=\"a\",Conc_LF,IF(OR(Defect_Choice=1,Defect_Choice=4),D_cl_arr Pin,IF(OR(Defect_Choice=2,Defect_Choice=5),D_cl_arr Hole,D_cl_arr Tear)))","v":1.2999999999999999E-2}]
["4,5,6","List II for defects",null,"List II",null,null,null,null,null,null,null,null,null,null,null,{"$f":"SUM(Area_CZ_arr)","v":0},"total defect area","Conc by area ave",{"$f":"(S4*Q2+S3*Q3+S2*Q4)/Q6","v":{"$error":"#DIV/0!"}},"Defect Choice",{"$f":"IF(V4=U4,3,IF(V4=U3,2,1))+IF(Cont_Class=\"List I\",0,3)","v":{"$error":"#NAME?"}}]
[null,null,null,null,null,null,null,null,null,null,null,null,null,"D_cl",null,{"$f":"IF((n_pin*CZ_Pin)+(n_hole*CZ_hole)+(n_tear*CZ_tear)=0,1,(n_pin*CZ_Pin)+(n_hole*CZ_hole)+(n_tear*CZ_tear))","v":5.2670554384674881E-4},{"$f":"SUM(area_def_arr)","v":0},null,"Conc_def","Mult Fact"]
[null,null,null,null,null,null,null,null,null,null,null,null,null,{"$f":"D_cl","v":7.1700000000098068E-11},null,null,null,null,{"$f":"Conc_def","v":1.2999999999999999E-2},{"$f":"(EXP(MIN(700,(vel_cl*x/(2*D_cl))*(1-SQRT(vel_cl^2+(4*Decay_cl*R_cl*D_cl))/vel_cl)))*ERFC_esi((1/(2*SQRT(D_cl*tlarge/R_cl)))*(x-(vel_cl*tlarge*SQRT(vel_cl^2+(4*Decay_cl*R_cl*D_cl))/vel_cl/R_cl)))+EXP(MIN(700,(vel_cl*x/(2*D_cl))*(1+SQRT(vel_cl^2+(4*Decay_cl*R_cl*D_cl))/vel_cl)))*ERFC_esi((1/(2*SQRT(D_cl*tlarge/R_cl)))*(x+(vel_cl*tlarge*SQRT(vel_cl^2+(4*Decay_cl*R_cl*D_cl))/vel_cl/R_cl))))","v":{"$error":"#NAME?"}}]
["Cont_class",{"$f":"Cont_Class","v":"List I"},"nsum",12]
["Cont_type",{"$f":"Cont_Type","v":"Inorganic"},"x",{"$f":"thick_cl","v":0.5},null,null,null,"Using average values - This is for Darcy",null,null,null,"Using Pin Defect Values",null,null,null,"Using Hole Defect Values",null,null,null,"Using Tear Defect Values"]
["Con Mod",{"$f":"CM","v":3}]
["Area_Single",{"$f":"IF(Solution_type=\"b\",Area_CZ,Area_Flux)","v":18320.400000000001},{"$f":"Solution_type","v":"a"},null,null,null,null,"kg/(m2 s)","mg/l","kg/(m2 s)",null,"kg/(m2 s)","mg/l","kg/(m2 s)",null,"kg/(m2 s)","mg/l","kg/(m2 s)",null,"kg/(m2 s)","mg/l","kg/(m2 s)"]
["Concentration mg/l","Flux Kg/day",null,null,null,"Time years","Time seconds","flux boundary at l+L","conc boundary at infininity","flux boundary at infinity",null,"flux boundary at l+L","conc boundary at infininity","flux boundary at infinity",null,"flux boundary at l+L","conc boundary at infininity","flux boundary at infinity",null,"flux boundary at l+L","conc boundary at infininity","flux boundary at infinity"]
[{"$f":"IF(OR(CM=1,AND(CM>1,GM_opt=\"No\")),IF(Cont_Class=\"List I\",List_I_C_Darcy,List_II_J_Darcy*Area_Single),IF(Area_Single=0,0,IF(Defect_Choice=1,List_I_C_Pin,IF(Defect_Choice=2,List_I_C_Hole,IF(Defect_Choice=3,List_I_C_Tear,(List_II_J_Pin*Area_CZ_arr Pin+List_II_J_Hole*Area_CZ_arr Hole+List_II_J_Tear*Area_CZ_arr Tear))))))*IF(Cont_Class=\"List II\",1000/aq_Q,1)","v":{"$error":"#NAME?"}},{"$f":"IF(Cont_Class=\"List II\",IF(OR(CM=1,AND(CM>1,GM_opt=\"No\")),List_II_J_Darcy*Area_Single*s_per_day,(List_II_J_Pin*Area_CZ_arr Pin+List_II_J_Hole*Area_CZ_arr Hole+List_II_J_Tear*Area_CZ_arr Tear)*s_per_day),IF(OR(CM=1,AND(CM>1,GM_opt=\"No\")),List_I_J_Darcy_In*Area_Single*s_per_day,(List_I_J_Pin_In*Area_CZ_arr Pin+List_I_J_Hole_In*Area_CZ_arr Hole+List_I_J_Tear_In*Area_CZ_arr Tear)*s_per_day))","v":{"$error":"#NAME?"}},null,null,null,{"$f":"tmin","v":1},{"$f":"F13*365*24*60*60","v":31536000},{"$f":"IF(Solution_type=\"a\",n*GetJ_1laysol_L(Conc_def/1000,thick_cl,$G13,x,R_cl,D_cl,Decay_cl,vel_cl,nsum),0)","v":{"$error":"#NAME?"}},{"$f":"IF(Solution_type=\"a\",Get_1laysol_inf(Conc_def,thick_cl,$G13,x,R_cl,D_cl,Decay_cl,vel_cl,nsum),0)","v":{"$error":"#NAME?"}},{"$f":"IF(Solution_type=\"a\",(n)*GetJ_1laysol_inf(Conc_def/1000,thick_cl,$G13,x,R_cl,D_cl,Decay_cl,vel_cl,nsum),0)","v":{"$error":"#NAME?"}},null,{"$f":"IF(NOT(Solution_type=\"a\"),n*GetJ_1laysol_L(Conc_def_arr Pin/1000,thick_cl,$G13,x,R_cl,D_cl_arr Pin,Decay_cl,vel_cl_arr Pin,nsum),0)","v":0},{"$f":"IF(NOT(Solution_type=\"a\"),Get_1laysol_inf(Conc_def_arr Pin,thick_cl,$G13,x,R_cl,D_cl_arr Pin,Decay_cl,vel_cl_arr Pin,nsum),0)","v":0},{"$f":"IF(NOT(Solution_type=\"a\"),(n)*GetJ_1laysol_inf(Conc_def_arr Pin/1000,thick_cl,$G13,x,R_cl,D_cl_arr Pin,Decay_cl,vel_cl_arr Pin,nsum),0)","v":0},null,{"$f":"IF(NOT(Solution_type=\"a\"),n*GetJ_1laysol_L(Conc_def_arr Hole/1000,thick_cl,$G13,x,R_cl,D_cl_arr Hole,Decay_cl,vel_cl_arr Hole,nsum),0)","v":0},{"$f":"IF(NOT(Solution_type=\"a\"),Get_1laysol_inf(Conc_def_arr Hole,thick_cl,$G13,x,R_cl,D_cl_arr Hole,Decay_cl,vel_cl_arr Hole,nsum),0)","v":0},{"$f":"IF(NOT(Solution_type=\"a\"),(n)*GetJ_1laysol_inf(Conc_def_arr Hole/1000,thick_cl,$G13,x,R_cl,D_cl_arr Hole,Decay_cl,vel_cl_arr Hole,nsum),0)","v":0},null,{"$f":"IF(NOT(Solution_type=\"a\"),n*GetJ_1laysol_L(Conc_def_arr Tear/1000,thick_cl,$G13,x,R_cl,D_cl_arr Tear,Decay_cl,vel_cl_arr Tear,nsum),0)","v":0},{"$f":"IF(NOT(Solution_type=\"a\"),Get_1laysol_inf(Conc_def_arr Tear,thick_cl,$G13,x,R_cl,D_cl_arr Tear,Decay_cl,vel_cl_arr Tear,nsum),0)","v":0},{"$f":"IF(NOT(Solution_type=\"a\"),(n)*GetJ_1laysol_inf(Conc_def_arr Tear/1000,thick_cl,$G13,x,R_cl,D_cl_arr Tear,Decay_cl,vel_cl_arr Tear,nsum),0)","v":0}]
[{"$f":"IF(OR(CM=1,AND(CM>1,GM_opt=\"No\")),IF(Cont_Class=\"List I\",List_I_C_Darcy,List_II_J_Darcy*Area_Single),IF(Area_Single=0,0,IF(Defect_Choice=1,List_I_C_Pin,IF(Defect_Choice=2,List_I_C_Hole,IF(Defect_Choice=3,List_I_C_Tear,(List_II_J_Pin*Area_CZ_arr Pin+List_II_J_Hole*Area_CZ_arr Hole+List_II_J_Tear*Area_CZ_arr Tear))))))*IF(Cont_Class=\"List II\",1000/aq_Q,1)","v":{"$error":"#NAME?"}},{"$f":"IF(Cont_Class=\"List II\",IF(OR(CM=1,AND(CM>1,GM_opt=\"No\")),List_II_J_Darcy*Area_Single*s_per_day,(List_II_J_Pin*Area_CZ_arr Pin+List_II_J_Hole*Area_CZ_arr Hole+List_II_J_Tear*Area_CZ_arr Tear)*s_per_day),IF(OR(CM=1,AND(CM>1,GM_opt=\"No\")),List_I_J_Darcy_In*Area_Single*s_per_day,(List_I_J_Pin_In*Area_CZ_arr Pin+List_I_J_Hole_In*Area_CZ_arr Hole+List_I_J_Tear_In*Area_CZ_arr Tear)*s_per_day))","v":{"$error":"#NAME?"}},null,null,null,{"$f":"F13*tscale","v":1.2589254117941673},39701471.786340863,{"$f":"IF(Solution_type=\"a\",n*GetJ_1laysol_L(Conc_def/1000,thick_cl,$G14,x,R_cl,D_cl,Decay_cl,vel_cl,nsum),0)","v":{"$error":"#NAME?"}},{"$f":"IF(Solution_type=\"a\",Get_1laysol_inf(Conc_def,thick_cl,$G14,x,R_cl,D_cl,Decay_cl,vel_cl,nsum),0)","v":{"$error":"#NAME?"}},{"$f":"IF(Solution_type=\"a\",(n)*GetJ_1laysol_inf(Conc_def/1000,thick_cl,$G14,x,R_cl,D_cl,Decay_cl,vel_cl,nsum),0)","v":{"$error":"#NAME?"}},null,{"$f":"IF(NOT(Solution_type=\"a\"),n*GetJ_1laysol_L(Conc_def_arr Pin/1000,thick_cl,$G14,x,R_cl,D_cl_arr Pin,Decay_cl,vel_cl_arr Pin,nsum),0)","v":0},{"$f":"IF(NOT(Solution_type=\"a\"),Get_1laysol_inf(Conc_def_arr Pin,thick_cl,$G14,x,R_cl,D_cl_arr Pin,Decay_cl,vel_cl_arr Pin,nsum),0)","v":0},{"$f":"IF(NOT(Solution_type=\"a\"),(n)*GetJ_1laysol_inf(Conc_def_arr Pin/1000,thick_cl,$G14,x,R_cl,D_cl_arr Pin,Decay_cl,vel_cl_arr Pin,nsum),0)","v":0},null,{"$f":"IF(NOT(Solution_type=\"a\"),n*GetJ_1laysol_L(Conc_def_arr Hole/1000,thick_cl,$G14,x,R_cl,D_cl_arr Hole,Decay_cl,vel_cl_arr Hole,nsum),0)","v":0},{"$f":"IF(NOT(Solution_type=\"a\"),Get_1laysol_inf(Conc_def_arr Hole,thick_cl,$G14,x,R_cl,D_cl_arr Hole,Decay_cl,vel_cl_arr Hole,nsum),0)","v":0},{"$f":"IF(NOT(Solution_type=\"a\"),(n)*GetJ_1laysol_inf(Conc_def_arr Hole/1000,thick_cl,$G14,x,R_cl,D_cl_arr Hole,Decay_cl,vel_cl_arr Hole,nsum),0)","v":0},null,{"$f":"IF(NOT(Solution_type=\"a\"),n*GetJ_1laysol_L(Conc_def_arr Tear/1000,thick_cl,$G14,x,R_cl,D_cl_arr Tear,Decay_cl,vel_cl_arr Tear,nsum),0)","v":0},{"$f":"IF(NOT(Solution_type=\"a\"),Get_1laysol_inf(Conc_def_arr Tear,thick_cl,$G14,x,R_cl,D_cl_arr Tear,Decay_cl,vel_cl_arr Tear,nsum),0)","v":0},{"$f":"IF(NOT(Solution_type=\"a\"),(n)*GetJ_1laysol_inf(Conc_def_arr Tear/1000,thick_cl,$G14,x,R_cl,D_cl_arr Tear,Decay_cl,vel_cl_arr Tear,nsum),0)","v":0}]
[{"$f":"IF(OR(CM=1,AND(CM>1,GM_opt=\"No\")),IF(Cont_Class=\"List I\",List_I_C_Darcy,List_II_J_Darcy*Area_Single),IF(Area_Single=0,0,IF(Defect_Choice=1,List_I_C_Pin,IF(Defect_Choice=2,List_I_C_Hole,IF(Defect_Choice=3,List_I_C_Tear,(List_II_J_Pin*Area_CZ_arr Pin+List_II_J_Hole*Area_CZ_arr Hole+List_II_J_Tear*Area_CZ_arr Tear))))))*IF(Cont_Class=\"List II\",1000/aq_Q,1)","v":{"$error":"#NAME?"}},{"$f":"IF(Cont_Class=\"List II\",IF(OR(CM=1,AND(CM>1,GM_opt=\"No\")),List_II_J_Darcy*Area_Single*s_per_day,(List_II_J_Pin*Area_CZ_arr Pin+List_II_J_Hole*Area_CZ_arr Hole+List_II_J_Tear*Area_CZ_arr Tear)*s_per_day),IF(OR(CM=1,AND(CM>1,GM_opt=\"No\")),List_I_J_Darcy_In*Area_Single*s_per_day,(List_I_J_Pin_In*Area_CZ_arr Pin+List_I_J_Hole_In*Area_CZ_arr Hole+List_I_J_Tear_In*Area_CZ_arr Tear)*s_per_day))","v":{"$error":"#NAME?"}},null,null,null,{"$f":"F14*tscale","v":1.5848931924611136},49981191.717453673,{"$f":"IF(Solution_type=\"a\",n*GetJ_1laysol_L(Conc_def/1000,thick_cl,$G15,x,R_cl,D_cl,Decay_cl,vel_cl,nsum),0)","v":{"$error":"#NAME?"}},{"$f":"IF(Solution_type=\"a\",Get_1laysol_inf(Conc_def,thick_cl,$G15,x,R_cl,D_cl,Decay_cl,vel_cl,nsum),0)","v":{"$error":"#NAME?"}},{"$error":"#NAME?"},null,{"$f":"IF(NOT(Solution_type=\"a\"),n*GetJ_1laysol_L(Conc_def_arr Pin/1000,thick_cl,$G15,x,R_cl,D_cl_arr Pin,Decay_cl,vel_cl_arr Pin,nsum),0)","v":0},{"$f":"IF(NOT(Solution_type=\"a\"),Get_1laysol_inf(Conc_def_arr Pin,thick_cl,$G15,x,R_cl,D_cl_arr Pin,Decay_cl,vel_cl_arr Pin,nsum),0)","v":0},{"$f":"IF(NOT(Solution_type=\"a\"),(n)*GetJ_1laysol_inf(Conc_def_arr Pin/1000,thick_cl,$G15,x,R_cl,D_cl_arr Pin,Decay_cl,vel_cl_arr Pin,nsum),0)","v":0},null,{"$f":"IF(NOT(Solution_type=\"a\"),n*GetJ_1laysol_L(Conc_def_arr Hole/1000,thick_cl,$G15,x,R_cl,D_cl_arr Hole,Decay_cl,vel_cl_arr Hole,nsum),0)","v":0},{"$f":"IF(NOT(Solution_type=\"a\"),Get_1laysol_inf(Conc_def_arr Hole,thick_cl,$G15,x,R_cl,D_cl_arr Hole,Decay_cl,vel_cl_arr Hole,nsum),0)","v":0},{"$f":"IF(NOT(Solution_type=\"a\"),(n)*GetJ_1laysol_inf(Conc_def_arr Hole/1000,thick_cl,$G15,x,R_cl,D_cl_arr Hole,Decay_cl,vel_cl_arr Hole,nsum),0)","v":0},null,{"$f":"IF(NOT(Solution_type=\"a\"),n*GetJ_1laysol_L(Conc_def_arr Tear/1000,thick_cl,$G15,x,R_cl,D_cl_arr Tear,Decay_cl,vel_cl_arr Tear,nsum),0)","v":0},{"$f":"IF(NOT(Solution_type=\"a\"),Get_1laysol_inf(Conc_def_arr Tear,thick_cl,$G15,x,R_cl,D_cl_arr Tear,Decay_cl,vel_cl_arr Tear,nsum),0)","v":0},{"$f":"IF(NOT(Solution_type=\"a\"),(n)*GetJ_1laysol_inf(Conc_def_arr Tear/1000,thick_cl,$G15,x,R_cl,D_cl_arr Tear,Decay_cl,vel_cl_arr Tear,nsum),0)","v":0}]
[{"$f":"IF(OR(CM=1,AND(CM>1,GM_opt=\"No\")),IF(Cont_Class=\"List I\",List_I_C_Darcy,List_II_J_Darcy*Area_Single),IF(Area_Single=0,0,IF(Defect_Choice=1,List_I_C_Pin,IF(Defect_Choice=2,List_I_C_Hole,IF(Defect_Choice=3,List_I_C_Tear,(List_II_J_Pin*Area_CZ_arr Pin+List_II_J_Hole*Area_CZ_arr Hole+List_II_J_Tear*Area_CZ_arr Tear))))))*IF(Cont_Class=\"List II\",1000/aq_Q,1)","v":{"$error":"#NAME?"}},{"$f":"IF(Cont_Class=\"List II\",IF(OR(CM=1,AND(CM>1,GM_opt=\"No\")),List_II_J_Darcy*Area_Single*s_per_day,(List_II_J_Pin*Area_CZ_arr Pin+List_II_J_Hole*Area_CZ_arr Hole+List_II_J_Tear*Area_CZ_arr Tear)*s_per_day),IF(OR(CM=1,AND(CM>1,GM_opt=\"No\")),List_I_J_Darcy_In*Area_Single*s_per_day,(List_I_J_Pin_In*Area_CZ_arr Pin+List_I_J_Hole_In*Area_CZ_arr Hole+List_I_J_Tear_In*Area_CZ_arr Tear)*s_per_day))","v":{"$error":"#NAME?"}},null,null,null,1.99526231496888,62922592.364858605,{"$error":"#NAME?"},{"$error":"#NAME?"},{"$error":"#NAME?"},null,{"$f":"IF(NOT(Solution_type=\"a\"),n*GetJ_1laysol_L(Conc_def_arr Pin/1000,thick_cl,$G16,x,R_cl,D_cl_arr Pin,Decay_cl,vel_cl_arr Pin,nsum),0)","v":0},{"$f":"IF(NOT(Solution_type=\"a\"),Get_1laysol_inf(Conc_def_arr Pin,thick_cl,$G16,x,R_cl,D_cl_arr Pin,Decay_cl,vel_cl_arr Pin,nsum),0)","v":0},{"$f":"IF(NOT(Solution_type=\"a\"),(n)*GetJ_1laysol_inf(Conc_def_arr Pin/1000,thick_cl,$G16,x,R_cl,D_cl_arr Pin,Decay_cl,vel_cl_arr Pin,nsum),0)","v":0},null,{"$f":"IF(NOT(Solution_type=\"a\"),n*GetJ_1laysol_L(Conc_def_arr Hole/1000,thick_cl,$G16,x,R_cl,D_cl_arr Hole,Decay_cl,vel_cl_arr Hole,nsum),0)","v":0},{"$f":"IF(NOT(Solution_type=\"a\"),Get_1laysol_inf(Conc_def_arr Hole,thick_cl,$G16,x,R_cl,D_cl_arr Hole,Decay_cl,vel_cl_arr Hole,nsum),0)","v":0},{"$f":"IF(NOT(Solution_type=\"a\"),(n)*GetJ_1laysol_inf(Conc_def_arr Hole/1000,thick_cl,$G16,x,R_cl,D_cl_arr Hole,Decay_cl,vel_cl_arr Hole,nsum),0)","v":0},null,{"$f":"IF(NOT(Solution_type=\"a\"),n*GetJ_1laysol_L(Conc_def_arr Tear/1000,thick_cl,$G16,x,R_cl,D_cl_arr Tear,Decay_cl,vel_cl_arr Tear,nsum),0)","v":0},{"$f":"IF(NOT(Solution_type=\"a\"),Get_1laysol_inf(Conc_def_arr Tear,thick_cl,$G16,x,R_cl,D_cl_arr Tear,Decay_cl,vel_cl_arr Tear,nsum),0)","v":0},{"$f":"IF(NOT(Solution_type=\"a\"),(n)*GetJ_1laysol_inf(Conc_def_arr Tear/1000,thick_cl,$G16,x,R_cl,D_cl_arr Tear,Decay_cl,vel_cl_arr Tear,nsum),0)","v":0}]
[{"$f":"IF(OR(CM=1,AND(CM>1,GM_opt=\"No\")),IF(Cont_Class=\"List I\",List_I_C_Darcy,List_II_J_Darcy*Area_Single),IF(Area_Single=0,0,IF(Defect_Choice=1,List_I_C_Pin,IF(Defect_Choice=2,List_I_C_Hole,IF(Defect_Choice=3,List_I_C_Tear,(List_II_J_Pin*Area_CZ_arr Pin+List_II_J_Hole*Area_CZ_arr Hole+List_II_J_Tear*Area_CZ_arr Tear))))))*IF(Cont_Class=\"List II\",1000/aq_Q,1)","v":{"$error":"#NAME?"}},{"$f":"IF(Cont_Class=\"List II\",IF(OR(CM=1,AND(CM>1,GM_opt=\"No\")),List_II_J_Darcy*Area_Single*s_per_day,(List_II_J_Pin*Area_CZ_arr Pin+List_II_J_Hole*Area_CZ_arr Hole+List_II_J_Tear*Area_CZ_arr Tear)*s_per_day),IF(OR(CM=1,AND(CM>1,GM_opt=\"No\")),List_I_J_Darcy_In*Area_Single*s_per_day,(List_I_J_Pin_In*Area_CZ_arr Pin+List_I_J_Hole_In*Area_CZ_arr Hole+List_I_J_Tear_In*Area_CZ_arr Tear)*s_per_day))","v":{"$error":"#NAME?"}},null,null,null,2.5118864315095806,79214850.504086137,{"$error":"#NAME?"},{"$error":"#NAME?"},{"$error":"#NAME?"},null,{"$f":"IF(NOT(Solution_type=\"a\"),n*GetJ_1laysol_L(Conc_def_arr Pin/1000,thick_cl,$G17,x,R_cl,D_cl_arr Pin,Decay_cl,vel_cl_arr Pin,nsum),0)","v":0},{"$f":"IF(NOT(Solution_type=\"a\"),Get_1laysol_inf(Conc_def_arr Pin,thick_cl,$G17,x,R_cl,D_cl_arr Pin,Decay_cl,vel_cl_arr Pin,nsum),0)","v":0},{"$f":"IF(NOT(Solution_type=\"a\"),(n)*GetJ_1laysol_inf(Conc_def_arr Pin/1000,thick_cl,$G17,x,R_cl,D_cl_arr Pin,Decay_cl,vel_cl_arr Pin,nsum),0)","v":0},null,{"$f":"IF(NOT(Solution_type=\"a\"),n*GetJ_1laysol_L(Conc_def_arr Hole/1000,thick_cl,$G17,x,R_cl,D_cl_arr Hole,Decay_cl,vel_cl_arr Hole,nsum),0)","v":0},{"$f":"IF(NOT(Solution_type=\"a\"),Get_1laysol_inf(Conc_def_arr Hole,thick_cl,$G17,x,R_cl,D_cl_arr Hole,Decay_cl,vel_cl_arr Hole,nsum),0)","v":0},{"$f":"IF(NOT(Solution_type=\"a\"),(n)*GetJ_1laysol_inf(Conc_def_arr Hole/1000,thick_cl,$G17,x,R_cl,D_cl_arr Hole,Decay_cl,vel_cl_arr Hole,nsum),0)","v":0},null,{"$f":"IF(NOT(Solution_type=\"a\"),n*GetJ_1laysol_L(Conc_def_arr Tear/1000,thick_cl,$G17,x,R_cl,D_cl_arr Tear,Decay_cl,vel_cl_arr Tear,nsum),0)","v":0},{"$f":"IF(NOT(Solution_type=\"a\"),Get_1laysol_inf(Conc_def_arr Tear,thick_cl,$G17,x,R_cl,D_cl_arr Tear,Decay_cl,vel_cl_arr Tear,nsum),0)","v":0},{"$f":"IF(NOT(Solution_type=\"a\"),(n)*GetJ_1laysol_inf(Conc_def_arr Tear/1000,thick_cl,$G17,x,R_cl,D_cl_arr Tear,Decay_cl,vel_cl_arr Tear,nsum),0)","v":0}]
[{"$f":"IF(OR(CM=1,AND(CM>1,GM_opt=\"No\")),IF(Cont_Class=\"List I\",List_I_C_Darcy,List_II_J_Darcy*Area_Single),IF(Area_Single=0,0,IF(Defect_Choice=1,List_I_C_Pin,IF(Defect_Choice=2,List_I_C_Hole,IF(Defect_Choice=3,List_I_C_Tear,(List_II_J_Pin*Area_CZ_arr Pin+List_II_J_Hole*Area_CZ_arr Hole+List_II_J_Tear*Area_CZ_arr Tear))))))*IF(Cont_Class=\"List II\",1000/aq_Q,1)","v":{"$error":"#NAME?"}},{"$f":"IF(Cont_Class=\"List II\",IF(OR(CM=1,AND(CM>1,GM_opt=\"No\")),List_II_J_Darcy*Area_Single*s_per_day,(List_II_J_Pin*Area_CZ_arr Pin+List_II_J_Hole*Area_CZ_arr Hole+List_II_J_Tear*Area_CZ_arr Tear)*s_per_day),IF(OR(CM=1,AND(CM>1,GM_opt=\"No\")),List_I_J_Darcy_In*Area_Single*s_per_day,(List_I_J_Pin_In*Area_CZ_arr Pin+List_I_J_Hole_In*Area_CZ_arr Hole+List_I_J_Tear_In*Area_CZ_arr Tear)*s_per_day))","v":{"$error":"#NAME?"}},null,null,null,3.16227766016838,99725588.291070029,{"$error":"#NAME?"},{"$error":"#NAME?"},{"$error":"#NAME?"},null,{"$f":"IF(NOT(Solution_type=\"a\"),n*GetJ_1laysol_L(Conc_def_arr Pin/1000,thick_cl,$G18,x,R_cl,D_cl_arr Pin,Decay_cl,vel_cl_arr Pin,nsum),0)","v":0},{"$f":"IF(NOT(Solution_type=\"a\"),Get_1laysol_inf(Conc_def_arr Pin,thick_cl,$G18,x,R_cl,D_cl_arr Pin,Decay_cl,vel_cl_arr Pin,nsum),0)","v":0},{"$f":"IF(NOT(Solution_type=\"a\"),(n)*GetJ_1laysol_inf(Conc_def_arr Pin/1000,thick_cl,$G18,x,R_cl,D_cl_arr Pin,Decay_cl,vel_cl_arr Pin,nsum),0)","v":0},null,{"$f":"IF(NOT(Solution_type=\"a\"),n*GetJ_1laysol_L(Conc_def_arr Hole/1000,thick_cl,$G18,x,R_cl,D_cl_arr Hole,Decay_cl,vel_cl_arr Hole,nsum),0)","v":0},{"$f":"IF(NOT(Solution_type=\"a\"),Get_1laysol_inf(Conc_def_arr Hole,thick_cl,$G18,x,R_cl,D_cl_arr Hole,Decay_cl,vel_cl_arr Hole,nsum),0)","v":0},{"$f":"IF(NOT(Solution_type=\"a\"),(n)*GetJ_1laysol_inf(Conc_def_arr Hole/1000,thick_cl,$G18,x,R_cl,D_cl_arr Hole,Decay_cl,vel_cl_arr Hole,nsum),0)","v":0},null,{"$f":"IF(NOT(Solution_type=\"a\"),n*GetJ_1laysol_L(Conc_def_arr Tear/1000,thick_cl,$G18,x,R_cl,D_cl_arr Tear,Decay_cl,vel_cl_arr Tear,nsum),0)","v":0},{"$f":"IF(NOT(Solution_type=\"a\"),Get_1laysol_inf(Conc_def_arr Tear,thick_cl,$G18,x,R_cl,D_cl_arr Tear,Decay_cl,vel_cl_arr Tear,nsum),0)","v":0},{"$f":"IF(NOT(Solution_type=\"a\"),(n)*GetJ_1laysol_inf(Conc_def_arr Tear/1000,thick_cl,$G18,x,R_cl,D_cl_arr Tear,Decay_cl,vel_cl_arr Tear,nsum),0)","v":0}]
[{"$f":"IF(OR(CM=1,AND(CM>1,GM_opt=\"No\")),IF(Cont_Class=\"List I\",List_I_C_Darcy,List_II_J_Darcy*Area_Single),IF(Area_Single=0,0,IF(Defect_Choice=1,List_I_C_Pin,IF(Defect_Choice=2,List_I_C_Hole,IF(Defect_Choice=3,List_I_C_Tear,(List_II_J_Pin*Area_CZ_arr Pin+List_II_J_Hole*Area_CZ_arr Hole+List_II_J_Tear*Area_CZ_arr Tear))))))*IF(Cont_Class=\"List II\",1000/aq_Q,1)","v":{"$error":"#NAME?"}},{"$f":"IF(Cont_Class=\"List II\",IF(OR(CM=1,AND(CM>1,GM_opt=\"No\")),List_II_J_Darcy*Area_Single*s_per_day,(List_II_J_Pin*Area_CZ_arr Pin+List_II_J_Hole*Area_CZ_arr Hole+List_II_J_Tear*Area_CZ_arr Tear)*s_per_day),IF(OR(CM=1,AND(CM>1,GM_opt=\"No\")),List_I_J_Darcy_In*Area_Single*s_per_day,(List_I_J_Pin_In*Area_CZ_arr Pin+List_I_J_Hole_In*Area_CZ_arr Hole+List_I_J_Tear_In*Area_CZ_arr Tear)*s_per_day))","v":{"$error":"#NAME?"}},null,null,null,3.9810717055349736,125547077.30575092,{"$error":"#NAME?"},{"$error":"#NAME?"},{"$error":"#NAME?"},null,{"$f":"IF(NOT(Solution_type=\"a\"),n*GetJ_1laysol_L(Conc_def_arr Pin/1000,thick_cl,$G19,x,R_cl,D_cl_arr Pin,Decay_cl,vel_cl_arr Pin,nsum),0)","v":0},{"$f":"IF(NOT(Solution_type=\"a\"),Get_1laysol_inf(Conc_def_arr Pin,thick_cl,$G19,x,R_cl,D_cl_arr Pin,Decay_cl,vel_cl_arr Pin,nsum),0)","v":0},{"$f":"IF(NOT(Solution_type=\"a\"),(n)*GetJ_1laysol_inf(Conc_def_arr Pin/1000,thick_cl,$G19,x,R_cl,D_cl_arr Pin,Decay_cl,vel_cl_arr Pin,nsum),0)","v":0},null,{"$f":"IF(NOT(Solution_type=\"a\"),n*GetJ_1laysol_L(Conc_def_arr Hole/1000,thick_cl,$G19,x,R_cl,D_cl_arr Hole,Decay_cl,vel_cl_arr Hole,nsum),0)","v":0},{"$f":"IF(NOT(Solution_type=\"a\"),Get_1laysol_inf(Conc_def_arr Hole,thick_cl,$G19,x,R_cl,D_cl_arr Hole,Decay_cl,vel_cl_arr Hole,nsum),0)","v":0},{"$f":"IF(NOT(Solution_type=\"a\"),(n)*GetJ_1laysol_inf(Conc_def_arr Hole/1000,thick_cl,$G19,x,R_cl,D_cl_arr Hole,Decay_cl,vel_cl_arr Hole,nsum),0)","v":0},null,{"$f":"IF(NOT(Solution_type=\"a\"),n*GetJ_1laysol_L(Conc_def_arr Tear/1000,thick_cl,$G19,x,R_cl,D_cl_arr Tear,Decay_cl,vel_cl_arr Tear,nsum),0)","v":0},{"$f":"IF(NOT(Solution_type=\"a\"),Get_1laysol_inf(Conc_def_arr Tear,thick_cl,$G19,x,R_cl,D_cl_arr Tear,Decay_cl,vel_cl_arr Tear,nsum),0)","v":0},{"$f":"IF(NOT(Solution_type=\"a\"),(n)*GetJ_1laysol_inf(Conc_def_arr Tear/1000,thick_cl,$G19,x,R_cl,D_cl_arr Tear,Decay_cl,vel_cl_arr Tear,nsum),0)","v":0}]
[{"$f":"IF(OR(CM=1,AND(CM>1,GM_opt=\"No\")),IF(Cont_Class=\"List I\",List_I_C_Darcy,List_II_J_Darcy*Area_Single),IF(Area_Single=0,0,IF(Defect_Choice=1,List_I_C_Pin,IF(Defect_Choice=2,List_I_C_Hole,IF(Defect_Choice=3,List_I_C_Tear,(List_II_J_Pin*Area_CZ_arr Pin+List_II_J_Hole*Area_CZ_arr Hole+List_II_J_Tear*Area_CZ_arr Tear))))))*IF(Cont_Class=\"List II\",1000/aq_Q,1)","v":{"$error":"#NAME?"}},{"$f":"IF(Cont_Class=\"List II\",IF(OR(CM=1,AND(CM>1,GM_opt=\"No\")),List_II_J_Darcy*Area_Single*s_per_day,(List_II_J_Pin*Area_CZ_arr Pin+List_II_J_Hole*Area_CZ_arr Hole+List_II_J_Tear*Area_CZ_arr Tear)*s_per_day),IF(OR(CM=1,AND(CM>1,GM_opt=\"No\")),List_I_J_Darcy_In*Area_Single*s_per_day,(List_I_J_Pin_In*Area_CZ_arr Pin+List_I_J_Hole_In*Area_CZ_arr Hole+List_I_J_Tear_In*Area_CZ_arr Tear)*s_per_day))","v":{"$error":"#NAME?"}},null,null,null,5.0118723362727247,158054405.99669662,{"$error":"#NAME?"},{"$error":"#NAME?"},{"$error":"#NAME?"},null,{"$f":"IF(NOT(Solution_type=\"a\"),n*GetJ_1laysol_L(Conc_def_arr Pin/1000,thick_cl,$G20,x,R_cl,D_cl_arr Pin,Decay_cl,vel_cl_arr Pin,nsum),0)","v":0},{"$f":"IF(NOT(Solution_type=\"a\"),Get_1laysol_inf(Conc_def_arr Pin,thick_cl,$G20,x,R_cl,D_cl_arr Pin,Decay_cl,vel_cl_arr Pin,nsum),0)","v":0},{"$f":"IF(NOT(Solution_type=\"a\"),(n)*GetJ_1laysol_inf(Conc_def_arr Pin/1000,thick_cl,$G20,x,R_cl,D_cl_arr Pin,Decay_cl,vel_cl_arr Pin,nsum),0)","v":0},null,{"$f":"IF(NOT(Solution_type=\"a\"),n*GetJ_1laysol_L(Conc_def_arr Hole/1000,thick_cl,$G20,x,R_cl,D_cl_arr Hole,Decay_cl,vel_cl_arr Hole,nsum),0)","v":0},{"$f":"IF(NOT(Solution_type=\"a\"),Get_1laysol_inf(Conc_def_arr Hole,thick_cl,$G20,x,R_cl,D_cl_arr Hole,Decay_cl,vel_cl_arr Hole,nsum),0)","v":0},{"$f":"IF(NOT(Solution_type=\"a\"),(n)*GetJ_1laysol_inf(Conc_def_arr Hole/1000,thick_cl,$G20,x,R_cl,D_cl_arr Hole,Decay_cl,vel_cl_arr Hole,nsum),0)","v":0},null,{"$f":"IF(NOT(Solution_type=\"a\"),n*GetJ_1laysol_L(Conc_def_arr Tear/1000,thick_cl,$G20,x,R_cl,D_cl_arr Tear,Decay_cl,vel_cl_arr Tear,nsum),0)","v":0},{"$f":"IF(NOT(Solution_type=\"a\"),Get_1laysol_inf(Conc_def_arr Tear,thick_cl,$G20,x,R_cl,D_cl_arr Tear,Decay_cl,vel_cl_arr Tear,nsum),0)","v":0},{"$f":"IF(NOT(Solution_type=\"a\"),(n)*GetJ_1laysol_inf(Conc_def_arr Tear/1000,thick_cl,$G20,x,R_cl,D_cl_arr Tear,Decay_cl,vel_cl_arr Tear,nsum),0)","v":0}]
[{"$f":"IF(OR(CM=1,AND(CM>1,GM_opt=\"No\")),IF(Cont_Class=\"List I\",List_I_C_Darcy,List_II_J_Darcy*Area_Single),IF(Area_Single=0,0,IF(Defect_Choice=1,List_I_C_Pin,IF(Defect_Choice=2,List_I_C_Hole,IF(Defect_Choice=3,List_I_C_Tear,(List_II_J_Pin*Area_CZ_arr Pin+List_II_J_Hole*Area_CZ_arr Hole+List_II_J_Tear*Area_CZ_arr Tear))))))*IF(Cont_Class=\"List II\",1000/aq_Q,1)","v":{"$error":"#NAME?"}},{"$f":"IF(Cont_Class=\"List II\",IF(OR(CM=1,AND(CM>1,GM_opt=\"No\")),List_II_J_Darcy*Area_Single*s_per_day,(List_II_J_Pin*Area_CZ_arr Pin+List_II_J_Hole*Area_CZ_arr Hole+List_II_J_Tear*Area_CZ_arr Tear)*s_per_day),IF(OR(CM=1,AND(CM>1,GM_opt=\"No\")),List_I_J_Darcy_In*Area_Single*s_per_day,(List_I_J_Pin_In*Area_CZ_arr Pin+List_I_J_Hole_In*Area_CZ_arr Hole+List_I_J_Tear_In*Area_CZ_arr Tear)*s_per_day))","v":{"$error":"#NAME?"}},null,null,null,6.3095734448019352,198978708.15527385,{"$error":"#NAME?"},{"$error":"#NAME?"},{"$error":"#NAME?"},null,{"$f":"IF(NOT(Solution_type=\"a\"),n*GetJ_1laysol_L(Conc_def_arr Pin/1000,thick_cl,$G21,x,R_cl,D_cl_arr Pin,Decay_cl,vel_cl_arr Pin,nsum),0)","v":0},{"$f":"IF(NOT(Solution_type=\"a\"),Get_1laysol_inf(Conc_def_arr Pin,thick_cl,$G21,x,R_cl,D_cl_arr Pin,Decay_cl,vel_cl_arr Pin,nsum),0)","v":0},{"$f":"IF(NOT(Solution_type=\"a\"),(n)*GetJ_1laysol_inf(Conc_def_arr Pin/1000,thick_cl,$G21,x,R_cl,D_cl_arr Pin,Decay_cl,vel_cl_arr Pin,nsum),0)","v":0},null,{"$f":"IF(NOT(Solution_type=\"a\"),n*GetJ_1laysol_L(Conc_def_arr Hole/1000,thick_cl,$G21,x,R_cl,D_cl_arr Hole,Decay_cl,vel_cl_arr Hole,nsum),0)","v":0},{"$f":"IF(NOT(Solution_type=\"a\"),Get_1laysol_inf(Conc_def_arr Hole,thick_cl,$G21,x,R_cl,D_cl_arr Hole,Decay_cl,vel_cl_arr Hole,nsum),0)","v":0},{"$f":"IF(NOT(Solution_type=\"a\"),(n)*GetJ_1laysol_inf(Conc_def_arr Hole/1000,thick_cl,$G21,x,R_cl,D_cl_arr Hole,Decay_cl,vel_cl_arr Hole,nsum),0)","v":0},null,{"$f":"IF(NOT(Solution_type=\"a\"),n*GetJ_1laysol_L(Conc_def_arr Tear/1000,thick_cl,$G21,x,R_cl,D_cl_arr Tear,Decay_cl,vel_cl_arr Tear,nsum),0)","v":0},{"$f":"IF(NOT(Solution_type=\"a\"),Get_1laysol_inf(Conc_def_arr Tear,thick_cl,$G21,x,R_cl,D_cl_arr Tear,Decay_cl,vel_cl_arr Tear,nsum),0)","v":0},{"$f":"IF(NOT(Solution_type=\"a\"),(n)*GetJ_1laysol_inf(Conc_def_arr Tear/1000,thick_cl,$G21,x,R_cl,D_cl_arr Tear,Decay_cl,vel_cl_arr Tear,nsum),0)","v":0}]
[{"$f":"IF(OR(CM=1,AND(CM>1,GM_opt=\"No\")),IF(Cont_Class=\"List I\",List_I_C_Darcy,List_II_J_Darcy*Area_Single),IF(Area_Single=0,0,IF(Defect_Choice=1,List_I_C_Pin,IF(Defect_Choice=2,List_I_C_Hole,IF(Defect_Choice=3,List_I_C_Tear,(List_II_J_Pin*Area_CZ_arr Pin+List_II_J_Hole*Area_CZ_arr Hole+List_II_J_Tear*Area_CZ_arr Tear))))))*IF(Cont_Class=\"List II\",1000/aq_Q,1)","v":{"$error":"#NAME?"}},{"$f":"IF(Cont_Class=\"List II\",IF(OR(CM=1,AND(CM>1,GM_opt=\"No\")),List_II_J_Darcy*Area_Single*s_per_day,(List_II_J_Pin*Area_CZ_arr Pin+List_II_J_Hole*Area_CZ_arr Hole+List_II_J_Tear*Area_CZ_arr Tear)*s_per_day),IF(OR(CM=1,AND(CM>1,GM_opt=\"No\")),List_I_J_Darcy_In*Area_Single*s_per_day,(List_I_J_Pin_In*Area_CZ_arr Pin+List_I_J_Hole_In*Area_CZ_arr Hole+List_I_J_Tear_In*Area_CZ_arr Tear)*s_per_day))","v":{"$error":"#NAME?"}},null,null,null,7.9432823472428185,250499352.10264954,{"$error":"#NAME?"},{"$error":"#NAME?"},{"$error":"#NAME?"},null,{"$f":"IF(NOT(Solution_type=\"a\"),n*GetJ_1laysol_L(Conc_def_arr Pin/1000,thick_cl,$G22,x,R_cl,D_cl_arr Pin,Decay_cl,vel_cl_arr Pin,nsum),0)","v":0},{"$f":"IF(NOT(Solution_type=\"a\"),Get_1laysol_inf(Conc_def_arr Pin,thick_cl,$G22,x,R_cl,D_cl_arr Pin,Decay_cl,vel_cl_arr Pin,nsum),0)","v":0},{"$f":"IF(NOT(Solution_type=\"a\"),(n)*GetJ_1laysol_inf(Conc_def_arr Pin/1000,thick_cl,$G22,x,R_cl,D_cl_arr Pin,Decay_cl,vel_cl_arr Pin,nsum),0)","v":0},null,{"$f":"IF(NOT(Solution_type=\"a\"),n*GetJ_1laysol_L(Conc_def_arr Hole/1000,thick_cl,$G22,x,R_cl,D_cl_arr Hole,Decay_cl,vel_cl_arr Hole,nsum),0)","v":0},{"$f":"IF(NOT(Solution_type=\"a\"),Get_1laysol_inf(Conc_def_arr Hole,thick_cl,$G22,x,R_cl,D_cl_arr Hole,Decay_cl,vel_cl_arr Hole,nsum),0)","v":0},{"$f":"IF(NOT(Solution_type=\"a\"),(n)*GetJ_1laysol_inf(Conc_def_arr Hole/1000,thick_cl,$G22,x,R_cl,D_cl_arr Hole,Decay_cl,vel_cl_arr Hole,nsum),0)","v":0},null,{"$f":"IF(NOT(Solution_type=\"a\"),n*GetJ_1laysol_L(Conc_def_arr Tear/1000,thick_cl,$G22,x,R_cl,D_cl_arr Tear,Decay_cl,vel_cl_arr Tear,nsum),0)","v":0},{"$f":"IF(NOT(Solution_type=\"a\"),Get_1laysol_inf(Conc_def_arr Tear,thick_cl,$G22,x,R_cl,D_cl_arr Tear,Decay_cl,vel_cl_arr Tear,nsum),0)","v":0},{"$f":"IF(NOT(Solution_type=\"a\"),(n)*GetJ_1laysol_inf(Conc_def_arr Tear/1000,thick_cl,$G22,x,R_cl,D_cl_arr Tear,Decay_cl,vel_cl_arr Tear,nsum),0)","v":0}]
[{"$f":"IF(OR(CM=1,AND(CM>1,GM_opt=\"No\")),IF(Cont_Class=\"List I\",List_I_C_Darcy,List_II_J_Darcy*Area_Single),IF(Area_Single=0,0,IF(Defect_Choice=1,List_I_C_Pin,IF(Defect_Choice=2,List_I_C_Hole,IF(Defect_Choice=3,List_I_C_Tear,(List_II_J_Pin*Area_CZ_arr Pin+List_II_J_Hole*Area_CZ_arr Hole+List_II_J_Tear*Area_CZ_arr Tear))))))*IF(Cont_Class=\"List II\",1000/aq_Q,1)","v":{"$error":"#NAME?"}},{"$f":"IF(Cont_Class=\"List II\",IF(OR(CM=1,AND(CM>1,GM_opt=\"No\")),List_II_J_Darcy*Area_Single*s_per_day,(List_II_J_Pin*Area_CZ_arr Pin+List_II_J_Hole*Area_CZ_arr Hole+List_II_J_Tear*Area_CZ_arr Tear)*s_per_day),IF(OR(CM=1,AND(CM>1,GM_opt=\"No\")),List_I_J_Darcy_In*Area_Single*s_per_day,(List_I_J_Pin_In*Area_CZ_arr Pin+List_I_J_Hole_In*Area_CZ_arr Hole+List_I_J_Tear_In*Area_CZ_arr Tear)*s_per_day))","v":{"$error":"#NAME?"}},null,null,null,10.000000000000005,315360000.00000018,{"$error":"#NAME?"},{"$error":"#NAME?"},{"$error":"#NAME?"},null,{"$f":"IF(NOT(Solution_type=\"a\"),n*GetJ_1laysol_L(Conc_def_arr Pin/1000,thick_cl,$G23,x,R_cl,D_cl_arr Pin,Decay_cl,vel_cl_arr Pin,nsum),0)","v":0},{"$f":"IF(NOT(Solution_type=\"a\"),Get_1laysol_inf(Conc_def_arr Pin,thick_cl,$G23,x,R_cl,D_cl_arr Pin,Decay_cl,vel_cl_arr Pin,nsum),0)","v":0},{"$f":"IF(NOT(Solution_type=\"a\"),(n)*GetJ_1laysol_inf(Conc_def_arr Pin/1000,thick_cl,$G23,x,R_cl,D_cl_arr Pin,Decay_cl,vel_cl_arr Pin,nsum),0)","v":0},null,{"$f":"IF(NOT(Solution_type=\"a\"),n*GetJ_1laysol_L(Conc_def_arr Hole/1000,thick_cl,$G23,x,R_cl,D_cl_arr Hole,Decay_cl,vel_cl_arr Hole,nsum),0)","v":0},{"$f":"IF(NOT(Solution_type=\"a\"),Get_1laysol_inf(Conc_def_arr Hole,thick_cl,$G23,x,R_cl,D_cl_arr Hole,Decay_cl,vel_cl_arr Hole,nsum),0)","v":0},{"$f":"IF(NOT(Solution_type=\"a\"),(n)*GetJ_1laysol_inf(Conc_def_arr Hole/1000,thick_cl,$G23,x,R_cl,D_cl_arr Hole,Decay_cl,vel_cl_arr Hole,nsum),0)","v":0},null,{"$f":"IF(NOT(Solution_type=\"a\"),n*GetJ_1laysol_L(Conc_def_arr Tear/1000,thick_cl,$G23,x,R_cl,D_cl_arr Tear,Decay_cl,vel_cl_arr Tear,nsum),0)","v":0},{"$f":"IF(NOT(Solution_type=\"a\"),Get_1laysol_inf(Conc_def_arr Tear,thick_cl,$G23,x,R_cl,D_cl_arr Tear,Decay_cl,vel_cl_arr Tear,nsum),0)","v":0},{"$f":"IF(NOT(Solution_type=\"a\"),(n)*GetJ_1laysol_inf(Conc_def_arr Tear/1000,thick_cl,$G23,x,R_cl,D_cl_arr Tear,Decay_cl,vel_cl_arr Tear,nsum),0)","v":0}]
[{"$f":"IF(OR(CM=1,AND(CM>1,GM_opt=\"No\")),IF(Cont_Class=\"List I\",List_I_C_Darcy,List_II_J_Darcy*Area_Single),IF(Area_Single=0,0,IF(Defect_Choice=1,List_I_C_Pin,IF(Defect_Choice=2,List_I_C_Hole,IF(Defect_Choice=3,List_I_C_Tear,(List_II_J_Pin*Area_CZ_arr Pin+List_II_J_Hole*Area_CZ_arr Hole+List_II_J_Tear*Area_CZ_arr Tear))))))*IF(Cont_Class=\"List II\",1000/aq_Q,1)","v":{"$error":"#NAME?"}},{"$f":"IF(Cont_Class=\"List II\",IF(OR(CM=1,AND(CM>1,GM_opt=\"No\")),List_II_J_Darcy*Area_Single*s_per_day,(List_II_J_Pin*Area_CZ_arr Pin+List_II_J_Hole*Area_CZ_arr Hole+List_II_J_Tear*Area_CZ_arr Tear)*s_per_day),IF(OR(CM=1,AND(CM>1,GM_opt=\"No\")),List_I_J_Darcy_In*Area_Single*s_per_day,(List_I_J_Pin_In*Area_CZ_arr Pin+List_I_J_Hole_In*Area_CZ_arr Hole+List_I_J_Tear_In*Area_CZ_arr Tear)*s_per_day))","v":{"$error":"#NAME?"}},null,null,null,12.58925411794168,397014717.8634088,{"$error":"#NAME?"},{"$error":"#NAME?"},{"$error":"#NAME?"},null,{"$f":"IF(NOT(Solution_type=\"a\"),n*GetJ_1laysol_L(Conc_def_arr Pin/1000,thick_cl,$G24,x,R_cl,D_cl_arr Pin,Decay_cl,vel_cl_arr Pin,nsum),0)","v":0},{"$f":"IF(NOT(Solution_type=\"a\"),Get_1laysol_inf(Conc_def_arr Pin,thick_cl,$G24,x,R_cl,D_cl_arr Pin,Decay_cl,vel_cl_arr Pin,nsum),0)","v":0},{"$f":"IF(NOT(Solution_type=\"a\"),(n)*GetJ_1laysol_inf(Conc_def_arr Pin/1000,thick_cl,$G24,x,R_cl,D_cl_arr Pin,Decay_cl,vel_cl_arr Pin,nsum),0)","v":0},null,{"$f":"IF(NOT(Solution_type=\"a\"),n*GetJ_1laysol_L(Conc_def_arr Hole/1000,thick_cl,$G24,x,R_cl,D_cl_arr Hole,Decay_cl,vel_cl_arr Hole,nsum),0)","v":0},{"$f":"IF(NOT(Solution_type=\"a\"),Get_1laysol_inf(Conc_def_arr Hole,thick_cl,$G24,x,R_cl,D_cl_arr Hole,Decay_cl,vel_cl_arr Hole,nsum),0)","v":0},{"$f":"IF(NOT(Solution_type=\"a\"),(n)*GetJ_1laysol_inf(Conc_def_arr Hole/1000,thick_cl,$G24,x,R_cl,D_cl_arr Hole,Decay_cl,vel_cl_arr Hole,nsum),0)","v":0},null,{"$f":"IF(NOT(Solution_type=\"a\"),n*GetJ_1laysol_L(Conc_def_arr Tear/1000,thick_cl,$G24,x,R_cl,D_cl_arr Tear,Decay_cl,vel_cl_arr Tear,nsum),0)","v":0},{"$f":"IF(NOT(Solution_type=\"a\"),Get_1laysol_inf(Conc_def_arr Tear,thick_cl,$G24,x,R_cl,D_cl_arr Tear,Decay_cl,vel_cl_arr Tear,nsum),0)","v":0},{"$f":"IF(NOT(Solution_type=\"a\"),(n)*GetJ_1laysol_inf(Conc_def_arr Tear/1000,thick_cl,$G24,x,R_cl,D_cl_arr Tear,Decay_cl,vel_cl_arr Tear,nsum),0)","v":0}]
[{"$f":"IF(OR(CM=1,AND(CM>1,GM_opt=\"No\")),IF(Cont_Class=\"List I\",List_I_C_Darcy,List_II_J_Darcy*Area_Single),IF(Area_Single=0,0,IF(Defect_Choice=1,List_I_C_Pin,IF(Defect_Choice=2,List_I_C_Hole,IF(Defect_Choice=3,List_I_C_Tear,(List_II_J_Pin*Area_CZ_arr Pin+List_II_J_Hole*Area_CZ_arr Hole+List_II_J_Tear*Area_CZ_arr Tear))))))*IF(Cont_Class=\"List II\",1000/aq_Q,1)","v":{"$error":"#NAME?"}},{"$f":"IF(Cont_Class=\"List II\",IF(OR(CM=1,AND(CM>1,GM_opt=\"No\")),List_II_J_Darcy*Area_Single*s_per_day,(List_II_J_Pin*Area_CZ_arr Pin+List_II_J_Hole*Area_CZ_arr Hole+List_II_J_Tear*Area_CZ_arr Tear)*s_per_day),IF(OR(CM=1,AND(CM>1,GM_opt=\"No\")),List_I_J_Darcy_In*Area_Single*s_per_day,(List_I_J_Pin_In*Area_CZ_arr Pin+List_I_J_Hole_In*Area_CZ_arr Hole+List_I_J_Tear_In*Area_CZ_arr Tear)*s_per_day))","v":{"$error":"#NAME?"}},null,null,null,15.848931924611145,499811917.17453718,{"$error":"#NAME?"},{"$error":"#NAME?"},{"$error":"#NAME?"},null,{"$f":"IF(NOT(Solution_type=\"a\"),n*GetJ_1laysol_L(Conc_def_arr Pin/1000,thick_cl,$G25,x,R_cl,D_cl_arr Pin,Decay_cl,vel_cl_arr Pin,nsum),0)","v":0},{"$f":"IF(NOT(Solution_type=\"a\"),Get_1laysol_inf(Conc_def_arr Pin,thick_cl,$G25,x,R_cl,D_cl_arr Pin,Decay_cl,vel_cl_arr Pin,nsum),0)","v":0},{"$f":"IF(NOT(Solution_type=\"a\"),(n)*GetJ_1laysol_inf(Conc_def_arr Pin/1000,thick_cl,$G25,x,R_cl,D_cl_arr Pin,Decay_cl,vel_cl_arr Pin,nsum),0)","v":0},null,{"$f":"IF(NOT(Solution_type=\"a\"),n*GetJ_1laysol_L(Conc_def_arr Hole/1000,thick_cl,$G25,x,R_cl,D_cl_arr Hole,Decay_cl,vel_cl_arr Hole,nsum),0)","v":0},{"$f":"IF(NOT(Solution_type=\"a\"),Get_1laysol_inf(Conc_def_arr Hole,thick_cl,$G25,x,R_cl,D_cl_arr Hole,Decay_cl,vel_cl_arr Hole,nsum),0)","v":0},{"$f":"IF(NOT(Solution_type=\"a\"),(n)*GetJ_1laysol_inf(Conc_def_arr Hole/1000,thick_cl,$G25,x,R_cl,D_cl_arr Hole,Decay_cl,vel_cl_arr Hole,nsum),0)","v":0},null,{"$f":"IF(NOT(Solution_type=\"a\"),n*GetJ_1laysol_L(Conc_def_arr Tear/1000,thick_cl,$G25,x,R_cl,D_cl_arr Tear,Decay_cl,vel_cl_arr Tear,nsum),0)","v":0},{"$f":"IF(NOT(Solution_type=\"a\"),Get_1laysol_inf(Conc_def_arr Tear,thick_cl,$G25,x,R_cl,D_cl_arr Tear,Decay_cl,vel_cl_arr Tear,nsum),0)","v":0},{"$f":"IF(NOT(Solution_type=\"a\"),(n)*GetJ_1laysol_inf(Conc_def_arr Tear/1000,thick_cl,$G25,x,R_cl,D_cl_arr Tear,Decay_cl,vel_cl_arr Tear,nsum),0)","v":0}]
[{"$f":"IF(OR(CM=1,AND(CM>1,GM_opt=\"No\")),IF(Cont_Class=\"List I\",List_I_C_Darcy,List_II_J_Darcy*Area_Single),IF(Area_Single=0,0,IF(Defect_Choice=1,List_I_C_Pin,IF(Defect_Choice=2,List_I_C_Hole,IF(Defect_Choice=3,List_I_C_Tear,(List_II_J_Pin*Area_CZ_arr Pin+List_II_J_Hole*Area_CZ_arr Hole+List_II_J_Tear*Area_CZ_arr Tear))))))*IF(Cont_Class=\"List II\",1000/aq_Q,1)","v":{"$error":"#NAME?"}},{"$f":"IF(Cont_Class=\"List II\",IF(OR(CM=1,AND(CM>1,GM_opt=\"No\")),List_II_J_Darcy*Area_Single*s_per_day,(List_II_J_Pin*Area_CZ_arr Pin+List_II_J_Hole*Area_CZ_arr Hole+List_II_J_Tear*Area_CZ_arr Tear)*s_per_day),IF(OR(CM=1,AND(CM>1,GM_opt=\"No\")),List_I_J_Darcy_In*Area_Single*s_per_day,(List_I_J_Pin_In*Area_CZ_arr Pin+List_I_J_Hole_In*Area_CZ_arr Hole+List_I_J_Tear_In*Area_CZ_arr Tear)*s_per_day))","v":{"$error":"#NAME?"}},null,null,null,19.952623149688812,629225923.64858639,{"$error":"#NAME?"},{"$error":"#NAME?"},{"$error":"#NAME?"},null,{"$f":"IF(NOT(Solution_type=\"a\"),n*GetJ_1laysol_L(Conc_def_arr Pin/1000,thick_cl,$G26,x,R_cl,D_cl_arr Pin,Decay_cl,vel_cl_arr Pin,nsum),0)","v":0},{"$f":"IF(NOT(Solution_type=\"a\"),Get_1laysol_inf(Conc_def_arr Pin,thick_cl,$G26,x,R_cl,D_cl_arr Pin,Decay_cl,vel_cl_arr Pin,nsum),0)","v":0},{"$f":"IF(NOT(Solution_type=\"a\"),(n)*GetJ_1laysol_inf(Conc_def_arr Pin/1000,thick_cl,$G26,x,R_cl,D_cl_arr Pin,Decay_cl,vel_cl_arr Pin,nsum),0)","v":0},null,{"$f":"IF(NOT(Solution_type=\"a\"),n*GetJ_1laysol_L(Conc_def_arr Hole/1000,thick_cl,$G26,x,R_cl,D_cl_arr Hole,Decay_cl,vel_cl_arr Hole,nsum),0)","v":0},{"$f":"IF(NOT(Solution_type=\"a\"),Get_1laysol_inf(Conc_def_arr Hole,thick_cl,$G26,x,R_cl,D_cl_arr Hole,Decay_cl,vel_cl_arr Hole,nsum),0)","v":0},{"$f":"IF(NOT(Solution_type=\"a\"),(n)*GetJ_1laysol_inf(Conc_def_arr Hole/1000,thick_cl,$G26,x,R_cl,D_cl_arr Hole,Decay_cl,vel_cl_arr Hole,nsum),0)","v":0},null,{"$f":"IF(NOT(Solution_type=\"a\"),n*GetJ_1laysol_L(Conc_def_arr Tear/1000,thick_cl,$G26,x,R_cl,D_cl_arr Tear,Decay_cl,vel_cl_arr Tear,nsum),0)","v":0},{"$f":"IF(NOT(Solution_type=\"a\"),Get_1laysol_inf(Conc_def_arr Tear,thick_cl,$G26,x,R_cl,D_cl_arr Tear,Decay_cl,vel_cl_arr Tear,nsum),0)","v":0},{"$f":"IF(NOT(Solution_type=\"a\"),(n)*GetJ_1laysol_inf(Conc_def_arr Tear/1000,thick_cl,$G26,x,R_cl,D_cl_arr Tear,Decay_cl,vel_cl_arr Tear,nsum),0)","v":0}]
[{"$f":"IF(OR(CM=1,AND(CM>1,GM_opt=\"No\")),IF(Cont_Class=\"List I\",List_I_C_Darcy,List_II_J_Darcy*Area_Single),IF(Area_Single=0,0,IF(Defect_Choice=1,List_I_C_Pin,IF(Defect_Choice=2,List_I_C_Hole,IF(Defect_Choice=3,List_I_C_Tear,(List_II_J_Pin*Area_CZ_arr Pin+List_II_J_Hole*Area_CZ_arr Hole+List_II_J_Tear*Area_CZ_arr Tear))))))*IF(Cont_Class=\"List II\",1000/aq_Q,1)","v":{"$error":"#NAME?"}},{"$f":"IF(Cont_Class=\"List II\",IF(OR(CM=1,AND(CM>1,GM_opt=\"No\")),List_II_J_Darcy*Area_Single*s_per_day,(List_II_J_Pin*Area_CZ_arr Pin+List_II_J_Hole*Area_CZ_arr Hole+List_II_J_Tear*Area_CZ_arr Tear)*s_per_day),IF(OR(CM=1,AND(CM>1,GM_opt=\"No\")),List_I_J_Darcy_In*Area_Single*s_per_day,(List_I_J_Pin_In*Area_CZ_arr Pin+List_I_J_Hole_In*Area_CZ_arr Hole+List_I_J_Tear_In*Area_CZ_arr Tear)*s_per_day))","v":{"$error":"#NAME?"}},null,null,null,25.118864315095824,792148505.04086196,{"$error":"#NAME?"},{"$error":"#NAME?"},{"$error":"#NAME?"},null,{"$f":"IF(NOT(Solution_type=\"a\"),n*GetJ_1laysol_L(Conc_def_arr Pin/1000,thick_cl,$G27,x,R_cl,D_cl_arr Pin,Decay_cl,vel_cl_arr Pin,nsum),0)","v":0},{"$f":"IF(NOT(Solution_type=\"a\"),Get_1laysol_inf(Conc_def_arr Pin,thick_cl,$G27,x,R_cl,D_cl_arr Pin,Decay_cl,vel_cl_arr Pin,nsum),0)","v":0},{"$f":"IF(NOT(Solution_type=\"a\"),(n)*GetJ_1laysol_inf(Conc_def_arr Pin/1000,thick_cl,$G27,x,R_cl,D_cl_arr Pin,Decay_cl,vel_cl_arr Pin,nsum),0)","v":0},null,{"$f":"IF(NOT(Solution_type=\"a\"),n*GetJ_1laysol_L(Conc_def_arr Hole/1000,thick_cl,$G27,x,R_cl,D_cl_arr Hole,Decay_cl,vel_cl_arr Hole,nsum),0)","v":0},{"$f":"IF(NOT(Solution_type=\"a\"),Get_1laysol_inf(Conc_def_arr Hole,thick_cl,$G27,x,R_cl,D_cl_arr Hole,Decay_cl,vel_cl_arr Hole,nsum),0)","v":0},{"$f":"IF(NOT(Solution_type=\"a\"),(n)*GetJ_1laysol_inf(Conc_def_arr Hole/1000,thick_cl,$G27,x,R_cl,D_cl_arr Hole,Decay_cl,vel_cl_arr Hole,nsum),0)","v":0},null,{"$f":"IF(NOT(Solution_type=\"a\"),n*GetJ_1laysol_L(Conc_def_arr Tear/1000,thick_cl,$G27,x,R_cl,D_cl_arr Tear,Decay_cl,vel_cl_arr Tear,nsum),0)","v":0},{"$f":"IF(NOT(Solution_type=\"a\"),Get_1laysol_inf(Conc_def_arr Tear,thick_cl,$G27,x,R_cl,D_cl_arr Tear,Decay_cl,vel_cl_arr Tear,nsum),0)","v":0},{"$f":"IF(NOT(Solution_type=\"a\"),(n)*GetJ_1laysol_inf(Conc_def_arr Tear/1000,thick_cl,$G27,x,R_cl,D_cl_arr Tear,Decay_cl,vel_cl_arr Tear,nsum),0)","v":0}]
[{"$f":"IF(OR(CM=1,AND(CM>1,GM_opt=\"No\")),IF(Cont_Class=\"List I\",List_I_C_Darcy,List_II_J_Darcy*Area_Single),IF(Area_Single=0,0,IF(Defect_Choice=1,List_I_C_Pin,IF(Defect_Choice=2,List_I_C_Hole,IF(Defect_Choice=3,List_I_C_Tear,(List_II_J_Pin*Area_CZ_arr Pin+List_II_J_Hole*Area_CZ_arr Hole+List_II_J_Tear*Area_CZ_arr Tear))))))*IF(Cont_Class=\"List II\",1000/aq_Q,1)","v":{"$error":"#NAME?"}},{"$f":"IF(Cont_Class=\"List II\",IF(OR(CM=1,AND(CM>1,GM_opt=\"No\")),List_II_J_Darcy*Area_Single*s_per_day,(List_II_J_Pin*Area_CZ_arr Pin+List_II_J_Hole*Area_CZ_arr Hole+List_II_J_Tear*Area_CZ_arr Tear)*s_per_day),IF(OR(CM=1,AND(CM>1,GM_opt=\"No\")),List_I_J_Darcy_In*Area_Single*s_per_day,(List_I_J_Pin_In*Area_CZ_arr Pin+List_I_J_Hole_In*Area_CZ_arr Hole+List_I_J_Tear_In*Area_CZ_arr Tear)*s_per_day))","v":{"$error":"#NAME?"}},null,null,null,31.622776601683825,997255882.91070092,{"$error":"#NAME?"},{"$error":"#NAME?"},{"$error":"#NAME?"},null,{"$f":"IF(NOT(Solution_type=\"a\"),n*GetJ_1laysol_L(Conc_def_arr Pin/1000,thick_cl,$G28,x,R_cl,D_cl_arr Pin,Decay_cl,vel_cl_arr Pin,nsum),0)","v":0},{"$f":"IF(NOT(Solution_type=\"a\"),Get_1laysol_inf(Conc_def_arr Pin,thick_cl,$G28,x,R_cl,D_cl_arr Pin,Decay_cl,vel_cl_arr Pin,nsum),0)","v":0},{"$f":"IF(NOT(Solution_type=\"a\"),(n)*GetJ_1laysol_inf(Conc_def_arr Pin/1000,thick_cl,$G28,x,R_cl,D_cl_arr Pin,Decay_cl,vel_cl_arr Pin,nsum),0)","v":0},null,{"$f":"IF(NOT(Solution_type=\"a\"),n*GetJ_1laysol_L(Conc_def_arr Hole/1000,thick_cl,$G28,x,R_cl,D_cl_arr Hole,Decay_cl,vel_cl_arr Hole,nsum),0)","v":0},{"$f":"IF(NOT(Solution_type=\"a\"),Get_1laysol_inf(Conc_def_arr Hole,thick_cl,$G28,x,R_cl,D_cl_arr Hole,Decay_cl,vel_cl_arr Hole,nsum),0)","v":0},{"$f":"IF(NOT(Solution_type=\"a\"),(n)*GetJ_1laysol_inf(Conc_def_arr Hole/1000,thick_cl,$G28,x,R_cl,D_cl_arr Hole,Decay_cl,vel_cl_arr Hole,nsum),0)","v":0},null,{"$f":"IF(NOT(Solution_type=\"a\"),n*GetJ_1laysol_L(Conc_def_arr Tear/1000,thick_cl,$G28,x,R_cl,D_cl_arr Tear,Decay_cl,vel_cl_arr Tear,nsum),0)","v":0},{"$f":"IF(NOT(Solution_type=\"a\"),Get_1laysol_inf(Conc_def_arr Tear,thick_cl,$G28,x,R_cl,D_cl_arr Tear,Decay_cl,vel_cl_arr Tear,nsum),0)","v":0},{"$f":"IF(NOT(Solution_type=\"a\"),(n)*GetJ_1laysol_inf(Conc_def_arr Tear/1000,thick_cl,$G28,x,R_cl,D_cl_arr Tear,Decay_cl,vel_cl_arr Tear,nsum),0)","v":0}]
[{"$f":"IF(OR(CM=1,AND(CM>1,GM_opt=\"No\")),IF(Cont_Class=\"List I\",List_I_C_Darcy,List_II_J_Darcy*Area_Single),IF(Area_Single=0,0,IF(Defect_Choice=1,List_I_C_Pin,IF(Defect_Choice=2,List_I_C_Hole,IF(Defect_Choice=3,List_I_C_Tear,(List_II_J_Pin*Area_CZ_arr Pin+List_II_J_Hole*Area_CZ_arr Hole+List_II_J_Tear*Area_CZ_arr Tear))))))*IF(Cont_Class=\"List II\",1000/aq_Q,1)","v":{"$error":"#NAME?"}},{"$f":"IF(Cont_Class=\"List II\",IF(OR(CM=1,AND(CM>1,GM_opt=\"No\")),List_II_J_Darcy*Area_Single*s_per_day,(List_II_J_Pin*Area_CZ_arr Pin+List_II_J_Hole*Area_CZ_arr Hole+List_II_J_Tear*Area_CZ_arr Tear)*s_per_day),IF(OR(CM=1,AND(CM>1,GM_opt=\"No\")),List_I_J_Darcy_In*Area_Single*s_per_day,(List_I_J_Pin_In*Area_CZ_arr Pin+List_I_J_Hole_In*Area_CZ_arr Hole+List_I_J_Tear_In*Area_CZ_arr Tear)*s_per_day))","v":{"$error":"#NAME?"}},null,null,null,39.81071705534977,1255470773.0575106,{"$error":"#NAME?"},{"$error":"#NAME?"},{"$error":"#NAME?"},null,{"$f":"IF(NOT(Solution_type=\"a\"),n*GetJ_1laysol_L(Conc_def_arr Pin/1000,thick_cl,$G29,x,R_cl,D_cl_arr Pin,Decay_cl,vel_cl_arr Pin,nsum),0)","v":0},{"$f":"IF(NOT(Solution_type=\"a\"),Get_1laysol_inf(Conc_def_arr Pin,thick_cl,$G29,x,R_cl,D_cl_arr Pin,Decay_cl,vel_cl_arr Pin,nsum),0)","v":0},{"$f":"IF(NOT(Solution_type=\"a\"),(n)*GetJ_1laysol_inf(Conc_def_arr Pin/1000,thick_cl,$G29,x,R_cl,D_cl_arr Pin,Decay_cl,vel_cl_arr Pin,nsum),0)","v":0},null,{"$f":"IF(NOT(Solution_type=\"a\"),n*GetJ_1laysol_L(Conc_def_arr Hole/1000,thick_cl,$G29,x,R_cl,D_cl_arr Hole,Decay_cl,vel_cl_arr Hole,nsum),0)","v":0},{"$f":"IF(NOT(Solution_type=\"a\"),Get_1laysol_inf(Conc_def_arr Hole,thick_cl,$G29,x,R_cl,D_cl_arr Hole,Decay_cl,vel_cl_arr Hole,nsum),0)","v":0},{"$f":"IF(NOT(Solution_type=\"a\"),(n)*GetJ_1laysol_inf(Conc_def_arr Hole/1000,thick_cl,$G29,x,R_cl,D_cl_arr Hole,Decay_cl,vel_cl_arr Hole,nsum),0)","v":0},null,{"$f":"IF(NOT(Solution_type=\"a\"),n*GetJ_1laysol_L(Conc_def_arr Tear/1000,thick_cl,$G29,x,R_cl,D_cl_arr Tear,Decay_cl,vel_cl_arr Tear,nsum),0)","v":0},{"$f":"IF(NOT(Solution_type=\"a\"),Get_1laysol_inf(Conc_def_arr Tear,thick_cl,$G29,x,R_cl,D_cl_arr Tear,Decay_cl,vel_cl_arr Tear,nsum),0)","v":0},{"$f":"IF(NOT(Solution_type=\"a\"),(n)*GetJ_1laysol_inf(Conc_def_arr Tear/1000,thick_cl,$G29,x,R_cl,D_cl_arr Tear,Decay_cl,vel_cl_arr Tear,nsum),0)","v":0}]
[{"$f":"IF(OR(CM=1,AND(CM>1,GM_opt=\"No\")),IF(Cont_Class=\"List I\",List_I_C_Darcy,List_II_J_Darcy*Area_Single),IF(Area_Single=0,0,IF(Defect_Choice=1,List_I_C_Pin,IF(Defect_Choice=2,List_I_C_Hole,IF(Defect_Choice=3,List_I_C_Tear,(List_II_J_Pin*Area_CZ_arr Pin+List_II_J_Hole*Area_CZ_arr Hole+List_II_J_Tear*Area_CZ_arr Tear))))))*IF(Cont_Class=\"List II\",1000/aq_Q,1)","v":{"$error":"#NAME?"}},{"$f":"IF(Cont_Class=\"List II\",IF(OR(CM=1,AND(CM>1,GM_opt=\"No\")),List_II_J_Darcy*Area_Single*s_per_day,(List_II_J_Pin*Area_CZ_arr Pin+List_II_J_Hole*Area_CZ_arr Hole+List_II_J_Tear*Area_CZ_arr Tear)*s_per_day),IF(OR(CM=1,AND(CM>1,GM_opt=\"No\")),List_I_J_Darcy_In*Area_Single*s_per_day,(List_I_J_Pin_In*Area_CZ_arr Pin+List_I_J_Hole_In*Area_CZ_arr Hole+List_I_J_Tear_In*Area_CZ_arr Tear)*s_per_day))","v":{"$error":"#NAME?"}},null,null,null,50.118723362727287,1580544059.9669676,{"$error":"#NAME?"},{"$error":"#NAME?"},{"$error":"#NAME?"},null,{"$f":"IF(NOT(Solution_type=\"a\"),n*GetJ_1laysol_L(Conc_def_arr Pin/1000,thick_cl,$G30,x,R_cl,D_cl_arr Pin,Decay_cl,vel_cl_arr Pin,nsum),0)","v":0},{"$f":"IF(NOT(Solution_type=\"a\"),Get_1laysol_inf(Conc_def_arr Pin,thick_cl,$G30,x,R_cl,D_cl_arr Pin,Decay_cl,vel_cl_arr Pin,nsum),0)","v":0},{"$f":"IF(NOT(Solution_type=\"a\"),(n)*GetJ_1laysol_inf(Conc_def_arr Pin/1000,thick_cl,$G30,x,R_cl,D_cl_arr Pin,Decay_cl,vel_cl_arr Pin,nsum),0)","v":0},null,{"$f":"IF(NOT(Solution_type=\"a\"),n*GetJ_1laysol_L(Conc_def_arr Hole/1000,thick_cl,$G30,x,R_cl,D_cl_arr Hole,Decay_cl,vel_cl_arr Hole,nsum),0)","v":0},{"$f":"IF(NOT(Solution_type=\"a\"),Get_1laysol_inf(Conc_def_arr Hole,thick_cl,$G30,x,R_cl,D_cl_arr Hole,Decay_cl,vel_cl_arr Hole,nsum),0)","v":0},{"$f":"IF(NOT(Solution_type=\"a\"),(n)*GetJ_1laysol_inf(Conc_def_arr Hole/1000,thick_cl,$G30,x,R_cl,D_cl_arr Hole,Decay_cl,vel_cl_arr Hole,nsum),0)","v":0},null,{"$f":"IF(NOT(Solution_type=\"a\"),n*GetJ_1laysol_L(Conc_def_arr Tear/1000,thick_cl,$G30,x,R_cl,D_cl_arr Tear,Decay_cl,vel_cl_arr Tear,nsum),0)","v":0},{"$f":"IF(NOT(Solution_type=\"a\"),Get_1laysol_inf(Conc_def_arr Tear,thick_cl,$G30,x,R_cl,D_cl_arr Tear,Decay_cl,vel_cl_arr Tear,nsum),0)","v":0},{"$f":"IF(NOT(Solution_type=\"a\"),(n)*GetJ_1laysol_inf(Conc_def_arr Tear/1000,thick_cl,$G30,x,R_cl,D_cl_arr Tear,Decay_cl,vel_cl_arr Tear,nsum),0)","v":0}]
[{"$f":"IF(OR(CM=1,AND(CM>1,GM_opt=\"No\")),IF(Cont_Class=\"List I\",List_I_C_Darcy,List_II_J_Darcy*Area_Single),IF(Area_Single=0,0,IF(Defect_Choice=1,List_I_C_Pin,IF(Defect_Choice=2,List_I_C_Hole,IF(Defect_Choice=3,List_I_C_Tear,(List_II_J_Pin*Area_CZ_arr Pin+List_II_J_Hole*Area_CZ_arr Hole+List_II_J_Tear*Area_CZ_arr Tear))))))*IF(Cont_Class=\"List II\",1000/aq_Q,1)","v":{"$error":"#NAME?"}},{"$f":"IF(Cont_Class=\"List II\",IF(OR(CM=1,AND(CM>1,GM_opt=\"No\")),List_II_J_Darcy*Area_Single*s_per_day,(List_II_J_Pin*Area_CZ_arr Pin+List_II_J_Hole*Area_CZ_arr Hole+List_II_J_Tear*Area_CZ_arr Tear)*s_per_day),IF(OR(CM=1,AND(CM>1,GM_opt=\"No\")),List_I_J_Darcy_In*Area_Single*s_per_day,(List_I_J_Pin_In*Area_CZ_arr Pin+List_I_J_Hole_In*Area_CZ_arr Hole+List_I_J_Tear_In*Area_CZ_arr Tear)*s_per_day))","v":{"$error":"#NAME?"}},null,null,null,63.0957344480194,1989787081.5527399,{"$error":"#NAME?"},{"$error":"#NAME?"},{"$error":"#NAME?"},null,{"$f":"IF(NOT(Solution_type=\"a\"),n*GetJ_1laysol_L(Conc_def_arr Pin/1000,thick_cl,$G31,x,R_cl,D_cl_arr Pin,Decay_cl,vel_cl_arr Pin,nsum),0)","v":0},{"$f":"IF(NOT(Solution_type=\"a\"),Get_1laysol_inf(Conc_def_arr Pin,thick_cl,$G31,x,R_cl,D_cl_arr Pin,Decay_cl,vel_cl_arr Pin,nsum),0)","v":0},{"$f":"IF(NOT(Solution_type=\"a\"),(n)*GetJ_1laysol_inf(Conc_def_arr Pin/1000,thick_cl,$G31,x,R_cl,D_cl_arr Pin,Decay_cl,vel_cl_arr Pin,nsum),0)","v":0},null,{"$f":"IF(NOT(Solution_type=\"a\"),n*GetJ_1laysol_L(Conc_def_arr Hole/1000,thick_cl,$G31,x,R_cl,D_cl_arr Hole,Decay_cl,vel_cl_arr Hole,nsum),0)","v":0},{"$f":"IF(NOT(Solution_type=\"a\"),Get_1laysol_inf(Conc_def_arr Hole,thick_cl,$G31,x,R_cl,D_cl_arr Hole,Decay_cl,vel_cl_arr Hole,nsum),0)","v":0},{"$f":"IF(NOT(Solution_type=\"a\"),(n)*GetJ_1laysol_inf(Conc_def_arr Hole/1000,thick_cl,$G31,x,R_cl,D_cl_arr Hole,Decay_cl,vel_cl_arr Hole,nsum),0)","v":0},null,{"$f":"IF(NOT(Solution_type=\"a\"),n*GetJ_1laysol_L(Conc_def_arr Tear/1000,thick_cl,$G31,x,R_cl,D_cl_arr Tear,Decay_cl,vel_cl_arr Tear,nsum),0)","v":0},{"$f":"IF(NOT(Solution_type=\"a\"),Get_1laysol_inf(Conc_def_arr Tear,thick_cl,$G31,x,R_cl,D_cl_arr Tear,Decay_cl,vel_cl_arr Tear,nsum),0)","v":0},{"$f":"IF(NOT(Solution_type=\"a\"),(n)*GetJ_1laysol_inf(Conc_def_arr Tear/1000,thick_cl,$G31,x,R_cl,D_cl_arr Tear,Decay_cl,vel_cl_arr Tear,nsum),0)","v":0}]
[{"$f":"IF(OR(CM=1,AND(CM>1,GM_opt=\"No\")),IF(Cont_Class=\"List I\",List_I_C_Darcy,List_II_J_Darcy*Area_Single),IF(Area_Single=0,0,IF(Defect_Choice=1,List_I_C_Pin,IF(Defect_Choice=2,List_I_C_Hole,IF(Defect_Choice=3,List_I_C_Tear,(List_II_J_Pin*Area_CZ_arr Pin+List_II_J_Hole*Area_CZ_arr Hole+List_II_J_Tear*Area_CZ_arr Tear))))))*IF(Cont_Class=\"List II\",1000/aq_Q,1)","v":{"$error":"#NAME?"}},{"$f":"IF(Cont_Class=\"List II\",IF(OR(CM=1,AND(CM>1,GM_opt=\"No\")),List_II_J_Darcy*Area_Single*s_per_day,(List_II_J_Pin*Area_CZ_arr Pin+List_II_J_Hole*Area_CZ_arr Hole+List_II_J_Tear*Area_CZ_arr Tear)*s_per_day),IF(OR(CM=1,AND(CM>1,GM_opt=\"No\")),List_I_J_Darcy_In*Area_Single*s_per_day,(List_I_J_Pin_In*Area_CZ_arr Pin+List_I_J_Hole_In*Area_CZ_arr Hole+List_I_J_Tear_In*Area_CZ_arr Tear)*s_per_day))","v":{"$error":"#NAME?"}},null,null,null,79.432823472428254,2504993521.0264974,{"$error":"#NAME?"},{"$error":"#NAME?"},{"$error":"#NAME?"},null,{"$f":"IF(NOT(Solution_type=\"a\"),n*GetJ_1laysol_L(Conc_def_arr Pin/1000,thick_cl,$G32,x,R_cl,D_cl_arr Pin,Decay_cl,vel_cl_arr Pin,nsum),0)","v":0},{"$f":"IF(NOT(Solution_type=\"a\"),Get_1laysol_inf(Conc_def_arr Pin,thick_cl,$G32,x,R_cl,D_cl_arr Pin,Decay_cl,vel_cl_arr Pin,nsum),0)","v":0},{"$f":"IF(NOT(Solution_type=\"a\"),(n)*GetJ_1laysol_inf(Conc_def_arr Pin/1000,thick_cl,$G32,x,R_cl,D_cl_arr Pin,Decay_cl,vel_cl_arr Pin,nsum),0)","v":0},null,{"$f":"IF(NOT(Solution_type=\"a\"),n*GetJ_1laysol_L(Conc_def_arr Hole/1000,thick_cl,$G32,x,R_cl,D_cl_arr Hole,Decay_cl,vel_cl_arr Hole,nsum),0)","v":0},{"$f":"IF(NOT(Solution_type=\"a\"),Get_1laysol_inf(Conc_def_arr Hole,thick_cl,$G32,x,R_cl,D_cl_arr Hole,Decay_cl,vel_cl_arr Hole,nsum),0)","v":0},{"$f":"IF(NOT(Solution_type=\"a\"),(n)*GetJ_1laysol_inf(Conc_def_arr Hole/1000,thick_cl,$G32,x,R_cl,D_cl_arr Hole,Decay_cl,vel_cl_arr Hole,nsum),0)","v":0},null,{"$f":"IF(NOT(Solution_type=\"a\"),n*GetJ_1laysol_L(Conc_def_arr Tear/1000,thick_cl,$G32,x,R_cl,D_cl_arr Tear,Decay_cl,vel_cl_arr Tear,nsum),0)","v":0},{"$f":"IF(NOT(Solution_type=\"a\"),Get_1laysol_inf(Conc_def_arr Tear,thick_cl,$G32,x,R_cl,D_cl_arr Tear,Decay_cl,vel_cl_arr Tear,nsum),0)","v":0},{"$f":"IF(NOT(Solution_type=\"a\"),(n)*GetJ_1laysol_inf(Conc_def_arr Tear/1000,thick_cl,$G32,x,R_cl,D_cl_arr Tear,Decay_cl,vel_cl_arr Tear,nsum),0)","v":0}]
[{"$f":"IF(OR(CM=1,AND(CM>1,GM_opt=\"No\")),IF(Cont_Class=\"List I\",List_I_C_Darcy,List_II_J_Darcy*Area_Single),IF(Area_Single=0,0,IF(Defect_Choice=1,List_I_C_Pin,IF(Defect_Choice=2,List_I_C_Hole,IF(Defect_Choice=3,List_I_C_Tear,(List_II_J_Pin*Area_CZ_arr Pin+List_II_J_Hole*Area_CZ_arr Hole+List_II_J_Tear*Area_CZ_arr Tear))))))*IF(Cont_Class=\"List II\",1000/aq_Q,1)","v":{"$error":"#NAME?"}},{"$f":"IF(Cont_Class=\"List II\",IF(OR(CM=1,AND(CM>1,GM_opt=\"No\")),List_II_J_Darcy*Area_Single*s_per_day,(List_II_J_Pin*Area_CZ_arr Pin+List_II_J_Hole*Area_CZ_arr Hole+List_II_J_Tear*Area_CZ_arr Tear)*s_per_day),IF(OR(CM=1,AND(CM>1,GM_opt=\"No\")),List_I_J_Darcy_In*Area_Single*s_per_day,(List_I_J_Pin_In*Area_CZ_arr Pin+List_I_J_Hole_In*Area_CZ_arr Hole+List_I_J_Tear_In*Area_CZ_arr Tear)*s_per_day))","v":{"$error":"#NAME?"}},null,null,null,100.00000000000014,3153600000.0000038,{"$error":"#NAME?"},{"$error":"#NAME?"},{"$error":"#NAME?"},null,{"$f":"IF(NOT(Solution_type=\"a\"),n*GetJ_1laysol_L(Conc_def_arr Pin/1000,thick_cl,$G33,x,R_cl,D_cl_arr Pin,Decay_cl,vel_cl_arr Pin,nsum),0)","v":0},{"$f":"IF(NOT(Solution_type=\"a\"),Get_1laysol_inf(Conc_def_arr Pin,thick_cl,$G33,x,R_cl,D_cl_arr Pin,Decay_cl,vel_cl_arr Pin,nsum),0)","v":0},{"$f":"IF(NOT(Solution_type=\"a\"),(n)*GetJ_1laysol_inf(Conc_def_arr Pin/1000,thick_cl,$G33,x,R_cl,D_cl_arr Pin,Decay_cl,vel_cl_arr Pin,nsum),0)","v":0},null,{"$f":"IF(NOT(Solution_type=\"a\"),n*GetJ_1laysol_L(Conc_def_arr Hole/1000,thick_cl,$G33,x,R_cl,D_cl_arr Hole,Decay_cl,vel_cl_arr Hole,nsum),0)","v":0},{"$f":"IF(NOT(Solution_type=\"a\"),Get_1laysol_inf(Conc_def_arr Hole,thick_cl,$G33,x,R_cl,D_cl_arr Hole,Decay_cl,vel_cl_arr Hole,nsum),0)","v":0},{"$f":"IF(NOT(Solution_type=\"a\"),(n)*GetJ_1laysol_inf(Conc_def_arr Hole/1000,thick_cl,$G33,x,R_cl,D_cl_arr Hole,Decay_cl,vel_cl_arr Hole,nsum),0)","v":0},null,{"$f":"IF(NOT(Solution_type=\"a\"),n*GetJ_1laysol_L(Conc_def_arr Tear/1000,thick_cl,$G33,x,R_cl,D_cl_arr Tear,Decay_cl,vel_cl_arr Tear,nsum),0)","v":0},{"$f":"IF(NOT(Solution_type=\"a\"),Get_1laysol_inf(Conc_def_arr Tear,thick_cl,$G33,x,R_cl,D_cl_arr Tear,Decay_cl,vel_cl_arr Tear,nsum),0)","v":0},{"$f":"IF(NOT(Solution_type=\"a\"),(n)*GetJ_1laysol_inf(Conc_def_arr Tear/1000,thick_cl,$G33,x,R_cl,D_cl_arr Tear,Decay_cl,vel_cl_arr Tear,nsum),0)","v":0}]
[{"$f":"IF(OR(CM=1,AND(CM>1,GM_opt=\"No\")),IF(Cont_Class=\"List I\",List_I_C_Darcy,List_II_J_Darcy*Area_Single),IF(Area_Single=0,0,IF(Defect_Choice=1,List_I_C_Pin,IF(Defect_Choice=2,List_I_C_Hole,IF(Defect_Choice=3,List_I_C_Tear,(List_II_J_Pin*Area_CZ_arr Pin+List_II_J_Hole*Area_CZ_arr Hole+List_II_J_Tear*Area_CZ_arr Tear))))))*IF(Cont_Class=\"List II\",1000/aq_Q,1)","v":{"$error":"#NAME?"}},{"$f":"IF(Cont_Class=\"List II\",IF(OR(CM=1,AND(CM>1,GM_opt=\"No\")),List_II_J_Darcy*Area_Single*s_per_day,(List_II_J_Pin*Area_CZ_arr Pin+List_II_J_Hole*Area_CZ_arr Hole+List_II_J_Tear*Area_CZ_arr Tear)*s_per_day),IF(OR(CM=1,AND(CM>1,GM_opt=\"No\")),List_I_J_Darcy_In*Area_Single*s_per_day,(List_I_J_Pin_In*Area_CZ_arr Pin+List_I_J_Hole_In*Area_CZ_arr Hole+List_I_J_Tear_In*Area_CZ_arr Tear)*s_per_day))","v":{"$error":"#NAME?"}},null,null,null,125.89254117941691,3970147178.6340914,{"$error":"#NAME?"},{"$error":"#NAME?"},{"$error":"#NAME?"},null,{"$f":"IF(NOT(Solution_type=\"a\"),n*GetJ_1laysol_L(Conc_def_arr Pin/1000,thick_cl,$G34,x,R_cl,D_cl_arr Pin,Decay_cl,vel_cl_arr Pin,nsum),0)","v":0},{"$f":"IF(NOT(Solution_type=\"a\"),Get_1laysol_inf(Conc_def_arr Pin,thick_cl,$G34,x,R_cl,D_cl_arr Pin,Decay_cl,vel_cl_arr Pin,nsum),0)","v":0},{"$f":"IF(NOT(Solution_type=\"a\"),(n)*GetJ_1laysol_inf(Conc_def_arr Pin/1000,thick_cl,$G34,x,R_cl,D_cl_arr Pin,Decay_cl,vel_cl_arr Pin,nsum),0)","v":0},null,{"$f":"IF(NOT(Solution_type=\"a\"),n*GetJ_1laysol_L(Conc_def_arr Hole/1000,thick_cl,$G34,x,R_cl,D_cl_arr Hole,Decay_cl,vel_cl_arr Hole,nsum),0)","v":0},{"$f":"IF(NOT(Solution_type=\"a\"),Get_1laysol_inf(Conc_def_arr Hole,thick_cl,$G34,x,R_cl,D_cl_arr Hole,Decay_cl,vel_cl_arr Hole,nsum),0)","v":0},{"$f":"IF(NOT(Solution_type=\"a\"),(n)*GetJ_1laysol_inf(Conc_def_arr Hole/1000,thick_cl,$G34,x,R_cl,D_cl_arr Hole,Decay_cl,vel_cl_arr Hole,nsum),0)","v":0},null,{"$f":"IF(NOT(Solution_type=\"a\"),n*GetJ_1laysol_L(Conc_def_arr Tear/1000,thick_cl,$G34,x,R_cl,D_cl_arr Tear,Decay_cl,vel_cl_arr Tear,nsum),0)","v":0},{"$f":"IF(NOT(Solution_type=\"a\"),Get_1laysol_inf(Conc_def_arr Tear,thick_cl,$G34,x,R_cl,D_cl_arr Tear,Decay_cl,vel_cl_arr Tear,nsum),0)","v":0},{"$f":"IF(NOT(Solution_type=\"a\"),(n)*GetJ_1laysol_inf(Conc_def_arr Tear/1000,thick_cl,$G34,x,R_cl,D_cl_arr Tear,Decay_cl,vel_cl_arr Tear,nsum),0)","v":0}]
[{"$f":"IF(OR(CM=1,AND(CM>1,GM_opt=\"No\")),IF(Cont_Class=\"List I\",List_I_C_Darcy,List_II_J_Darcy*Area_Single),IF(Area_Single=0,0,IF(Defect_Choice=1,List_I_C_Pin,IF(Defect_Choice=2,List_I_C_Hole,IF(Defect_Choice=3,List_I_C_Tear,(List_II_J_Pin*Area_CZ_arr Pin+List_II_J_Hole*Area_CZ_arr Hole+List_II_J_Tear*Area_CZ_arr Tear))))))*IF(Cont_Class=\"List II\",1000/aq_Q,1)","v":{"$error":"#NAME?"}},{"$f":"IF(Cont_Class=\"List II\",IF(OR(CM=1,AND(CM>1,GM_opt=\"No\")),List_II_J_Darcy*Area_Single*s_per_day,(List_II_J_Pin*Area_CZ_arr Pin+List_II_J_Hole*Area_CZ_arr Hole+List_II_J_Tear*Area_CZ_arr Tear)*s_per_day),IF(OR(CM=1,AND(CM>1,GM_opt=\"No\")),List_I_J_Darcy_In*Area_Single*s_per_day,(List_I_J_Pin_In*Area_CZ_arr Pin+List_I_J_Hole_In*Area_CZ_arr Hole+List_I_J_Tear_In*Area_CZ_arr Tear)*s_per_day))","v":{"$error":"#NAME?"}},null,null,null,158.48931924611159,4998119171.7453747,{"$error":"#NAME?"},{"$error":"#NAME?"},{"$error":"#NAME?"},null,{"$f":"IF(NOT(Solution_type=\"a\"),n*GetJ_1laysol_L(Conc_def_arr Pin/1000,thick_cl,$G35,x,R_cl,D_cl_arr Pin,Decay_cl,vel_cl_arr Pin,nsum),0)","v":0},{"$f":"IF(NOT(Solution_type=\"a\"),Get_1laysol_inf(Conc_def_arr Pin,thick_cl,$G35,x,R_cl,D_cl_arr Pin,Decay_cl,vel_cl_arr Pin,nsum),0)","v":0},{"$f":"IF(NOT(Solution_type=\"a\"),(n)*GetJ_1laysol_inf(Conc_def_arr Pin/1000,thick_cl,$G35,x,R_cl,D_cl_arr Pin,Decay_cl,vel_cl_arr Pin,nsum),0)","v":0},null,{"$f":"IF(NOT(Solution_type=\"a\"),n*GetJ_1laysol_L(Conc_def_arr Hole/1000,thick_cl,$G35,x,R_cl,D_cl_arr Hole,Decay_cl,vel_cl_arr Hole,nsum),0)","v":0},{"$f":"IF(NOT(Solution_type=\"a\"),Get_1laysol_inf(Conc_def_arr Hole,thick_cl,$G35,x,R_cl,D_cl_arr Hole,Decay_cl,vel_cl_arr Hole,nsum),0)","v":0},{"$f":"IF(NOT(Solution_type=\"a\"),(n)*GetJ_1laysol_inf(Conc_def_arr Hole/1000,thick_cl,$G35,x,R_cl,D_cl_arr Hole,Decay_cl,vel_cl_arr Hole,nsum),0)","v":0},null,{"$f":"IF(NOT(Solution_type=\"a\"),n*GetJ_1laysol_L(Conc_def_arr Tear/1000,thick_cl,$G35,x,R_cl,D_cl_arr Tear,Decay_cl,vel_cl_arr Tear,nsum),0)","v":0},{"$f":"IF(NOT(Solution_type=\"a\"),Get_1laysol_inf(Conc_def_arr Tear,thick_cl,$G35,x,R_cl,D_cl_arr Tear,Decay_cl,vel_cl_arr Tear,nsum),0)","v":0},{"$f":"IF(NOT(Solution_type=\"a\"),(n)*GetJ_1laysol_inf(Conc_def_arr Tear/1000,thick_cl,$G35,x,R_cl,D_cl_arr Tear,Decay_cl,vel_cl_arr Tear,nsum),0)","v":0}]
[{"$f":"IF(OR(CM=1,AND(CM>1,GM_opt=\"No\")),IF(Cont_Class=\"List I\",List_I_C_Darcy,List_II_J_Darcy*Area_Single),IF(Area_Single=0,0,IF(Defect_Choice=1,List_I_C_Pin,IF(Defect_Choice=2,List_I_C_Hole,IF(Defect_Choice=3,List_I_C_Tear,(List_II_J_Pin*Area_CZ_arr Pin+List_II_J_Hole*Area_CZ_arr Hole+List_II_J_Tear*Area_CZ_arr Tear))))))*IF(Cont_Class=\"List II\",1000/aq_Q,1)","v":{"$error":"#NAME?"}},{"$f":"IF(Cont_Class=\"List II\",IF(OR(CM=1,AND(CM>1,GM_opt=\"No\")),List_II_J_Darcy*Area_Single*s_per_day,(List_II_J_Pin*Area_CZ_arr Pin+List_II_J_Hole*Area_CZ_arr Hole+List_II_J_Tear*Area_CZ_arr Tear)*s_per_day),IF(OR(CM=1,AND(CM>1,GM_opt=\"No\")),List_I_J_Darcy_In*Area_Single*s_per_day,(List_I_J_Pin_In*Area_CZ_arr Pin+List_I_J_Hole_In*Area_CZ_arr Hole+List_I_J_Tear_In*Area_CZ_arr Tear)*s_per_day))","v":{"$error":"#NAME?"}},null,null,null,199.52623149688827,6292259236.4858685,{"$error":"#NAME?"},{"$error":"#NAME?"},{"$error":"#NAME?"},null,{"$f":"IF(NOT(Solution_type=\"a\"),n*GetJ_1laysol_L(Conc_def_arr Pin/1000,thick_cl,$G36,x,R_cl,D_cl_arr Pin,Decay_cl,vel_cl_arr Pin,nsum),0)","v":0},{"$f":"IF(NOT(Solution_type=\"a\"),Get_1laysol_inf(Conc_def_arr Pin,thick_cl,$G36,x,R_cl,D_cl_arr Pin,Decay_cl,vel_cl_arr Pin,nsum),0)","v":0},{"$f":"IF(NOT(Solution_type=\"a\"),(n)*GetJ_1laysol_inf(Conc_def_arr Pin/1000,thick_cl,$G36,x,R_cl,D_cl_arr Pin,Decay_cl,vel_cl_arr Pin,nsum),0)","v":0},null,{"$f":"IF(NOT(Solution_type=\"a\"),n*GetJ_1laysol_L(Conc_def_arr Hole/1000,thick_cl,$G36,x,R_cl,D_cl_arr Hole,Decay_cl,vel_cl_arr Hole,nsum),0)","v":0},{"$f":"IF(NOT(Solution_type=\"a\"),Get_1laysol_inf(Conc_def_arr Hole,thick_cl,$G36,x,R_cl,D_cl_arr Hole,Decay_cl,vel_cl_arr Hole,nsum),0)","v":0},{"$f":"IF(NOT(Solution_type=\"a\"),(n)*GetJ_1laysol_inf(Conc_def_arr Hole/1000,thick_cl,$G36,x,R_cl,D_cl_arr Hole,Decay_cl,vel_cl_arr Hole,nsum),0)","v":0},null,{"$f":"IF(NOT(Solution_type=\"a\"),n*GetJ_1laysol_L(Conc_def_arr Tear/1000,thick_cl,$G36,x,R_cl,D_cl_arr Tear,Decay_cl,vel_cl_arr Tear,nsum),0)","v":0},{"$f":"IF(NOT(Solution_type=\"a\"),Get_1laysol_inf(Conc_def_arr Tear,thick_cl,$G36,x,R_cl,D_cl_arr Tear,Decay_cl,vel_cl_arr Tear,nsum),0)","v":0},{"$f":"IF(NOT(Solution_type=\"a\"),(n)*GetJ_1laysol_inf(Conc_def_arr Tear/1000,thick_cl,$G36,x,R_cl,D_cl_arr Tear,Decay_cl,vel_cl_arr Tear,nsum),0)","v":0}]
[{"$f":"IF(OR(CM=1,AND(CM>1,GM_opt=\"No\")),IF(Cont_Class=\"List I\",List_I_C_Darcy,List_II_J_Darcy*Area_Single),IF(Area_Single=0,0,IF(Defect_Choice=1,List_I_C_Pin,IF(Defect_Choice=2,List_I_C_Hole,IF(Defect_Choice=3,List_I_C_Tear,(List_II_J_Pin*Area_CZ_arr Pin+List_II_J_Hole*Area_CZ_arr Hole+List_II_J_Tear*Area_CZ_arr Tear))))))*IF(Cont_Class=\"List II\",1000/aq_Q,1)","v":{"$error":"#NAME?"}},{"$f":"IF(Cont_Class=\"List II\",IF(OR(CM=1,AND(CM>1,GM_opt=\"No\")),List_II_J_Darcy*Area_Single*s_per_day,(List_II_J_Pin*Area_CZ_arr Pin+List_II_J_Hole*Area_CZ_arr Hole+List_II_J_Tear*Area_CZ_arr Tear)*s_per_day),IF(OR(CM=1,AND(CM>1,GM_opt=\"No\")),List_I_J_Darcy_In*Area_Single*s_per_day,(List_I_J_Pin_In*Area_CZ_arr Pin+List_I_J_Hole_In*Area_CZ_arr Hole+List_I_J_Tear_In*Area_CZ_arr Tear)*s_per_day))","v":{"$error":"#NAME?"}},null,null,null,251.18864315095843,7921485050.4086246,{"$error":"#NAME?"},{"$error":"#NAME?"},{"$error":"#NAME?"},null,{"$f":"IF(NOT(Solution_type=\"a\"),n*GetJ_1laysol_L(Conc_def_arr Pin/1000,thick_cl,$G37,x,R_cl,D_cl_arr Pin,Decay_cl,vel_cl_arr Pin,nsum),0)","v":0},{"$f":"IF(NOT(Solution_type=\"a\"),Get_1laysol_inf(Conc_def_arr Pin,thick_cl,$G37,x,R_cl,D_cl_arr Pin,Decay_cl,vel_cl_arr Pin,nsum),0)","v":0},{"$f":"IF(NOT(Solution_type=\"a\"),(n)*GetJ_1laysol_inf(Conc_def_arr Pin/1000,thick_cl,$G37,x,R_cl,D_cl_arr Pin,Decay_cl,vel_cl_arr Pin,nsum),0)","v":0},null,{"$f":"IF(NOT(Solution_type=\"a\"),n*GetJ_1laysol_L(Conc_def_arr Hole/1000,thick_cl,$G37,x,R_cl,D_cl_arr Hole,Decay_cl,vel_cl_arr Hole,nsum),0)","v":0},{"$f":"IF(NOT(Solution_type=\"a\"),Get_1laysol_inf(Conc_def_arr Hole,thick_cl,$G37,x,R_cl,D_cl_arr Hole,Decay_cl,vel_cl_arr Hole,nsum),0)","v":0},{"$f":"IF(NOT(Solution_type=\"a\"),(n)*GetJ_1laysol_inf(Conc_def_arr Hole/1000,thick_cl,$G37,x,R_cl,D_cl_arr Hole,Decay_cl,vel_cl_arr Hole,nsum),0)","v":0},null,{"$f":"IF(NOT(Solution_type=\"a\"),n*GetJ_1laysol_L(Conc_def_arr Tear/1000,thick_cl,$G37,x,R_cl,D_cl_arr Tear,Decay_cl,vel_cl_arr Tear,nsum),0)","v":0},{"$f":"IF(NOT(Solution_type=\"a\"),Get_1laysol_inf(Conc_def_arr Tear,thick_cl,$G37,x,R_cl,D_cl_arr Tear,Decay_cl,vel_cl_arr Tear,nsum),0)","v":0},{"$f":"IF(NOT(Solution_type=\"a\"),(n)*GetJ_1laysol_inf(Conc_def_arr Tear/1000,thick_cl,$G37,x,R_cl,D_cl_arr Tear,Decay_cl,vel_cl_arr Tear,nsum),0)","v":0}]
[{"$f":"IF(OR(CM=1,AND(CM>1,GM_opt=\"No\")),IF(Cont_Class=\"List I\",List_I_C_Darcy,List_II_J_Darcy*Area_Single),IF(Area_Single=0,0,IF(Defect_Choice=1,List_I_C_Pin,IF(Defect_Choice=2,List_I_C_Hole,IF(Defect_Choice=3,List_I_C_Tear,(List_II_J_Pin*Area_CZ_arr Pin+List_II_J_Hole*Area_CZ_arr Hole+List_II_J_Tear*Area_CZ_arr Tear))))))*IF(Cont_Class=\"List II\",1000/aq_Q,1)","v":{"$error":"#NAME?"}},{"$f":"IF(Cont_Class=\"List II\",IF(OR(CM=1,AND(CM>1,GM_opt=\"No\")),List_II_J_Darcy*Area_Single*s_per_day,(List_II_J_Pin*Area_CZ_arr Pin+List_II_J_Hole*Area_CZ_arr Hole+List_II_J_Tear*Area_CZ_arr Tear)*s_per_day),IF(OR(CM=1,AND(CM>1,GM_opt=\"No\")),List_I_J_Darcy_In*Area_Single*s_per_day,(List_I_J_Pin_In*Area_CZ_arr Pin+List_I_J_Hole_In*Area_CZ_arr Hole+List_I_J_Tear_In*Area_CZ_arr Tear)*s_per_day))","v":{"$error":"#NAME?"}},null,null,null,316.22776601683847,9972558829.1070175,{"$error":"#NAME?"},{"$error":"#NAME?"},{"$error":"#NAME?"},null,{"$f":"IF(NOT(Solution_type=\"a\"),n*GetJ_1laysol_L(Conc_def_arr Pin/1000,thick_cl,$G38,x,R_cl,D_cl_arr Pin,Decay_cl,vel_cl_arr Pin,nsum),0)","v":0},{"$f":"IF(NOT(Solution_type=\"a\"),Get_1laysol_inf(Conc_def_arr Pin,thick_cl,$G38,x,R_cl,D_cl_arr Pin,Decay_cl,vel_cl_arr Pin,nsum),0)","v":0},{"$f":"IF(NOT(Solution_type=\"a\"),(n)*GetJ_1laysol_inf(Conc_def_arr Pin/1000,thick_cl,$G38,x,R_cl,D_cl_arr Pin,Decay_cl,vel_cl_arr Pin,nsum),0)","v":0},null,{"$f":"IF(NOT(Solution_type=\"a\"),n*GetJ_1laysol_L(Conc_def_arr Hole/1000,thick_cl,$G38,x,R_cl,D_cl_arr Hole,Decay_cl,vel_cl_arr Hole,nsum),0)","v":0},{"$f":"IF(NOT(Solution_type=\"a\"),Get_1laysol_inf(Conc_def_arr Hole,thick_cl,$G38,x,R_cl,D_cl_arr Hole,Decay_cl,vel_cl_arr Hole,nsum),0)","v":0},{"$f":"IF(NOT(Solution_type=\"a\"),(n)*GetJ_1laysol_inf(Conc_def_arr Hole/1000,thick_cl,$G38,x,R_cl,D_cl_arr Hole,Decay_cl,vel_cl_arr Hole,nsum),0)","v":0},null,{"$f":"IF(NOT(Solution_type=\"a\"),n*GetJ_1laysol_L(Conc_def_arr Tear/1000,thick_cl,$G38,x,R_cl,D_cl_arr Tear,Decay_cl,vel_cl_arr Tear,nsum),0)","v":0},{"$f":"IF(NOT(Solution_type=\"a\"),Get_1laysol_inf(Conc_def_arr Tear,thick_cl,$G38,x,R_cl,D_cl_arr Tear,Decay_cl,vel_cl_arr Tear,nsum),0)","v":0},{"$f":"IF(NOT(Solution_type=\"a\"),(n)*GetJ_1laysol_inf(Conc_def_arr Tear/1000,thick_cl,$G38,x,R_cl,D_cl_arr Tear,Decay_cl,vel_cl_arr Tear,nsum),0)","v":0}]
[{"$f":"IF(OR(CM=1,AND(CM>1,GM_opt=\"No\")),IF(Cont_Class=\"List I\",List_I_C_Darcy,List_II_J_Darcy*Area_Single),IF(Area_Single=0,0,IF(Defect_Choice=1,List_I_C_Pin,IF(Defect_Choice=2,List_I_C_Hole,IF(Defect_Choice=3,List_I_C_Tear,(List_II_J_Pin*Area_CZ_arr Pin+List_II_J_Hole*Area_CZ_arr Hole+List_II_J_Tear*Area_CZ_arr Tear))))))*IF(Cont_Class=\"List II\",1000/aq_Q,1)","v":{"$error":"#NAME?"}},{"$f":"IF(Cont_Class=\"List II\",IF(OR(CM=1,AND(CM>1,GM_opt=\"No\")),List_II_J_Darcy*Area_Single*s_per_day,(List_II_J_Pin*Area_CZ_arr Pin+List_II_J_Hole*Area_CZ_arr Hole+List_II_J_Tear*Area_CZ_arr Tear)*s_per_day),IF(OR(CM=1,AND(CM>1,GM_opt=\"No\")),List_I_J_Darcy_In*Area_Single*s_per_day,(List_I_J_Pin_In*Area_CZ_arr Pin+List_I_J_Hole_In*Area_CZ_arr Hole+List_I_J_Tear_In*Area_CZ_arr Tear)*s_per_day))","v":{"$error":"#NAME?"}},null,null,null,398.10717055349795,12554707730.575111,{"$error":"#NAME?"},{"$error":"#NAME?"},{"$error":"#NAME?"},null,{"$f":"IF(NOT(Solution_type=\"a\"),n*GetJ_1laysol_L(Conc_def_arr Pin/1000,thick_cl,$G39,x,R_cl,D_cl_arr Pin,Decay_cl,vel_cl_arr Pin,nsum),0)","v":0},{"$f":"IF(NOT(Solution_type=\"a\"),Get_1laysol_inf(Conc_def_arr Pin,thick_cl,$G39,x,R_cl,D_cl_arr Pin,Decay_cl,vel_cl_arr Pin,nsum),0)","v":0},{"$f":"IF(NOT(Solution_type=\"a\"),(n)*GetJ_1laysol_inf(Conc_def_arr Pin/1000,thick_cl,$G39,x,R_cl,D_cl_arr Pin,Decay_cl,vel_cl_arr Pin,nsum),0)","v":0},null,{"$f":"IF(NOT(Solution_type=\"a\"),n*GetJ_1laysol_L(Conc_def_arr Hole/1000,thick_cl,$G39,x,R_cl,D_cl_arr Hole,Decay_cl,vel_cl_arr Hole,nsum),0)","v":0},{"$f":"IF(NOT(Solution_type=\"a\"),Get_1laysol_inf(Conc_def_arr Hole,thick_cl,$G39,x,R_cl,D_cl_arr Hole,Decay_cl,vel_cl_arr Hole,nsum),0)","v":0},{"$f":"IF(NOT(Solution_type=\"a\"),(n)*GetJ_1laysol_inf(Conc_def_arr Hole/1000,thick_cl,$G39,x,R_cl,D_cl_arr Hole,Decay_cl,vel_cl_arr Hole,nsum),0)","v":0},null,{"$f":"IF(NOT(Solution_type=\"a\"),n*GetJ_1laysol_L(Conc_def_arr Tear/1000,thick_cl,$G39,x,R_cl,D_cl_arr Tear,Decay_cl,vel_cl_arr Tear,nsum),0)","v":0},{"$f":"IF(NOT(Solution_type=\"a\"),Get_1laysol_inf(Conc_def_arr Tear,thick_cl,$G39,x,R_cl,D_cl_arr Tear,Decay_cl,vel_cl_arr Tear,nsum),0)","v":0},{"$f":"IF(NOT(Solution_type=\"a\"),(n)*GetJ_1laysol_inf(Conc_def_arr Tear/1000,thick_cl,$G39,x,R_cl,D_cl_arr Tear,Decay_cl,vel_cl_arr Tear,nsum),0)","v":0}]
[{"$f":"IF(OR(CM=1,AND(CM>1,GM_opt=\"No\")),IF(Cont_Class=\"List I\",List_I_C_Darcy,List_II_J_Darcy*Area_Single),IF(Area_Single=0,0,IF(Defect_Choice=1,List_I_C_Pin,IF(Defect_Choice=2,List_I_C_Hole,IF(Defect_Choice=3,List_I_C_Tear,(List_II_J_Pin*Area_CZ_arr Pin+List_II_J_Hole*Area_CZ_arr Hole+List_II_J_Tear*Area_CZ_arr Tear))))))*IF(Cont_Class=\"List II\",1000/aq_Q,1)","v":{"$error":"#NAME?"}},{"$f":"IF(Cont_Class=\"List II\",IF(OR(CM=1,AND(CM>1,GM_opt=\"No\")),List_II_J_Darcy*Area_Single*s_per_day,(List_II_J_Pin*Area_CZ_arr Pin+List_II_J_Hole*Area_CZ_arr Hole+List_II_J_Tear*Area_CZ_arr Tear)*s_per_day),IF(OR(CM=1,AND(CM>1,GM_opt=\"No\")),List_I_J_Darcy_In*Area_Single*s_per_day,(List_I_J_Pin_In*Area_CZ_arr Pin+List_I_J_Hole_In*Area_CZ_arr Hole+List_I_J_Tear_In*Area_CZ_arr Tear)*s_per_day))","v":{"$error":"#NAME?"}},null,null,null,501.1872336272732,15805440599.669691,{"$error":"#NAME?"},{"$error":"#NAME?"},{"$error":"#NAME?"},null,{"$f":"IF(NOT(Solution_type=\"a\"),n*GetJ_1laysol_L(Conc_def_arr Pin/1000,thick_cl,$G40,x,R_cl,D_cl_arr Pin,Decay_cl,vel_cl_arr Pin,nsum),0)","v":0},{"$f":"IF(NOT(Solution_type=\"a\"),Get_1laysol_inf(Conc_def_arr Pin,thick_cl,$G40,x,R_cl,D_cl_arr Pin,Decay_cl,vel_cl_arr Pin,nsum),0)","v":0},{"$f":"IF(NOT(Solution_type=\"a\"),(n)*GetJ_1laysol_inf(Conc_def_arr Pin/1000,thick_cl,$G40,x,R_cl,D_cl_arr Pin,Decay_cl,vel_cl_arr Pin,nsum),0)","v":0},null,{"$f":"IF(NOT(Solution_type=\"a\"),n*GetJ_1laysol_L(Conc_def_arr Hole/1000,thick_cl,$G40,x,R_cl,D_cl_arr Hole,Decay_cl,vel_cl_arr Hole,nsum),0)","v":0},{"$f":"IF(NOT(Solution_type=\"a\"),Get_1laysol_inf(Conc_def_arr Hole,thick_cl,$G40,x,R_cl,D_cl_arr Hole,Decay_cl,vel_cl_arr Hole,nsum),0)","v":0},{"$f":"IF(NOT(Solution_type=\"a\"),(n)*GetJ_1laysol_inf(Conc_def_arr Hole/1000,thick_cl,$G40,x,R_cl,D_cl_arr Hole,Decay_cl,vel_cl_arr Hole,nsum),0)","v":0},null,{"$f":"IF(NOT(Solution_type=\"a\"),n*GetJ_1laysol_L(Conc_def_arr Tear/1000,thick_cl,$G40,x,R_cl,D_cl_arr Tear,Decay_cl,vel_cl_arr Tear,nsum),0)","v":0},{"$f":"IF(NOT(Solution_type=\"a\"),Get_1laysol_inf(Conc_def_arr Tear,thick_cl,$G40,x,R_cl,D_cl_arr Tear,Decay_cl,vel_cl_arr Tear,nsum),0)","v":0},{"$f":"IF(NOT(Solution_type=\"a\"),(n)*GetJ_1laysol_inf(Conc_def_arr Tear/1000,thick_cl,$G40,x,R_cl,D_cl_arr Tear,Decay_cl,vel_cl_arr Tear,nsum),0)","v":0}]
[{"$f":"IF(OR(CM=1,AND(CM>1,GM_opt=\"No\")),IF(Cont_Class=\"List I\",List_I_C_Darcy,List_II_J_Darcy*Area_Single),IF(Area_Single=0,0,IF(Defect_Choice=1,List_I_C_Pin,IF(Defect_Choice=2,List_I_C_Hole,IF(Defect_Choice=3,List_I_C_Tear,(List_II_J_Pin*Area_CZ_arr Pin+List_II_J_Hole*Area_CZ_arr Hole+List_II_J_Tear*Area_CZ_arr Tear))))))*IF(Cont_Class=\"List II\",1000/aq_Q,1)","v":{"$error":"#NAME?"}},{"$f":"IF(Cont_Class=\"List II\",IF(OR(CM=1,AND(CM>1,GM_opt=\"No\")),List_II_J_Darcy*Area_Single*s_per_day,(List_II_J_Pin*Area_CZ_arr Pin+List_II_J_Hole*Area_CZ_arr Hole+List_II_J_Tear*Area_CZ_arr Tear)*s_per_day),IF(OR(CM=1,AND(CM>1,GM_opt=\"No\")),List_I_J_Darcy_In*Area_Single*s_per_day,(List_I_J_Pin_In*Area_CZ_arr Pin+List_I_J_Hole_In*Area_CZ_arr Hole+List_I_J_Tear_In*Area_CZ_arr Tear)*s_per_day))","v":{"$error":"#NAME?"}},null,null,null,630.95734448019448,19897870815.527416,{"$error":"#NAME?"},{"$error":"#NAME?"},{"$error":"#NAME?"},null,{"$f":"IF(NOT(Solution_type=\"a\"),n*GetJ_1laysol_L(Conc_def_arr Pin/1000,thick_cl,$G41,x,R_cl,D_cl_arr Pin,Decay_cl,vel_cl_arr Pin,nsum),0)","v":0},{"$f":"IF(NOT(Solution_type=\"a\"),Get_1laysol_inf(Conc_def_arr Pin,thick_cl,$G41,x,R_cl,D_cl_arr Pin,Decay_cl,vel_cl_arr Pin,nsum),0)","v":0},{"$f":"IF(NOT(Solution_type=\"a\"),(n)*GetJ_1laysol_inf(Conc_def_arr Pin/1000,thick_cl,$G41,x,R_cl,D_cl_arr Pin,Decay_cl,vel_cl_arr Pin,nsum),0)","v":0},null,{"$f":"IF(NOT(Solution_type=\"a\"),n*GetJ_1laysol_L(Conc_def_arr Hole/1000,thick_cl,$G41,x,R_cl,D_cl_arr Hole,Decay_cl,vel_cl_arr Hole,nsum),0)","v":0},{"$f":"IF(NOT(Solution_type=\"a\"),Get_1laysol_inf(Conc_def_arr Hole,thick_cl,$G41,x,R_cl,D_cl_arr Hole,Decay_cl,vel_cl_arr Hole,nsum),0)","v":0},{"$f":"IF(NOT(Solution_type=\"a\"),(n)*GetJ_1laysol_inf(Conc_def_arr Hole/1000,thick_cl,$G41,x,R_cl,D_cl_arr Hole,Decay_cl,vel_cl_arr Hole,nsum),0)","v":0},null,{"$f":"IF(NOT(Solution_type=\"a\"),n*GetJ_1laysol_L(Conc_def_arr Tear/1000,thick_cl,$G41,x,R_cl,D_cl_arr Tear,Decay_cl,vel_cl_arr Tear,nsum),0)","v":0},{"$f":"IF(NOT(Solution_type=\"a\"),Get_1laysol_inf(Conc_def_arr Tear,thick_cl,$G41,x,R_cl,D_cl_arr Tear,Decay_cl,vel_cl_arr Tear,nsum),0)","v":0},{"$f":"IF(NOT(Solution_type=\"a\"),(n)*GetJ_1laysol_inf(Conc_def_arr Tear/1000,thick_cl,$G41,x,R_cl,D_cl_arr Tear,Decay_cl,vel_cl_arr Tear,nsum),0)","v":0}]
[{"$f":"IF(OR(CM=1,AND(CM>1,GM_opt=\"No\")),IF(Cont_Class=\"List I\",List_I_C_Darcy,List_II_J_Darcy*Area_Single),IF(Area_Single=0,0,IF(Defect_Choice=1,List_I_C_Pin,IF(Defect_Choice=2,List_I_C_Hole,IF(Defect_Choice=3,List_I_C_Tear,(List_II_J_Pin*Area_CZ_arr Pin+List_II_J_Hole*Area_CZ_arr Hole+List_II_J_Tear*Area_CZ_arr Tear))))))*IF(Cont_Class=\"List II\",1000/aq_Q,1)","v":{"$error":"#NAME?"}},{"$f":"IF(Cont_Class=\"List II\",IF(OR(CM=1,AND(CM>1,GM_opt=\"No\")),List_II_J_Darcy*Area_Single*s_per_day,(List_II_J_Pin*Area_CZ_arr Pin+List_II_J_Hole*Area_CZ_arr Hole+List_II_J_Tear*Area_CZ_arr Tear)*s_per_day),IF(OR(CM=1,AND(CM>1,GM_opt=\"No\")),List_I_J_Darcy_In*Area_Single*s_per_day,(List_I_J_Pin_In*Area_CZ_arr Pin+List_I_J_Hole_In*Area_CZ_arr Hole+List_I_J_Tear_In*Area_CZ_arr Tear)*s_per_day))","v":{"$error":"#NAME?"}},null,null,null,794.32823472428311,25049935210.264988,{"$error":"#NAME?"},{"$error":"#NAME?"},{"$error":"#NAME?"},null,{"$f":"IF(NOT(Solution_type=\"a\"),n*GetJ_1laysol_L(Conc_def_arr Pin/1000,thick_cl,$G42,x,R_cl,D_cl_arr Pin,Decay_cl,vel_cl_arr Pin,nsum),0)","v":0},{"$f":"IF(NOT(Solution_type=\"a\"),Get_1laysol_inf(Conc_def_arr Pin,thick_cl,$G42,x,R_cl,D_cl_arr Pin,Decay_cl,vel_cl_arr Pin,nsum),0)","v":0},{"$f":"IF(NOT(Solution_type=\"a\"),(n)*GetJ_1laysol_inf(Conc_def_arr Pin/1000,thick_cl,$G42,x,R_cl,D_cl_arr Pin,Decay_cl,vel_cl_arr Pin,nsum),0)","v":0},null,{"$f":"IF(NOT(Solution_type=\"a\"),n*GetJ_1laysol_L(Conc_def_arr Hole/1000,thick_cl,$G42,x,R_cl,D_cl_arr Hole,Decay_cl,vel_cl_arr Hole,nsum),0)","v":0},{"$f":"IF(NOT(Solution_type=\"a\"),Get_1laysol_inf(Conc_def_arr Hole,thick_cl,$G42,x,R_cl,D_cl_arr Hole,Decay_cl,vel_cl_arr Hole,nsum),0)","v":0},{"$f":"IF(NOT(Solution_type=\"a\"),(n)*GetJ_1laysol_inf(Conc_def_arr Hole/1000,thick_cl,$G42,x,R_cl,D_cl_arr Hole,Decay_cl,vel_cl_arr Hole,nsum),0)","v":0},null,{"$f":"IF(NOT(Solution_type=\"a\"),n*GetJ_1laysol_L(Conc_def_arr Tear/1000,thick_cl,$G42,x,R_cl,D_cl_arr Tear,Decay_cl,vel_cl_arr Tear,nsum),0)","v":0},{"$f":"IF(NOT(Solution_type=\"a\"),Get_1laysol_inf(Conc_def_arr Tear,thick_cl,$G42,x,R_cl,D_cl_arr Tear,Decay_cl,vel_cl_arr Tear,nsum),0)","v":0},{"$f":"IF(NOT(Solution_type=\"a\"),(n)*GetJ_1laysol_inf(Conc_def_arr Tear/1000,thick_cl,$G42,x,R_cl,D_cl_arr Tear,Decay_cl,vel_cl_arr Tear,nsum),0)","v":0}]
[{"$f":"IF(OR(CM=1,AND(CM>1,GM_opt=\"No\")),IF(Cont_Class=\"List I\",List_I_C_Darcy,List_II_J_Darcy*Area_Single),IF(Area_Single=0,0,IF(Defect_Choice=1,List_I_C_Pin,IF(Defect_Choice=2,List_I_C_Hole,IF(Defect_Choice=3,List_I_C_Tear,(List_II_J_Pin*Area_CZ_arr Pin+List_II_J_Hole*Area_CZ_arr Hole+List_II_J_Tear*Area_CZ_arr Tear))))))*IF(Cont_Class=\"List II\",1000/aq_Q,1)","v":{"$error":"#NAME?"}},{"$f":"IF(Cont_Class=\"List II\",IF(OR(CM=1,AND(CM>1,GM_opt=\"No\")),List_II_J_Darcy*Area_Single*s_per_day,(List_II_J_Pin*Area_CZ_arr Pin+List_II_J_Hole*Area_CZ_arr Hole+List_II_J_Tear*Area_CZ_arr Tear)*s_per_day),IF(OR(CM=1,AND(CM>1,GM_opt=\"No\")),List_I_J_Darcy_In*Area_Single*s_per_day,(List_I_J_Pin_In*Area_CZ_arr Pin+List_I_J_Hole_In*Area_CZ_arr Hole+List_I_J_Tear_In*Area_CZ_arr Tear)*s_per_day))","v":{"$error":"#NAME?"}},null,null,null,1000.000000000002,31536000000.000069,{"$error":"#NAME?"},{"$error":"#NAME?"},{"$error":"#NAME?"},null,{"$f":"IF(NOT(Solution_type=\"a\"),n*GetJ_1laysol_L(Conc_def_arr Pin/1000,thick_cl,$G43,x,R_cl,D_cl_arr Pin,Decay_cl,vel_cl_arr Pin,nsum),0)","v":0},{"$f":"IF(NOT(Solution_type=\"a\"),Get_1laysol_inf(Conc_def_arr Pin,thick_cl,$G43,x,R_cl,D_cl_arr Pin,Decay_cl,vel_cl_arr Pin,nsum),0)","v":0},{"$f":"IF(NOT(Solution_type=\"a\"),(n)*GetJ_1laysol_inf(Conc_def_arr Pin/1000,thick_cl,$G43,x,R_cl,D_cl_arr Pin,Decay_cl,vel_cl_arr Pin,nsum),0)","v":0},null,{"$f":"IF(NOT(Solution_type=\"a\"),n*GetJ_1laysol_L(Conc_def_arr Hole/1000,thick_cl,$G43,x,R_cl,D_cl_arr Hole,Decay_cl,vel_cl_arr Hole,nsum),0)","v":0},{"$f":"IF(NOT(Solution_type=\"a\"),Get_1laysol_inf(Conc_def_arr Hole,thick_cl,$G43,x,R_cl,D_cl_arr Hole,Decay_cl,vel_cl_arr Hole,nsum),0)","v":0},{"$f":"IF(NOT(Solution_type=\"a\"),(n)*GetJ_1laysol_inf(Conc_def_arr Hole/1000,thick_cl,$G43,x,R_cl,D_cl_arr Hole,Decay_cl,vel_cl_arr Hole,nsum),0)","v":0},null,{"$f":"IF(NOT(Solution_type=\"a\"),n*GetJ_1laysol_L(Conc_def_arr Tear/1000,thick_cl,$G43,x,R_cl,D_cl_arr Tear,Decay_cl,vel_cl_arr Tear,nsum),0)","v":0},{"$f":"IF(NOT(Solution_type=\"a\"),Get_1laysol_inf(Conc_def_arr Tear,thick_cl,$G43,x,R_cl,D_cl_arr Tear,Decay_cl,vel_cl_arr Tear,nsum),0)","v":0},{"$f":"IF(NOT(Solution_type=\"a\"),(n)*GetJ_1laysol_inf(Conc_def_arr Tear/1000,thick_cl,$G43,x,R_cl,D_cl_arr Tear,Decay_cl,vel_cl_arr Tear,nsum),0)","v":0}]
[{"$f":"IF(OR(CM=1,AND(CM>1,GM_opt=\"No\")),IF(Cont_Class=\"List I\",List_I_C_Darcy,List_II_J_Darcy*Area_Single),IF(Area_Single=0,0,IF(Defect_Choice=1,List_I_C_Pin,IF(Defect_Choice=2,List_I_C_Hole,IF(Defect_Choice=3,List_I_C_Tear,(List_II_J_Pin*Area_CZ_arr Pin+List_II_J_Hole*Area_CZ_arr Hole+List_II_J_Tear*Area_CZ_arr Tear))))))*IF(Cont_Class=\"List II\",1000/aq_Q,1)","v":{"$error":"#NAME?"}},{"$f":"IF(Cont_Class=\"List II\",IF(OR(CM=1,AND(CM>1,GM_opt=\"No\")),List_II_J_Darcy*Area_Single*s_per_day,(List_II_J_Pin*Area_CZ_arr Pin+List_II_J_Hole*Area_CZ_arr Hole+List_II_J_Tear*Area_CZ_arr Tear)*s_per_day),IF(OR(CM=1,AND(CM>1,GM_opt=\"No\")),List_I_J_Darcy_In*Area_Single*s_per_day,(List_I_J_Pin_In*Area_CZ_arr Pin+List_I_J_Hole_In*Area_CZ_arr Hole+List_I_J_Tear_In*Area_CZ_arr Tear)*s_per_day))","v":{"$error":"#NAME?"}},null,null,null,1258.9254117941698,39701471786.340935,{"$error":"#NAME?"},{"$error":"#NAME?"},{"$error":"#NAME?"},null,{"$f":"IF(NOT(Solution_type=\"a\"),n*GetJ_1laysol_L(Conc_def_arr Pin/1000,thick_cl,$G44,x,R_cl,D_cl_arr Pin,Decay_cl,vel_cl_arr Pin,nsum),0)","v":0},{"$f":"IF(NOT(Solution_type=\"a\"),Get_1laysol_inf(Conc_def_arr Pin,thick_cl,$G44,x,R_cl,D_cl_arr Pin,Decay_cl,vel_cl_arr Pin,nsum),0)","v":0},{"$f":"IF(NOT(Solution_type=\"a\"),(n)*GetJ_1laysol_inf(Conc_def_arr Pin/1000,thick_cl,$G44,x,R_cl,D_cl_arr Pin,Decay_cl,vel_cl_arr Pin,nsum),0)","v":0},null,{"$f":"IF(NOT(Solution_type=\"a\"),n*GetJ_1laysol_L(Conc_def_arr Hole/1000,thick_cl,$G44,x,R_cl,D_cl_arr Hole,Decay_cl,vel_cl_arr Hole,nsum),0)","v":0},{"$f":"IF(NOT(Solution_type=\"a\"),Get_1laysol_inf(Conc_def_arr Hole,thick_cl,$G44,x,R_cl,D_cl_arr Hole,Decay_cl,vel_cl_arr Hole,nsum),0)","v":0},{"$f":"IF(NOT(Solution_type=\"a\"),(n)*GetJ_1laysol_inf(Conc_def_arr Hole/1000,thick_cl,$G44,x,R_cl,D_cl_arr Hole,Decay_cl,vel_cl_arr Hole,nsum),0)","v":0},null,{"$f":"IF(NOT(Solution_type=\"a\"),n*GetJ_1laysol_L(Conc_def_arr Tear/1000,thick_cl,$G44,x,R_cl,D_cl_arr Tear,Decay_cl,vel_cl_arr Tear,nsum),0)","v":0},{"$f":"IF(NOT(Solution_type=\"a\"),Get_1laysol_inf(Conc_def_arr Tear,thick_cl,$G44,x,R_cl,D_cl_arr Tear,Decay_cl,vel_cl_arr Tear,nsum),0)","v":0},{"$f":"IF(NOT(Solution_type=\"a\"),(n)*GetJ_1laysol_inf(Conc_def_arr Tear/1000,thick_cl,$G44,x,R_cl,D_cl_arr Tear,Decay_cl,vel_cl_arr Tear,nsum),0)","v":0}]
[{"$f":"IF(OR(CM=1,AND(CM>1,GM_opt=\"No\")),IF(Cont_Class=\"List I\",List_I_C_Darcy,List_II_J_Darcy*Area_Single),IF(Area_Single=0,0,IF(Defect_Choice=1,List_I_C_Pin,IF(Defect_Choice=2,List_I_C_Hole,IF(Defect_Choice=3,List_I_C_Tear,(List_II_J_Pin*Area_CZ_arr Pin+List_II_J_Hole*Area_CZ_arr Hole+List_II_J_Tear*Area_CZ_arr Tear))))))*IF(Cont_Class=\"List II\",1000/aq_Q,1)","v":{"$error":"#NAME?"}},{"$f":"IF(Cont_Class=\"List II\",IF(OR(CM=1,AND(CM>1,GM_opt=\"No\")),List_II_J_Darcy*Area_Single*s_per_day,(List_II_J_Pin*Area_CZ_arr Pin+List_II_J_Hole*Area_CZ_arr Hole+List_II_J_Tear*Area_CZ_arr Tear)*s_per_day),IF(OR(CM=1,AND(CM>1,GM_opt=\"No\")),List_I_J_Darcy_In*Area_Single*s_per_day,(List_I_J_Pin_In*Area_CZ_arr Pin+List_I_J_Hole_In*Area_CZ_arr Hole+List_I_J_Tear_In*Area_CZ_arr Tear)*s_per_day))","v":{"$error":"#NAME?"}},null,null,null,1584.8931924611168,49981191717.453781,{"$f":"IF(Solution_type=\"a\",n*GetJ_1laysol_L(Conc_def/1000,thick_cl,$G45,x,R_cl,D_cl,Decay_cl,vel_cl,nsum),0)","v":{"$error":"#NAME?"}},{"$f":"IF(Solution_type=\"a\",Get_1laysol_inf(Conc_def,thick_cl,$G45,x,R_cl,D_cl,Decay_cl,vel_cl,nsum),0)","v":{"$error":"#NAME?"}},{"$f":"IF(Solution_type=\"a\",(n)*GetJ_1laysol_inf(Conc_def/1000,thick_cl,$G45,x,R_cl,D_cl,Decay_cl,vel_cl,nsum),0)","v":{"$error":"#NAME?"}},null,{"$f":"IF(NOT(Solution_type=\"a\"),n*GetJ_1laysol_L(Conc_def_arr Pin/1000,thick_cl,$G45,x,R_cl,D_cl_arr Pin,Decay_cl,vel_cl_arr Pin,nsum),0)","v":0},{"$f":"IF(NOT(Solution_type=\"a\"),Get_1laysol_inf(Conc_def_arr Pin,thick_cl,$G45,x,R_cl,D_cl_arr Pin,Decay_cl,vel_cl_arr Pin,nsum),0)","v":0},{"$f":"IF(NOT(Solution_type=\"a\"),(n)*GetJ_1laysol_inf(Conc_def_arr Pin/1000,thick_cl,$G45,x,R_cl,D_cl_arr Pin,Decay_cl,vel_cl_arr Pin,nsum),0)","v":0},null,{"$f":"IF(NOT(Solution_type=\"a\"),n*GetJ_1laysol_L(Conc_def_arr Hole/1000,thick_cl,$G45,x,R_cl,D_cl_arr Hole,Decay_cl,vel_cl_arr Hole,nsum),0)","v":0},{"$f":"IF(NOT(Solution_type=\"a\"),Get_1laysol_inf(Conc_def_arr Hole,thick_cl,$G45,x,R_cl,D_cl_arr Hole,Decay_cl,vel_cl_arr Hole,nsum),0)","v":0},{"$f":"IF(NOT(Solution_type=\"a\"),(n)*GetJ_1laysol_inf(Conc_def_arr Hole/1000,thick_cl,$G45,x,R_cl,D_cl_arr Hole,Decay_cl,vel_cl_arr Hole,nsum),0)","v":0},null,{"$f":"IF(NOT(Solution_type=\"a\"),n*GetJ_1laysol_L(Conc_def_arr Tear/1000,thick_cl,$G45,x,R_cl,D_cl_arr Tear,Decay_cl,vel_cl_arr Tear,nsum),0)","v":0},{"$f":"IF(NOT(Solution_type=\"a\"),Get_1laysol_inf(Conc_def_arr Tear,thick_cl,$G45,x,R_cl,D_cl_arr Tear,Decay_cl,vel_cl_arr Tear,nsum),0)","v":0},{"$f":"IF(NOT(Solution_type=\"a\"),(n)*GetJ_1laysol_inf(Conc_def_arr Tear/1000,thick_cl,$G45,x,R_cl,D_cl_arr Tear,Decay_cl,vel_cl_arr Tear,nsum),0)","v":0}]
[{"$f":"IF(OR(CM=1,AND(CM>1,GM_opt=\"No\")),IF(Cont_Class=\"List I\",List_I_C_Darcy,List_II_J_Darcy*Area_Single),IF(Area_Single=0,0,IF(Defect_Choice=1,List_I_C_Pin,IF(Defect_Choice=2,List_I_C_Hole,IF(Defect_Choice=3,List_I_C_Tear,(List_II_J_Pin*Area_CZ_arr Pin+List_II_J_Hole*Area_CZ_arr Hole+List_II_J_Tear*Area_CZ_arr Tear))))))*IF(Cont_Class=\"List II\",1000/aq_Q,1)","v":{"$error":"#NAME?"}},{"$f":"IF(Cont_Class=\"List II\",IF(OR(CM=1,AND(CM>1,GM_opt=\"No\")),List_II_J_Darcy*Area_Single*s_per_day,(List_II_J_Pin*Area_CZ_arr Pin+List_II_J_Hole*Area_CZ_arr Hole+List_II_J_Tear*Area_CZ_arr Tear)*s_per_day),IF(OR(CM=1,AND(CM>1,GM_opt=\"No\")),List_I_J_Darcy_In*Area_Single*s_per_day,(List_I_J_Pin_In*Area_CZ_arr Pin+List_I_J_Hole_In*Area_CZ_arr Hole+List_I_J_Tear_In*Area_CZ_arr Tear)*s_per_day))","v":{"$error":"#NAME?"}},null,null,null,1995.2623149688839,62922592364.858719,{"$error":"#NAME?"},{"$error":"#NAME?"},{"$error":"#NAME?"},null,{"$f":"IF(NOT(Solution_type=\"a\"),n*GetJ_1laysol_L(Conc_def_arr Pin/1000,thick_cl,$G46,x,R_cl,D_cl_arr Pin,Decay_cl,vel_cl_arr Pin,nsum),0)","v":0},{"$f":"IF(NOT(Solution_type=\"a\"),Get_1laysol_inf(Conc_def_arr Pin,thick_cl,$G46,x,R_cl,D_cl_arr Pin,Decay_cl,vel_cl_arr Pin,nsum),0)","v":0},{"$f":"IF(NOT(Solution_type=\"a\"),(n)*GetJ_1laysol_inf(Conc_def_arr Pin/1000,thick_cl,$G46,x,R_cl,D_cl_arr Pin,Decay_cl,vel_cl_arr Pin,nsum),0)","v":0},null,{"$f":"IF(NOT(Solution_type=\"a\"),n*GetJ_1laysol_L(Conc_def_arr Hole/1000,thick_cl,$G46,x,R_cl,D_cl_arr Hole,Decay_cl,vel_cl_arr Hole,nsum),0)","v":0},{"$f":"IF(NOT(Solution_type=\"a\"),Get_1laysol_inf(Conc_def_arr Hole,thick_cl,$G46,x,R_cl,D_cl_arr Hole,Decay_cl,vel_cl_arr Hole,nsum),0)","v":0},{"$f":"IF(NOT(Solution_type=\"a\"),(n)*GetJ_1laysol_inf(Conc_def_arr Hole/1000,thick_cl,$G46,x,R_cl,D_cl_arr Hole,Decay_cl,vel_cl_arr Hole,nsum),0)","v":0},null,{"$f":"IF(NOT(Solution_type=\"a\"),n*GetJ_1laysol_L(Conc_def_arr Tear/1000,thick_cl,$G46,x,R_cl,D_cl_arr Tear,Decay_cl,vel_cl_arr Tear,nsum),0)","v":0},{"$f":"IF(NOT(Solution_type=\"a\"),Get_1laysol_inf(Conc_def_arr Tear,thick_cl,$G46,x,R_cl,D_cl_arr Tear,Decay_cl,vel_cl_arr Tear,nsum),0)","v":0},{"$f":"IF(NOT(Solution_type=\"a\"),(n)*GetJ_1laysol_inf(Conc_def_arr Tear/1000,thick_cl,$G46,x,R_cl,D_cl_arr Tear,Decay_cl,vel_cl_arr Tear,nsum),0)","v":0}]
[{"$f":"IF(OR(CM=1,AND(CM>1,GM_opt=\"No\")),IF(Cont_Class=\"List I\",List_I_C_Darcy,List_II_J_Darcy*Area_Single),IF(Area_Single=0,0,IF(Defect_Choice=1,List_I_C_Pin,IF(Defect_Choice=2,List_I_C_Hole,IF(Defect_Choice=3,List_I_C_Tear,(List_II_J_Pin*Area_CZ_arr Pin+List_II_J_Hole*Area_CZ_arr Hole+List_II_J_Tear*Area_CZ_arr Tear))))))*IF(Cont_Class=\"List II\",1000/aq_Q,1)","v":{"$error":"#NAME?"}},{"$f":"IF(Cont_Class=\"List II\",IF(OR(CM=1,AND(CM>1,GM_opt=\"No\")),List_II_J_Darcy*Area_Single*s_per_day,(List_II_J_Pin*Area_CZ_arr Pin+List_II_J_Hole*Area_CZ_arr Hole+List_II_J_Tear*Area_CZ_arr Tear)*s_per_day),IF(OR(CM=1,AND(CM>1,GM_opt=\"No\")),List_I_J_Darcy_In*Area_Single*s_per_day,(List_I_J_Pin_In*Area_CZ_arr Pin+List_I_J_Hole_In*Area_CZ_arr Hole+List_I_J_Tear_In*Area_CZ_arr Tear)*s_per_day))","v":{"$error":"#NAME?"}},null,null,null,2511.8864315095857,79214850504.086304,{"$error":"#NAME?"},{"$error":"#NAME?"},{"$error":"#NAME?"},null,{"$f":"IF(NOT(Solution_type=\"a\"),n*GetJ_1laysol_L(Conc_def_arr Pin/1000,thick_cl,$G47,x,R_cl,D_cl_arr Pin,Decay_cl,vel_cl_arr Pin,nsum),0)","v":0},{"$f":"IF(NOT(Solution_type=\"a\"),Get_1laysol_inf(Conc_def_arr Pin,thick_cl,$G47,x,R_cl,D_cl_arr Pin,Decay_cl,vel_cl_arr Pin,nsum),0)","v":0},{"$f":"IF(NOT(Solution_type=\"a\"),(n)*GetJ_1laysol_inf(Conc_def_arr Pin/1000,thick_cl,$G47,x,R_cl,D_cl_arr Pin,Decay_cl,vel_cl_arr Pin,nsum),0)","v":0},null,{"$f":"IF(NOT(Solution_type=\"a\"),n*GetJ_1laysol_L(Conc_def_arr Hole/1000,thick_cl,$G47,x,R_cl,D_cl_arr Hole,Decay_cl,vel_cl_arr Hole,nsum),0)","v":0},{"$f":"IF(NOT(Solution_type=\"a\"),Get_1laysol_inf(Conc_def_arr Hole,thick_cl,$G47,x,R_cl,D_cl_arr Hole,Decay_cl,vel_cl_arr Hole,nsum),0)","v":0},{"$f":"IF(NOT(Solution_type=\"a\"),(n)*GetJ_1laysol_inf(Conc_def_arr Hole/1000,thick_cl,$G47,x,R_cl,D_cl_arr Hole,Decay_cl,vel_cl_arr Hole,nsum),0)","v":0},null,{"$f":"IF(NOT(Solution_type=\"a\"),n*GetJ_1laysol_L(Conc_def_arr Tear/1000,thick_cl,$G47,x,R_cl,D_cl_arr Tear,Decay_cl,vel_cl_arr Tear,nsum),0)","v":0},{"$f":"IF(NOT(Solution_type=\"a\"),Get_1laysol_inf(Conc_def_arr Tear,thick_cl,$G47,x,R_cl,D_cl_arr Tear,Decay_cl,vel_cl_arr Tear,nsum),0)","v":0},{"$f":"IF(NOT(Solution_type=\"a\"),(n)*GetJ_1laysol_inf(Conc_def_arr Tear/1000,thick_cl,$G47,x,R_cl,D_cl_arr Tear,Decay_cl,vel_cl_arr Tear,nsum),0)","v":0}]
[{"$f":"IF(OR(CM=1,AND(CM>1,GM_opt=\"No\")),IF(Cont_Class=\"List I\",List_I_C_Darcy,List_II_J_Darcy*Area_Single),IF(Area_Single=0,0,IF(Defect_Choice=1,List_I_C_Pin,IF(Defect_Choice=2,List_I_C_Hole,IF(Defect_Choice=3,List_I_C_Tear,(List_II_J_Pin*Area_CZ_arr Pin+List_II_J_Hole*Area_CZ_arr Hole+List_II_J_Tear*Area_CZ_arr Tear))))))*IF(Cont_Class=\"List II\",1000/aq_Q,1)","v":{"$error":"#NAME?"}},{"$f":"IF(Cont_Class=\"List II\",IF(OR(CM=1,AND(CM>1,GM_opt=\"No\")),List_II_J_Darcy*Area_Single*s_per_day,(List_II_J_Pin*Area_CZ_arr Pin+List_II_J_Hole*Area_CZ_arr Hole+List_II_J_Tear*Area_CZ_arr Tear)*s_per_day),IF(OR(CM=1,AND(CM>1,GM_opt=\"No\")),List_I_J_Darcy_In*Area_Single*s_per_day,(List_I_J_Pin_In*Area_CZ_arr Pin+List_I_J_Hole_In*Area_CZ_arr Hole+List_I_J_Tear_In*Area_CZ_arr Tear)*s_per_day))","v":{"$error":"#NAME?"}},null,null,null,3162.2776601683863,99725588291.070236,{"$error":"#NAME?"},{"$error":"#NAME?"},{"$error":"#NAME?"},null,{"$f":"IF(NOT(Solution_type=\"a\"),n*GetJ_1laysol_L(Conc_def_arr Pin/1000,thick_cl,$G48,x,R_cl,D_cl_arr Pin,Decay_cl,vel_cl_arr Pin,nsum),0)","v":0},{"$f":"IF(NOT(Solution_type=\"a\"),Get_1laysol_inf(Conc_def_arr Pin,thick_cl,$G48,x,R_cl,D_cl_arr Pin,Decay_cl,vel_cl_arr Pin,nsum),0)","v":0},{"$f":"IF(NOT(Solution_type=\"a\"),(n)*GetJ_1laysol_inf(Conc_def_arr Pin/1000,thick_cl,$G48,x,R_cl,D_cl_arr Pin,Decay_cl,vel_cl_arr Pin,nsum),0)","v":0},null,{"$f":"IF(NOT(Solution_type=\"a\"),n*GetJ_1laysol_L(Conc_def_arr Hole/1000,thick_cl,$G48,x,R_cl,D_cl_arr Hole,Decay_cl,vel_cl_arr Hole,nsum),0)","v":0},{"$f":"IF(NOT(Solution_type=\"a\"),Get_1laysol_inf(Conc_def_arr Hole,thick_cl,$G48,x,R_cl,D_cl_arr Hole,Decay_cl,vel_cl_arr Hole,nsum),0)","v":0},{"$f":"IF(NOT(Solution_type=\"a\"),(n)*GetJ_1laysol_inf(Conc_def_arr Hole/1000,thick_cl,$G48,x,R_cl,D_cl_arr Hole,Decay_cl,vel_cl_arr Hole,nsum),0)","v":0},null,{"$f":"IF(NOT(Solution_type=\"a\"),n*GetJ_1laysol_L(Conc_def_arr Tear/1000,thick_cl,$G48,x,R_cl,D_cl_arr Tear,Decay_cl,vel_cl_arr Tear,nsum),0)","v":0},{"$f":"IF(NOT(Solution_type=\"a\"),Get_1laysol_inf(Conc_def_arr Tear,thick_cl,$G48,x,R_cl,D_cl_arr Tear,Decay_cl,vel_cl_arr Tear,nsum),0)","v":0},{"$f":"IF(NOT(Solution_type=\"a\"),(n)*GetJ_1laysol_inf(Conc_def_arr Tear/1000,thick_cl,$G48,x,R_cl,D_cl_arr Tear,Decay_cl,vel_cl_arr Tear,nsum),0)","v":0}]
[{"$f":"IF(OR(CM=1,AND(CM>1,GM_opt=\"No\")),IF(Cont_Class=\"List I\",List_I_C_Darcy,List_II_J_Darcy*Area_Single),IF(Area_Single=0,0,IF(Defect_Choice=1,List_I_C_Pin,IF(Defect_Choice=2,List_I_C_Hole,IF(Defect_Choice=3,List_I_C_Tear,(List_II_J_Pin*Area_CZ_arr Pin+List_II_J_Hole*Area_CZ_arr Hole+List_II_J_Tear*Area_CZ_arr Tear))))))*IF(Cont_Class=\"List II\",1000/aq_Q,1)","v":{"$error":"#NAME?"}},{"$f":"IF(Cont_Class=\"List II\",IF(OR(CM=1,AND(CM>1,GM_opt=\"No\")),List_II_J_Darcy*Area_Single*s_per_day,(List_II_J_Pin*Area_CZ_arr Pin+List_II_J_Hole*Area_CZ_arr Hole+List_II_J_Tear*Area_CZ_arr Tear)*s_per_day),IF(OR(CM=1,AND(CM>1,GM_opt=\"No\")),List_I_J_Darcy_In*Area_Single*s_per_day,(List_I_J_Pin_In*Area_CZ_arr Pin+List_I_J_Hole_In*Area_CZ_arr Hole+List_I_J_Tear_In*Area_CZ_arr Tear)*s_per_day))","v":{"$error":"#NAME?"}},null,null,null,3981.0717055349814,125547077305.75116,{"$error":"#NAME?"},{"$error":"#NAME?"},{"$error":"#NAME?"},null,{"$f":"IF(NOT(Solution_type=\"a\"),n*GetJ_1laysol_L(Conc_def_arr Pin/1000,thick_cl,$G49,x,R_cl,D_cl_arr Pin,Decay_cl,vel_cl_arr Pin,nsum),0)","v":0},{"$f":"IF(NOT(Solution_type=\"a\"),Get_1laysol_inf(Conc_def_arr Pin,thick_cl,$G49,x,R_cl,D_cl_arr Pin,Decay_cl,vel_cl_arr Pin,nsum),0)","v":0},{"$f":"IF(NOT(Solution_type=\"a\"),(n)*GetJ_1laysol_inf(Conc_def_arr Pin/1000,thick_cl,$G49,x,R_cl,D_cl_arr Pin,Decay_cl,vel_cl_arr Pin,nsum),0)","v":0},null,{"$f":"IF(NOT(Solution_type=\"a\"),n*GetJ_1laysol_L(Conc_def_arr Hole/1000,thick_cl,$G49,x,R_cl,D_cl_arr Hole,Decay_cl,vel_cl_arr Hole,nsum),0)","v":0},{"$f":"IF(NOT(Solution_type=\"a\"),Get_1laysol_inf(Conc_def_arr Hole,thick_cl,$G49,x,R_cl,D_cl_arr Hole,Decay_cl,vel_cl_arr Hole,nsum),0)","v":0},{"$f":"IF(NOT(Solution_type=\"a\"),(n)*GetJ_1laysol_inf(Conc_def_arr Hole/1000,thick_cl,$G49,x,R_cl,D_cl_arr Hole,Decay_cl,vel_cl_arr Hole,nsum),0)","v":0},null,{"$f":"IF(NOT(Solution_type=\"a\"),n*GetJ_1laysol_L(Conc_def_arr Tear/1000,thick_cl,$G49,x,R_cl,D_cl_arr Tear,Decay_cl,vel_cl_arr Tear,nsum),0)","v":0},{"$f":"IF(NOT(Solution_type=\"a\"),Get_1laysol_inf(Conc_def_arr Tear,thick_cl,$G49,x,R_cl,D_cl_arr Tear,Decay_cl,vel_cl_arr Tear,nsum),0)","v":0},{"$f":"IF(NOT(Solution_type=\"a\"),(n)*GetJ_1laysol_inf(Conc_def_arr Tear/1000,thick_cl,$G49,x,R_cl,D_cl_arr Tear,Decay_cl,vel_cl_arr Tear,nsum),0)","v":0}]
[{"$f":"IF(OR(CM=1,AND(CM>1,GM_opt=\"No\")),IF(Cont_Class=\"List I\",List_I_C_Darcy,List_II_J_Darcy*Area_Single),IF(Area_Single=0,0,IF(Defect_Choice=1,List_I_C_Pin,IF(Defect_Choice=2,List_I_C_Hole,IF(Defect_Choice=3,List_I_C_Tear,(List_II_J_Pin*Area_CZ_arr Pin+List_II_J_Hole*Area_CZ_arr Hole+List_II_J_Tear*Area_CZ_arr Tear))))))*IF(Cont_Class=\"List II\",1000/aq_Q,1)","v":{"$error":"#NAME?"}},{"$f":"IF(Cont_Class=\"List II\",IF(OR(CM=1,AND(CM>1,GM_opt=\"No\")),List_II_J_Darcy*Area_Single*s_per_day,(List_II_J_Pin*Area_CZ_arr Pin+List_II_J_Hole*Area_CZ_arr Hole+List_II_J_Tear*Area_CZ_arr Tear)*s_per_day),IF(OR(CM=1,AND(CM>1,GM_opt=\"No\")),List_I_J_Darcy_In*Area_Single*s_per_day,(List_I_J_Pin_In*Area_CZ_arr Pin+List_I_J_Hole_In*Area_CZ_arr Hole+List_I_J_Tear_In*Area_CZ_arr Tear)*s_per_day))","v":{"$error":"#NAME?"}},null,null,null,5011.8723362727342,158054405996.69693,{"$error":"#NAME?"},{"$error":"#NAME?"},{"$error":"#NAME?"},null,{"$f":"IF(NOT(Solution_type=\"a\"),n*GetJ_1laysol_L(Conc_def_arr Pin/1000,thick_cl,$G50,x,R_cl,D_cl_arr Pin,Decay_cl,vel_cl_arr Pin,nsum),0)","v":0},{"$f":"IF(NOT(Solution_type=\"a\"),Get_1laysol_inf(Conc_def_arr Pin,thick_cl,$G50,x,R_cl,D_cl_arr Pin,Decay_cl,vel_cl_arr Pin,nsum),0)","v":0},{"$f":"IF(NOT(Solution_type=\"a\"),(n)*GetJ_1laysol_inf(Conc_def_arr Pin/1000,thick_cl,$G50,x,R_cl,D_cl_arr Pin,Decay_cl,vel_cl_arr Pin,nsum),0)","v":0},null,{"$f":"IF(NOT(Solution_type=\"a\"),n*GetJ_1laysol_L(Conc_def_arr Hole/1000,thick_cl,$G50,x,R_cl,D_cl_arr Hole,Decay_cl,vel_cl_arr Hole,nsum),0)","v":0},{"$f":"IF(NOT(Solution_type=\"a\"),Get_1laysol_inf(Conc_def_arr Hole,thick_cl,$G50,x,R_cl,D_cl_arr Hole,Decay_cl,vel_cl_arr Hole,nsum),0)","v":0},{"$f":"IF(NOT(Solution_type=\"a\"),(n)*GetJ_1laysol_inf(Conc_def_arr Hole/1000,thick_cl,$G50,x,R_cl,D_cl_arr Hole,Decay_cl,vel_cl_arr Hole,nsum),0)","v":0},null,{"$f":"IF(NOT(Solution_type=\"a\"),n*GetJ_1laysol_L(Conc_def_arr Tear/1000,thick_cl,$G50,x,R_cl,D_cl_arr Tear,Decay_cl,vel_cl_arr Tear,nsum),0)","v":0},{"$f":"IF(NOT(Solution_type=\"a\"),Get_1laysol_inf(Conc_def_arr Tear,thick_cl,$G50,x,R_cl,D_cl_arr Tear,Decay_cl,vel_cl_arr Tear,nsum),0)","v":0},{"$f":"IF(NOT(Solution_type=\"a\"),(n)*GetJ_1laysol_inf(Conc_def_arr Tear/1000,thick_cl,$G50,x,R_cl,D_cl_arr Tear,Decay_cl,vel_cl_arr Tear,nsum),0)","v":0}]
[{"$f":"IF(OR(CM=1,AND(CM>1,GM_opt=\"No\")),IF(Cont_Class=\"List I\",List_I_C_Darcy,List_II_J_Darcy*Area_Single),IF(Area_Single=0,0,IF(Defect_Choice=1,List_I_C_Pin,IF(Defect_Choice=2,List_I_C_Hole,IF(Defect_Choice=3,List_I_C_Tear,(List_II_J_Pin*Area_CZ_arr Pin+List_II_J_Hole*Area_CZ_arr Hole+List_II_J_Tear*Area_CZ_arr Tear))))))*IF(Cont_Class=\"List II\",1000/aq_Q,1)","v":{"$error":"#NAME?"}},{"$f":"IF(Cont_Class=\"List II\",IF(OR(CM=1,AND(CM>1,GM_opt=\"No\")),List_II_J_Darcy*Area_Single*s_per_day,(List_II_J_Pin*Area_CZ_arr Pin+List_II_J_Hole*Area_CZ_arr Hole+List_II_J_Tear*Area_CZ_arr Tear)*s_per_day),IF(OR(CM=1,AND(CM>1,GM_opt=\"No\")),List_I_J_Darcy_In*Area_Single*s_per_day,(List_I_J_Pin_In*Area_CZ_arr Pin+List_I_J_Hole_In*Area_CZ_arr Hole+List_I_J_Tear_In*Area_CZ_arr Tear)*s_per_day))","v":{"$error":"#NAME?"}},null,null,null,6309.5734448019475,198978708155.27423,{"$error":"#NAME?"},{"$error":"#NAME?"},{"$error":"#NAME?"},null,{"$f":"IF(NOT(Solution_type=\"a\"),n*GetJ_1laysol_L(Conc_def_arr Pin/1000,thick_cl,$G51,x,R_cl,D_cl_arr Pin,Decay_cl,vel_cl_arr Pin,nsum),0)","v":0},{"$f":"IF(NOT(Solution_type=\"a\"),Get_1laysol_inf(Conc_def_arr Pin,thick_cl,$G51,x,R_cl,D_cl_arr Pin,Decay_cl,vel_cl_arr Pin,nsum),0)","v":0},{"$f":"IF(NOT(Solution_type=\"a\"),(n)*GetJ_1laysol_inf(Conc_def_arr Pin/1000,thick_cl,$G51,x,R_cl,D_cl_arr Pin,Decay_cl,vel_cl_arr Pin,nsum),0)","v":0},null,{"$f":"IF(NOT(Solution_type=\"a\"),n*GetJ_1laysol_L(Conc_def_arr Hole/1000,thick_cl,$G51,x,R_cl,D_cl_arr Hole,Decay_cl,vel_cl_arr Hole,nsum),0)","v":0},{"$f":"IF(NOT(Solution_type=\"a\"),Get_1laysol_inf(Conc_def_arr Hole,thick_cl,$G51,x,R_cl,D_cl_arr Hole,Decay_cl,vel_cl_arr Hole,nsum),0)","v":0},{"$f":"IF(NOT(Solution_type=\"a\"),(n)*GetJ_1laysol_inf(Conc_def_arr Hole/1000,thick_cl,$G51,x,R_cl,D_cl_arr Hole,Decay_cl,vel_cl_arr Hole,nsum),0)","v":0},null,{"$f":"IF(NOT(Solution_type=\"a\"),n*GetJ_1laysol_L(Conc_def_arr Tear/1000,thick_cl,$G51,x,R_cl,D_cl_arr Tear,Decay_cl,vel_cl_arr Tear,nsum),0)","v":0},{"$f":"IF(NOT(Solution_type=\"a\"),Get_1laysol_inf(Conc_def_arr Tear,thick_cl,$G51,x,R_cl,D_cl_arr Tear,Decay_cl,vel_cl_arr Tear,nsum),0)","v":0},{"$f":"IF(NOT(Solution_type=\"a\"),(n)*GetJ_1laysol_inf(Conc_def_arr Tear/1000,thick_cl,$G51,x,R_cl,D_cl_arr Tear,Decay_cl,vel_cl_arr Tear,nsum),0)","v":0}]
[{"$f":"IF(OR(CM=1,AND(CM>1,GM_opt=\"No\")),IF(Cont_Class=\"List I\",List_I_C_Darcy,List_II_J_Darcy*Area_Single),IF(Area_Single=0,0,IF(Defect_Choice=1,List_I_C_Pin,IF(Defect_Choice=2,List_I_C_Hole,IF(Defect_Choice=3,List_I_C_Tear,(List_II_J_Pin*Area_CZ_arr Pin+List_II_J_Hole*Area_CZ_arr Hole+List_II_J_Tear*Area_CZ_arr Tear))))))*IF(Cont_Class=\"List II\",1000/aq_Q,1)","v":{"$error":"#NAME?"}},{"$f":"IF(Cont_Class=\"List II\",IF(OR(CM=1,AND(CM>1,GM_opt=\"No\")),List_II_J_Darcy*Area_Single*s_per_day,(List_II_J_Pin*Area_CZ_arr Pin+List_II_J_Hole*Area_CZ_arr Hole+List_II_J_Tear*Area_CZ_arr Tear)*s_per_day),IF(OR(CM=1,AND(CM>1,GM_opt=\"No\")),List_I_J_Darcy_In*Area_Single*s_per_day,(List_I_J_Pin_In*Area_CZ_arr Pin+List_I_J_Hole_In*Area_CZ_arr Hole+List_I_J_Tear_In*Area_CZ_arr Tear)*s_per_day))","v":{"$error":"#NAME?"}},null,null,null,7943.2823472428345,250499352102.65002,{"$error":"#NAME?"},{"$error":"#NAME?"},{"$error":"#NAME?"},null,{"$f":"IF(NOT(Solution_type=\"a\"),n*GetJ_1laysol_L(Conc_def_arr Pin/1000,thick_cl,$G52,x,R_cl,D_cl_arr Pin,Decay_cl,vel_cl_arr Pin,nsum),0)","v":0},{"$f":"IF(NOT(Solution_type=\"a\"),Get_1laysol_inf(Conc_def_arr Pin,thick_cl,$G52,x,R_cl,D_cl_arr Pin,Decay_cl,vel_cl_arr Pin,nsum),0)","v":0},{"$f":"IF(NOT(Solution_type=\"a\"),(n)*GetJ_1laysol_inf(Conc_def_arr Pin/1000,thick_cl,$G52,x,R_cl,D_cl_arr Pin,Decay_cl,vel_cl_arr Pin,nsum),0)","v":0},null,{"$f":"IF(NOT(Solution_type=\"a\"),n*GetJ_1laysol_L(Conc_def_arr Hole/1000,thick_cl,$G52,x,R_cl,D_cl_arr Hole,Decay_cl,vel_cl_arr Hole,nsum),0)","v":0},{"$f":"IF(NOT(Solution_type=\"a\"),Get_1laysol_inf(Conc_def_arr Hole,thick_cl,$G52,x,R_cl,D_cl_arr Hole,Decay_cl,vel_cl_arr Hole,nsum),0)","v":0},{"$f":"IF(NOT(Solution_type=\"a\"),(n)*GetJ_1laysol_inf(Conc_def_arr Hole/1000,thick_cl,$G52,x,R_cl,D_cl_arr Hole,Decay_cl,vel_cl_arr Hole,nsum),0)","v":0},null,{"$f":"IF(NOT(Solution_type=\"a\"),n*GetJ_1laysol_L(Conc_def_arr Tear/1000,thick_cl,$G52,x,R_cl,D_cl_arr Tear,Decay_cl,vel_cl_arr Tear,nsum),0)","v":0},{"$f":"IF(NOT(Solution_type=\"a\"),Get_1laysol_inf(Conc_def_arr Tear,thick_cl,$G52,x,R_cl,D_cl_arr Tear,Decay_cl,vel_cl_arr Tear,nsum),0)","v":0},{"$f":"IF(NOT(Solution_type=\"a\"),(n)*GetJ_1laysol_inf(Conc_def_arr Tear/1000,thick_cl,$G52,x,R_cl,D_cl_arr Tear,Decay_cl,vel_cl_arr Tear,nsum),0)","v":0}]
[{"$f":"IF(OR(CM=1,AND(CM>1,GM_opt=\"No\")),IF(Cont_Class=\"List I\",List_I_C_Darcy,List_II_J_Darcy*Area_Single),IF(Area_Single=0,0,IF(Defect_Choice=1,List_I_C_Pin,IF(Defect_Choice=2,List_I_C_Hole,IF(Defect_Choice=3,List_I_C_Tear,(List_II_J_Pin*Area_CZ_arr Pin+List_II_J_Hole*Area_CZ_arr Hole+List_II_J_Tear*Area_CZ_arr Tear))))))*IF(Cont_Class=\"List II\",1000/aq_Q,1)","v":{"$error":"#NAME?"}},{"$f":"IF(Cont_Class=\"List II\",IF(OR(CM=1,AND(CM>1,GM_opt=\"No\")),List_II_J_Darcy*Area_Single*s_per_day,(List_II_J_Pin*Area_CZ_arr Pin+List_II_J_Hole*Area_CZ_arr Hole+List_II_J_Tear*Area_CZ_arr Tear)*s_per_day),IF(OR(CM=1,AND(CM>1,GM_opt=\"No\")),List_I_J_Darcy_In*Area_Single*s_per_day,(List_I_J_Pin_In*Area_CZ_arr Pin+List_I_J_Hole_In*Area_CZ_arr Hole+List_I_J_Tear_In*Area_CZ_arr Tear)*s_per_day))","v":{"$error":"#NAME?"}},null,null,null,10000.000000000025,315360000000.00079,{"$error":"#NAME?"},{"$error":"#NAME?"},{"$error":"#NAME?"},null,{"$f":"IF(NOT(Solution_type=\"a\"),n*GetJ_1laysol_L(Conc_def_arr Pin/1000,thick_cl,$G53,x,R_cl,D_cl_arr Pin,Decay_cl,vel_cl_arr Pin,nsum),0)","v":0},{"$f":"IF(NOT(Solution_type=\"a\"),Get_1laysol_inf(Conc_def_arr Pin,thick_cl,$G53,x,R_cl,D_cl_arr Pin,Decay_cl,vel_cl_arr Pin,nsum),0)","v":0},{"$f":"IF(NOT(Solution_type=\"a\"),(n)*GetJ_1laysol_inf(Conc_def_arr Pin/1000,thick_cl,$G53,x,R_cl,D_cl_arr Pin,Decay_cl,vel_cl_arr Pin,nsum),0)","v":0},null,{"$f":"IF(NOT(Solution_type=\"a\"),n*GetJ_1laysol_L(Conc_def_arr Hole/1000,thick_cl,$G53,x,R_cl,D_cl_arr Hole,Decay_cl,vel_cl_arr Hole,nsum),0)","v":0},{"$f":"IF(NOT(Solution_type=\"a\"),Get_1laysol_inf(Conc_def_arr Hole,thick_cl,$G53,x,R_cl,D_cl_arr Hole,Decay_cl,vel_cl_arr Hole,nsum),0)","v":0},{"$f":"IF(NOT(Solution_type=\"a\"),(n)*GetJ_1laysol_inf(Conc_def_arr Hole/1000,thick_cl,$G53,x,R_cl,D_cl_arr Hole,Decay_cl,vel_cl_arr Hole,nsum),0)","v":0},null,{"$f":"IF(NOT(Solution_type=\"a\"),n*GetJ_1laysol_L(Conc_def_arr Tear/1000,thick_cl,$G53,x,R_cl,D_cl_arr Tear,Decay_cl,vel_cl_arr Tear,nsum),0)","v":0},{"$f":"IF(NOT(Solution_type=\"a\"),Get_1laysol_inf(Conc_def_arr Tear,thick_cl,$G53,x,R_cl,D_cl_arr Tear,Decay_cl,vel_cl_arr Tear,nsum),0)","v":0},{"$f":"IF(NOT(Solution_type=\"a\"),(n)*GetJ_1laysol_inf(Conc_def_arr Tear/1000,thick_cl,$G53,x,R_cl,D_cl_arr Tear,Decay_cl,vel_cl_arr Tear,nsum),0)","v":0}]
[{"$f":"IF(OR(CM=1,AND(CM>1,GM_opt=\"No\")),IF(Cont_Class=\"List I\",List_I_C_Darcy,List_II_J_Darcy*Area_Single),IF(Area_Single=0,0,IF(Defect_Choice=1,List_I_C_Pin,IF(Defect_Choice=2,List_I_C_Hole,IF(Defect_Choice=3,List_I_C_Tear,(List_II_J_Pin*Area_CZ_arr Pin+List_II_J_Hole*Area_CZ_arr Hole+List_II_J_Tear*Area_CZ_arr Tear))))))*IF(Cont_Class=\"List II\",1000/aq_Q,1)","v":{"$error":"#NAME?"}},{"$f":"IF(Cont_Class=\"List II\",IF(OR(CM=1,AND(CM>1,GM_opt=\"No\")),List_II_J_Darcy*Area_Single*s_per_day,(List_II_J_Pin*Area_CZ_arr Pin+List_II_J_Hole*Area_CZ_arr Hole+List_II_J_Tear*Area_CZ_arr Tear)*s_per_day),IF(OR(CM=1,AND(CM>1,GM_opt=\"No\")),List_I_J_Darcy_In*Area_Single*s_per_day,(List_I_J_Pin_In*Area_CZ_arr Pin+List_I_J_Hole_In*Area_CZ_arr Hole+List_I_J_Tear_In*Area_CZ_arr Tear)*s_per_day))","v":{"$error":"#NAME?"}},null,null,null,12589.254117941706,397014717863.40967,{"$error":"#NAME?"},{"$error":"#NAME?"},{"$error":"#NAME?"},null,{"$f":"IF(NOT(Solution_type=\"a\"),n*GetJ_1laysol_L(Conc_def_arr Pin/1000,thick_cl,$G54,x,R_cl,D_cl_arr Pin,Decay_cl,vel_cl_arr Pin,nsum),0)","v":0},{"$f":"IF(NOT(Solution_type=\"a\"),Get_1laysol_inf(Conc_def_arr Pin,thick_cl,$G54,x,R_cl,D_cl_arr Pin,Decay_cl,vel_cl_arr Pin,nsum),0)","v":0},{"$f":"IF(NOT(Solution_type=\"a\"),(n)*GetJ_1laysol_inf(Conc_def_arr Pin/1000,thick_cl,$G54,x,R_cl,D_cl_arr Pin,Decay_cl,vel_cl_arr Pin,nsum),0)","v":0},null,{"$f":"IF(NOT(Solution_type=\"a\"),n*GetJ_1laysol_L(Conc_def_arr Hole/1000,thick_cl,$G54,x,R_cl,D_cl_arr Hole,Decay_cl,vel_cl_arr Hole,nsum),0)","v":0},{"$f":"IF(NOT(Solution_type=\"a\"),Get_1laysol_inf(Conc_def_arr Hole,thick_cl,$G54,x,R_cl,D_cl_arr Hole,Decay_cl,vel_cl_arr Hole,nsum),0)","v":0},{"$f":"IF(NOT(Solution_type=\"a\"),(n)*GetJ_1laysol_inf(Conc_def_arr Hole/1000,thick_cl,$G54,x,R_cl,D_cl_arr Hole,Decay_cl,vel_cl_arr Hole,nsum),0)","v":0},null,{"$f":"IF(NOT(Solution_type=\"a\"),n*GetJ_1laysol_L(Conc_def_arr Tear/1000,thick_cl,$G54,x,R_cl,D_cl_arr Tear,Decay_cl,vel_cl_arr Tear,nsum),0)","v":0},{"$f":"IF(NOT(Solution_type=\"a\"),Get_1laysol_inf(Conc_def_arr Tear,thick_cl,$G54,x,R_cl,D_cl_arr Tear,Decay_cl,vel_cl_arr Tear,nsum),0)","v":0},{"$f":"IF(NOT(Solution_type=\"a\"),(n)*GetJ_1laysol_inf(Conc_def_arr Tear/1000,thick_cl,$G54,x,R_cl,D_cl_arr Tear,Decay_cl,vel_cl_arr Tear,nsum),0)","v":0}]
[{"$f":"IF(OR(CM=1,AND(CM>1,GM_opt=\"No\")),IF(Cont_Class=\"List I\",List_I_C_Darcy,List_II_J_Darcy*Area_Single),IF(Area_Single=0,0,IF(Defect_Choice=1,List_I_C_Pin,IF(Defect_Choice=2,List_I_C_Hole,IF(Defect_Choice=3,List_I_C_Tear,(List_II_J_Pin*Area_CZ_arr Pin+List_II_J_Hole*Area_CZ_arr Hole+List_II_J_Tear*Area_CZ_arr Tear))))))*IF(Cont_Class=\"List II\",1000/aq_Q,1)","v":{"$error":"#NAME?"}},{"$f":"IF(Cont_Class=\"List II\",IF(OR(CM=1,AND(CM>1,GM_opt=\"No\")),List_II_J_Darcy*Area_Single*s_per_day,(List_II_J_Pin*Area_CZ_arr Pin+List_II_J_Hole*Area_CZ_arr Hole+List_II_J_Tear*Area_CZ_arr Tear)*s_per_day),IF(OR(CM=1,AND(CM>1,GM_opt=\"No\")),List_I_J_Darcy_In*Area_Single*s_per_day,(List_I_J_Pin_In*Area_CZ_arr Pin+List_I_J_Hole_In*Area_CZ_arr Hole+List_I_J_Tear_In*Area_CZ_arr Tear)*s_per_day))","v":{"$error":"#NAME?"}},null,null,null,15848.931924611177,499811917174.53809,{"$error":"#NAME?"},{"$error":"#NAME?"},{"$error":"#NAME?"},null,{"$f":"IF(NOT(Solution_type=\"a\"),n*GetJ_1laysol_L(Conc_def_arr Pin/1000,thick_cl,$G55,x,R_cl,D_cl_arr Pin,Decay_cl,vel_cl_arr Pin,nsum),0)","v":0},{"$f":"IF(NOT(Solution_type=\"a\"),Get_1laysol_inf(Conc_def_arr Pin,thick_cl,$G55,x,R_cl,D_cl_arr Pin,Decay_cl,vel_cl_arr Pin,nsum),0)","v":0},{"$f":"IF(NOT(Solution_type=\"a\"),(n)*GetJ_1laysol_inf(Conc_def_arr Pin/1000,thick_cl,$G55,x,R_cl,D_cl_arr Pin,Decay_cl,vel_cl_arr Pin,nsum),0)","v":0},null,{"$f":"IF(NOT(Solution_type=\"a\"),n*GetJ_1laysol_L(Conc_def_arr Hole/1000,thick_cl,$G55,x,R_cl,D_cl_arr Hole,Decay_cl,vel_cl_arr Hole,nsum),0)","v":0},{"$f":"IF(NOT(Solution_type=\"a\"),Get_1laysol_inf(Conc_def_arr Hole,thick_cl,$G55,x,R_cl,D_cl_arr Hole,Decay_cl,vel_cl_arr Hole,nsum),0)","v":0},{"$f":"IF(NOT(Solution_type=\"a\"),(n)*GetJ_1laysol_inf(Conc_def_arr Hole/1000,thick_cl,$G55,x,R_cl,D_cl_arr Hole,Decay_cl,vel_cl_arr Hole,nsum),0)","v":0},null,{"$f":"IF(NOT(Solution_type=\"a\"),n*GetJ_1laysol_L(Conc_def_arr Tear/1000,thick_cl,$G55,x,R_cl,D_cl_arr Tear,Decay_cl,vel_cl_arr Tear,nsum),0)","v":0},{"$f":"IF(NOT(Solution_type=\"a\"),Get_1laysol_inf(Conc_def_arr Tear,thick_cl,$G55,x,R_cl,D_cl_arr Tear,Decay_cl,vel_cl_arr Tear,nsum),0)","v":0},{"$f":"IF(NOT(Solution_type=\"a\"),(n)*GetJ_1laysol_inf(Conc_def_arr Tear/1000,thick_cl,$G55,x,R_cl,D_cl_arr Tear,Decay_cl,vel_cl_arr Tear,nsum),0)","v":0}]
[{"$f":"IF(OR(CM=1,AND(CM>1,GM_opt=\"No\")),IF(Cont_Class=\"List I\",List_I_C_Darcy,List_II_J_Darcy*Area_Single),IF(Area_Single=0,0,IF(Defect_Choice=1,List_I_C_Pin,IF(Defect_Choice=2,List_I_C_Hole,IF(Defect_Choice=3,List_I_C_Tear,(List_II_J_Pin*Area_CZ_arr Pin+List_II_J_Hole*Area_CZ_arr Hole+List_II_J_Tear*Area_CZ_arr Tear))))))*IF(Cont_Class=\"List II\",1000/aq_Q,1)","v":{"$error":"#NAME?"}},{"$f":"IF(Cont_Class=\"List II\",IF(OR(CM=1,AND(CM>1,GM_opt=\"No\")),List_II_J_Darcy*Area_Single*s_per_day,(List_II_J_Pin*Area_CZ_arr Pin+List_II_J_Hole*Area_CZ_arr Hole+List_II_J_Tear*Area_CZ_arr Tear)*s_per_day),IF(OR(CM=1,AND(CM>1,GM_opt=\"No\")),List_I_J_Darcy_In*Area_Single*s_per_day,(List_I_J_Pin_In*Area_CZ_arr Pin+List_I_J_Hole_In*Area_CZ_arr Hole+List_I_J_Tear_In*Area_CZ_arr Tear)*s_per_day))","v":{"$error":"#NAME?"}},null,null,null,{"$f":"F55*tscale","v":19952.62314968885},629225923648.58752,{"$error":"#NAME?"},{"$error":"#NAME?"},{"$error":"#NAME?"},null,{"$f":"IF(NOT(Solution_type=\"a\"),n*GetJ_1laysol_L(Conc_def_arr Pin/1000,thick_cl,$G56,x,R_cl,D_cl_arr Pin,Decay_cl,vel_cl_arr Pin,nsum),0)","v":0},{"$f":"IF(NOT(Solution_type=\"a\"),Get_1laysol_inf(Conc_def_arr Pin,thick_cl,$G56,x,R_cl,D_cl_arr Pin,Decay_cl,vel_cl_arr Pin,nsum),0)","v":0},{"$f":"IF(NOT(Solution_type=\"a\"),(n)*GetJ_1laysol_inf(Conc_def_arr Pin/1000,thick_cl,$G56,x,R_cl,D_cl_arr Pin,Decay_cl,vel_cl_arr Pin,nsum),0)","v":0},null,{"$f":"IF(NOT(Solution_type=\"a\"),n*GetJ_1laysol_L(Conc_def_arr Hole/1000,thick_cl,$G56,x,R_cl,D_cl_arr Hole,Decay_cl,vel_cl_arr Hole,nsum),0)","v":0},{"$f":"IF(NOT(Solution_type=\"a\"),Get_1laysol_inf(Conc_def_arr Hole,thick_cl,$G56,x,R_cl,D_cl_arr Hole,Decay_cl,vel_cl_arr Hole,nsum),0)","v":0},{"$f":"IF(NOT(Solution_type=\"a\"),(n)*GetJ_1laysol_inf(Conc_def_arr Hole/1000,thick_cl,$G56,x,R_cl,D_cl_arr Hole,Decay_cl,vel_cl_arr Hole,nsum),0)","v":0},null,{"$f":"IF(NOT(Solution_type=\"a\"),n*GetJ_1laysol_L(Conc_def_arr Tear/1000,thick_cl,$G56,x,R_cl,D_cl_arr Tear,Decay_cl,vel_cl_arr Tear,nsum),0)","v":0},{"$f":"IF(NOT(Solution_type=\"a\"),Get_1laysol_inf(Conc_def_arr Tear,thick_cl,$G56,x,R_cl,D_cl_arr Tear,Decay_cl,vel_cl_arr Tear,nsum),0)","v":0},{"$f":"IF(NOT(Solution_type=\"a\"),(n)*GetJ_1laysol_inf(Conc_def_arr Tear/1000,thick_cl,$G56,x,R_cl,D_cl_arr Tear,Decay_cl,vel_cl_arr Tear,nsum),0)","v":0}]
[{"$f":"IF(OR(CM=1,AND(CM>1,GM_opt=\"No\")),IF(Cont_Class=\"List I\",List_I_C_Darcy,List_II_J_Darcy*Area_Single),IF(Area_Single=0,0,IF(Defect_Choice=1,List_I_C_Pin,IF(Defect_Choice=2,List_I_C_Hole,IF(Defect_Choice=3,List_I_C_Tear,(List_II_J_Pin*Area_CZ_arr Pin+List_II_J_Hole*Area_CZ_arr Hole+List_II_J_Tear*Area_CZ_arr Tear))))))*IF(Cont_Class=\"List II\",1000/aq_Q,1)","v":{"$error":"#NAME?"}},{"$f":"IF(Cont_Class=\"List II\",IF(OR(CM=1,AND(CM>1,GM_opt=\"No\")),List_II_J_Darcy*Area_Single*s_per_day,(List_II_J_Pin*Area_CZ_arr Pin+List_II_J_Hole*Area_CZ_arr Hole+List_II_J_Tear*Area_CZ_arr Tear)*s_per_day),IF(OR(CM=1,AND(CM>1,GM_opt=\"No\")),List_I_J_Darcy_In*Area_Single*s_per_day,(List_I_J_Pin_In*Area_CZ_arr Pin+List_I_J_Hole_In*Area_CZ_arr Hole+List_I_J_Tear_In*Area_CZ_arr Tear)*s_per_day))","v":{"$error":"#NAME?"}},null,null,null,25118.864315095871,792148505040.86328,{"$error":"#NAME?"},{"$error":"#NAME?"},{"$error":"#NAME?"},null,{"$f":"IF(NOT(Solution_type=\"a\"),n*GetJ_1laysol_L(Conc_def_arr Pin/1000,thick_cl,$G57,x,R_cl,D_cl_arr Pin,Decay_cl,vel_cl_arr Pin,nsum),0)","v":0},{"$f":"IF(NOT(Solution_type=\"a\"),Get_1laysol_inf(Conc_def_arr Pin,thick_cl,$G57,x,R_cl,D_cl_arr Pin,Decay_cl,vel_cl_arr Pin,nsum),0)","v":0},{"$f":"IF(NOT(Solution_type=\"a\"),(n)*GetJ_1laysol_inf(Conc_def_arr Pin/1000,thick_cl,$G57,x,R_cl,D_cl_arr Pin,Decay_cl,vel_cl_arr Pin,nsum),0)","v":0},null,{"$f":"IF(NOT(Solution_type=\"a\"),n*GetJ_1laysol_L(Conc_def_arr Hole/1000,thick_cl,$G57,x,R_cl,D_cl_arr Hole,Decay_cl,vel_cl_arr Hole,nsum),0)","v":0},{"$f":"IF(NOT(Solution_type=\"a\"),Get_1laysol_inf(Conc_def_arr Hole,thick_cl,$G57,x,R_cl,D_cl_arr Hole,Decay_cl,vel_cl_arr Hole,nsum),0)","v":0},{"$f":"IF(NOT(Solution_type=\"a\"),(n)*GetJ_1laysol_inf(Conc_def_arr Hole/1000,thick_cl,$G57,x,R_cl,D_cl_arr Hole,Decay_cl,vel_cl_arr Hole,nsum),0)","v":0},null,{"$f":"IF(NOT(Solution_type=\"a\"),n*GetJ_1laysol_L(Conc_def_arr Tear/1000,thick_cl,$G57,x,R_cl,D_cl_arr Tear,Decay_cl,vel_cl_arr Tear,nsum),0)","v":0},{"$f":"IF(NOT(Solution_type=\"a\"),Get_1laysol_inf(Conc_def_arr Tear,thick_cl,$G57,x,R_cl,D_cl_arr Tear,Decay_cl,vel_cl_arr Tear,nsum),0)","v":0},{"$f":"IF(NOT(Solution_type=\"a\"),(n)*GetJ_1laysol_inf(Conc_def_arr Tear/1000,thick_cl,$G57,x,R_cl,D_cl_arr Tear,Decay_cl,vel_cl_arr Tear,nsum),0)","v":0}]
[{"$f":"IF(OR(CM=1,AND(CM>1,GM_opt=\"No\")),IF(Cont_Class=\"List I\",List_I_C_Darcy,List_II_J_Darcy*Area_Single),IF(Area_Single=0,0,IF(Defect_Choice=1,List_I_C_Pin,IF(Defect_Choice=2,List_I_C_Hole,IF(Defect_Choice=3,List_I_C_Tear,(List_II_J_Pin*Area_CZ_arr Pin+List_II_J_Hole*Area_CZ_arr Hole+List_II_J_Tear*Area_CZ_arr Tear))))))*IF(Cont_Class=\"List II\",1000/aq_Q,1)","v":{"$error":"#NAME?"}},{"$f":"IF(Cont_Class=\"List II\",IF(OR(CM=1,AND(CM>1,GM_opt=\"No\")),List_II_J_Darcy*Area_Single*s_per_day,(List_II_J_Pin*Area_CZ_arr Pin+List_II_J_Hole*Area_CZ_arr Hole+List_II_J_Tear*Area_CZ_arr Tear)*s_per_day),IF(OR(CM=1,AND(CM>1,GM_opt=\"No\")),List_I_J_Darcy_In*Area_Single*s_per_day,(List_I_J_Pin_In*Area_CZ_arr Pin+List_I_J_Hole_In*Area_CZ_arr Hole+List_I_J_Tear_In*Area_CZ_arr Tear)*s_per_day))","v":{"$error":"#NAME?"}},null,null,null,31622.776601683883,997255882910.70288,{"$error":"#NAME?"},{"$error":"#NAME?"},{"$error":"#NAME?"},null,{"$f":"IF(NOT(Solution_type=\"a\"),n*GetJ_1laysol_L(Conc_def_arr Pin/1000,thick_cl,$G58,x,R_cl,D_cl_arr Pin,Decay_cl,vel_cl_arr Pin,nsum),0)","v":0},{"$f":"IF(NOT(Solution_type=\"a\"),Get_1laysol_inf(Conc_def_arr Pin,thick_cl,$G58,x,R_cl,D_cl_arr Pin,Decay_cl,vel_cl_arr Pin,nsum),0)","v":0},{"$f":"IF(NOT(Solution_type=\"a\"),(n)*GetJ_1laysol_inf(Conc_def_arr Pin/1000,thick_cl,$G58,x,R_cl,D_cl_arr Pin,Decay_cl,vel_cl_arr Pin,nsum),0)","v":0},null,{"$f":"IF(NOT(Solution_type=\"a\"),n*GetJ_1laysol_L(Conc_def_arr Hole/1000,thick_cl,$G58,x,R_cl,D_cl_arr Hole,Decay_cl,vel_cl_arr Hole,nsum),0)","v":0},{"$f":"IF(NOT(Solution_type=\"a\"),Get_1laysol_inf(Conc_def_arr Hole,thick_cl,$G58,x,R_cl,D_cl_arr Hole,Decay_cl,vel_cl_arr Hole,nsum),0)","v":0},{"$f":"IF(NOT(Solution_type=\"a\"),(n)*GetJ_1laysol_inf(Conc_def_arr Hole/1000,thick_cl,$G58,x,R_cl,D_cl_arr Hole,Decay_cl,vel_cl_arr Hole,nsum),0)","v":0},null,{"$f":"IF(NOT(Solution_type=\"a\"),n*GetJ_1laysol_L(Conc_def_arr Tear/1000,thick_cl,$G58,x,R_cl,D_cl_arr Tear,Decay_cl,vel_cl_arr Tear,nsum),0)","v":0},{"$f":"IF(NOT(Solution_type=\"a\"),Get_1laysol_inf(Conc_def_arr Tear,thick_cl,$G58,x,R_cl,D_cl_arr Tear,Decay_cl,vel_cl_arr Tear,nsum),0)","v":0},{"$f":"IF(NOT(Solution_type=\"a\"),(n)*GetJ_1laysol_inf(Conc_def_arr Tear/1000,thick_cl,$G58,x,R_cl,D_cl_arr Tear,Decay_cl,vel_cl_arr Tear,nsum),0)","v":0}]
[{"$f":"IF(OR(CM=1,AND(CM>1,GM_opt=\"No\")),IF(Cont_Class=\"List I\",List_I_C_Darcy,List_II_J_Darcy*Area_Single),IF(Area_Single=0,0,IF(Defect_Choice=1,List_I_C_Pin,IF(Defect_Choice=2,List_I_C_Hole,IF(Defect_Choice=3,List_I_C_Tear,(List_II_J_Pin*Area_CZ_arr Pin+List_II_J_Hole*Area_CZ_arr Hole+List_II_J_Tear*Area_CZ_arr Tear))))))*IF(Cont_Class=\"List II\",1000/aq_Q,1)","v":{"$error":"#NAME?"}},{"$f":"IF(Cont_Class=\"List II\",IF(OR(CM=1,AND(CM>1,GM_opt=\"No\")),List_II_J_Darcy*Area_Single*s_per_day,(List_II_J_Pin*Area_CZ_arr Pin+List_II_J_Hole*Area_CZ_arr Hole+List_II_J_Tear*Area_CZ_arr Tear)*s_per_day),IF(OR(CM=1,AND(CM>1,GM_opt=\"No\")),List_I_J_Darcy_In*Area_Single*s_per_day,(List_I_J_Pin_In*Area_CZ_arr Pin+List_I_J_Hole_In*Area_CZ_arr Hole+List_I_J_Tear_In*Area_CZ_arr Tear)*s_per_day))","v":{"$error":"#NAME?"}},null,null,null,39810.717055349844,1255470773057.5127,{"$error":"#NAME?"},{"$error":"#NAME?"},{"$error":"#NAME?"},null,{"$f":"IF(NOT(Solution_type=\"a\"),n*GetJ_1laysol_L(Conc_def_arr Pin/1000,thick_cl,$G59,x,R_cl,D_cl_arr Pin,Decay_cl,vel_cl_arr Pin,nsum),0)","v":0},{"$f":"IF(NOT(Solution_type=\"a\"),Get_1laysol_inf(Conc_def_arr Pin,thick_cl,$G59,x,R_cl,D_cl_arr Pin,Decay_cl,vel_cl_arr Pin,nsum),0)","v":0},{"$f":"IF(NOT(Solution_type=\"a\"),(n)*GetJ_1laysol_inf(Conc_def_arr Pin/1000,thick_cl,$G59,x,R_cl,D_cl_arr Pin,Decay_cl,vel_cl_arr Pin,nsum),0)","v":0},null,{"$f":"IF(NOT(Solution_type=\"a\"),n*GetJ_1laysol_L(Conc_def_arr Hole/1000,thick_cl,$G59,x,R_cl,D_cl_arr Hole,Decay_cl,vel_cl_arr Hole,nsum),0)","v":0},{"$f":"IF(NOT(Solution_type=\"a\"),Get_1laysol_inf(Conc_def_arr Hole,thick_cl,$G59,x,R_cl,D_cl_arr Hole,Decay_cl,vel_cl_arr Hole,nsum),0)","v":0},{"$f":"IF(NOT(Solution_type=\"a\"),(n)*GetJ_1laysol_inf(Conc_def_arr Hole/1000,thick_cl,$G59,x,R_cl,D_cl_arr Hole,Decay_cl,vel_cl_arr Hole,nsum),0)","v":0},null,{"$f":"IF(NOT(Solution_type=\"a\"),n*GetJ_1laysol_L(Conc_def_arr Tear/1000,thick_cl,$G59,x,R_cl,D_cl_arr Tear,Decay_cl,vel_cl_arr Tear,nsum),0)","v":0},{"$f":"IF(NOT(Solution_type=\"a\"),Get_1laysol_inf(Conc_def_arr Tear,thick_cl,$G59,x,R_cl,D_cl_arr Tear,Decay_cl,vel_cl_arr Tear,nsum),0)","v":0},{"$f":"IF(NOT(Solution_type=\"a\"),(n)*GetJ_1laysol_inf(Conc_def_arr Tear/1000,thick_cl,$G59,x,R_cl,D_cl_arr Tear,Decay_cl,vel_cl_arr Tear,nsum),0)","v":0}]
[{"$f":"IF(OR(CM=1,AND(CM>1,GM_opt=\"No\")),IF(Cont_Class=\"List I\",List_I_C_Darcy,List_II_J_Darcy*Area_Single),IF(Area_Single=0,0,IF(Defect_Choice=1,List_I_C_Pin,IF(Defect_Choice=2,List_I_C_Hole,IF(Defect_Choice=3,List_I_C_Tear,(List_II_J_Pin*Area_CZ_arr Pin+List_II_J_Hole*Area_CZ_arr Hole+List_II_J_Tear*Area_CZ_arr Tear))))))*IF(Cont_Class=\"List II\",1000/aq_Q,1)","v":{"$error":"#NAME?"}},{"$f":"IF(Cont_Class=\"List II\",IF(OR(CM=1,AND(CM>1,GM_opt=\"No\")),List_II_J_Darcy*Area_Single*s_per_day,(List_II_J_Pin*Area_CZ_arr Pin+List_II_J_Hole*Area_CZ_arr Hole+List_II_J_Tear*Area_CZ_arr Tear)*s_per_day),IF(OR(CM=1,AND(CM>1,GM_opt=\"No\")),List_I_J_Darcy_In*Area_Single*s_per_day,(List_I_J_Pin_In*Area_CZ_arr Pin+List_I_J_Hole_In*Area_CZ_arr Hole+List_I_J_Tear_In*Area_CZ_arr Tear)*s_per_day))","v":{"$error":"#NAME?"}},null,null,null,50118.723362727382,1580544059966.9707,{"$error":"#NAME?"},{"$error":"#NAME?"},{"$error":"#NAME?"},null,{"$f":"IF(NOT(Solution_type=\"a\"),n*GetJ_1laysol_L(Conc_def_arr Pin/1000,thick_cl,$G60,x,R_cl,D_cl_arr Pin,Decay_cl,vel_cl_arr Pin,nsum),0)","v":0},{"$f":"IF(NOT(Solution_type=\"a\"),Get_1laysol_inf(Conc_def_arr Pin,thick_cl,$G60,x,R_cl,D_cl_arr Pin,Decay_cl,vel_cl_arr Pin,nsum),0)","v":0},{"$f":"IF(NOT(Solution_type=\"a\"),(n)*GetJ_1laysol_inf(Conc_def_arr Pin/1000,thick_cl,$G60,x,R_cl,D_cl_arr Pin,Decay_cl,vel_cl_arr Pin,nsum),0)","v":0},null,{"$f":"IF(NOT(Solution_type=\"a\"),n*GetJ_1laysol_L(Conc_def_arr Hole/1000,thick_cl,$G60,x,R_cl,D_cl_arr Hole,Decay_cl,vel_cl_arr Hole,nsum),0)","v":0},{"$f":"IF(NOT(Solution_type=\"a\"),Get_1laysol_inf(Conc_def_arr Hole,thick_cl,$G60,x,R_cl,D_cl_arr Hole,Decay_cl,vel_cl_arr Hole,nsum),0)","v":0},{"$f":"IF(NOT(Solution_type=\"a\"),(n)*GetJ_1laysol_inf(Conc_def_arr Hole/1000,thick_cl,$G60,x,R_cl,D_cl_arr Hole,Decay_cl,vel_cl_arr Hole,nsum),0)","v":0},null,{"$f":"IF(NOT(Solution_type=\"a\"),n*GetJ_1laysol_L(Conc_def_arr Tear/1000,thick_cl,$G60,x,R_cl,D_cl_arr Tear,Decay_cl,vel_cl_arr Tear,nsum),0)","v":0},{"$f":"IF(NOT(Solution_type=\"a\"),Get_1laysol_inf(Conc_def_arr Tear,thick_cl,$G60,x,R_cl,D_cl_arr Tear,Decay_cl,vel_cl_arr Tear,nsum),0)","v":0},{"$f":"IF(NOT(Solution_type=\"a\"),(n)*GetJ_1laysol_inf(Conc_def_arr Tear/1000,thick_cl,$G60,x,R_cl,D_cl_arr Tear,Decay_cl,vel_cl_arr Tear,nsum),0)","v":0}]
[{"$f":"IF(OR(CM=1,AND(CM>1,GM_opt=\"No\")),IF(Cont_Class=\"List I\",List_I_C_Darcy,List_II_J_Darcy*Area_Single),IF(Area_Single=0,0,IF(Defect_Choice=1,List_I_C_Pin,IF(Defect_Choice=2,List_I_C_Hole,IF(Defect_Choice=3,List_I_C_Tear,(List_II_J_Pin*Area_CZ_arr Pin+List_II_J_Hole*Area_CZ_arr Hole+List_II_J_Tear*Area_CZ_arr Tear))))))*IF(Cont_Class=\"List II\",1000/aq_Q,1)","v":{"$error":"#NAME?"}},{"$f":"IF(Cont_Class=\"List II\",IF(OR(CM=1,AND(CM>1,GM_opt=\"No\")),List_II_J_Darcy*Area_Single*s_per_day,(List_II_J_Pin*Area_CZ_arr Pin+List_II_J_Hole*Area_CZ_arr Hole+List_II_J_Tear*Area_CZ_arr Tear)*s_per_day),IF(OR(CM=1,AND(CM>1,GM_opt=\"No\")),List_I_J_Darcy_In*Area_Single*s_per_day,(List_I_J_Pin_In*Area_CZ_arr Pin+List_I_J_Hole_In*Area_CZ_arr Hole+List_I_J_Tear_In*Area_CZ_arr Tear)*s_per_day))","v":{"$error":"#NAME?"}},null,null,null,63095.734448019524,1989787081552.7437,{"$error":"#NAME?"},{"$error":"#NAME?"},{"$error":"#NAME?"},null,{"$f":"IF(NOT(Solution_type=\"a\"),n*GetJ_1laysol_L(Conc_def_arr Pin/1000,thick_cl,$G61,x,R_cl,D_cl_arr Pin,Decay_cl,vel_cl_arr Pin,nsum),0)","v":0},{"$f":"IF(NOT(Solution_type=\"a\"),Get_1laysol_inf(Conc_def_arr Pin,thick_cl,$G61,x,R_cl,D_cl_arr Pin,Decay_cl,vel_cl_arr Pin,nsum),0)","v":0},{"$f":"IF(NOT(Solution_type=\"a\"),(n)*GetJ_1laysol_inf(Conc_def_arr Pin/1000,thick_cl,$G61,x,R_cl,D_cl_arr Pin,Decay_cl,vel_cl_arr Pin,nsum),0)","v":0},null,{"$f":"IF(NOT(Solution_type=\"a\"),n*GetJ_1laysol_L(Conc_def_arr Hole/1000,thick_cl,$G61,x,R_cl,D_cl_arr Hole,Decay_cl,vel_cl_arr Hole,nsum),0)","v":0},{"$f":"IF(NOT(Solution_type=\"a\"),Get_1laysol_inf(Conc_def_arr Hole,thick_cl,$G61,x,R_cl,D_cl_arr Hole,Decay_cl,vel_cl_arr Hole,nsum),0)","v":0},{"$f":"IF(NOT(Solution_type=\"a\"),(n)*GetJ_1laysol_inf(Conc_def_arr Hole/1000,thick_cl,$G61,x,R_cl,D_cl_arr Hole,Decay_cl,vel_cl_arr Hole,nsum),0)","v":0},null,{"$f":"IF(NOT(Solution_type=\"a\"),n*GetJ_1laysol_L(Conc_def_arr Tear/1000,thick_cl,$G61,x,R_cl,D_cl_arr Tear,Decay_cl,vel_cl_arr Tear,nsum),0)","v":0},{"$f":"IF(NOT(Solution_type=\"a\"),Get_1laysol_inf(Conc_def_arr Tear,thick_cl,$G61,x,R_cl,D_cl_arr Tear,Decay_cl,vel_cl_arr Tear,nsum),0)","v":0},{"$f":"IF(NOT(Solution_type=\"a\"),(n)*GetJ_1laysol_inf(Conc_def_arr Tear/1000,thick_cl,$G61,x,R_cl,D_cl_arr Tear,Decay_cl,vel_cl_arr Tear,nsum),0)","v":0}]
[{"$f":"IF(OR(CM=1,AND(CM>1,GM_opt=\"No\")),IF(Cont_Class=\"List I\",List_I_C_Darcy,List_II_J_Darcy*Area_Single),IF(Area_Single=0,0,IF(Defect_Choice=1,List_I_C_Pin,IF(Defect_Choice=2,List_I_C_Hole,IF(Defect_Choice=3,List_I_C_Tear,(List_II_J_Pin*Area_CZ_arr Pin+List_II_J_Hole*Area_CZ_arr Hole+List_II_J_Tear*Area_CZ_arr Tear))))))*IF(Cont_Class=\"List II\",1000/aq_Q,1)","v":{"$error":"#NAME?"}},{"$f":"IF(Cont_Class=\"List II\",IF(OR(CM=1,AND(CM>1,GM_opt=\"No\")),List_II_J_Darcy*Area_Single*s_per_day,(List_II_J_Pin*Area_CZ_arr Pin+List_II_J_Hole*Area_CZ_arr Hole+List_II_J_Tear*Area_CZ_arr Tear)*s_per_day),IF(OR(CM=1,AND(CM>1,GM_opt=\"No\")),List_I_J_Darcy_In*Area_Single*s_per_day,(List_I_J_Pin_In*Area_CZ_arr Pin+List_I_J_Hole_In*Area_CZ_arr Hole+List_I_J_Tear_In*Area_CZ_arr Tear)*s_per_day))","v":{"$error":"#NAME?"}},null,null,null,79432.823472428412,2504993521026.5024,{"$error":"#NAME?"},{"$error":"#NAME?"},{"$error":"#NAME?"},null,{"$f":"IF(NOT(Solution_type=\"a\"),n*GetJ_1laysol_L(Conc_def_arr Pin/1000,thick_cl,$G62,x,R_cl,D_cl_arr Pin,Decay_cl,vel_cl_arr Pin,nsum),0)","v":0},{"$f":"IF(NOT(Solution_type=\"a\"),Get_1laysol_inf(Conc_def_arr Pin,thick_cl,$G62,x,R_cl,D_cl_arr Pin,Decay_cl,vel_cl_arr Pin,nsum),0)","v":0},{"$f":"IF(NOT(Solution_type=\"a\"),(n)*GetJ_1laysol_inf(Conc_def_arr Pin/1000,thick_cl,$G62,x,R_cl,D_cl_arr Pin,Decay_cl,vel_cl_arr Pin,nsum),0)","v":0},null,{"$f":"IF(NOT(Solution_type=\"a\"),n*GetJ_1laysol_L(Conc_def_arr Hole/1000,thick_cl,$G62,x,R_cl,D_cl_arr Hole,Decay_cl,vel_cl_arr Hole,nsum),0)","v":0},{"$f":"IF(NOT(Solution_type=\"a\"),Get_1laysol_inf(Conc_def_arr Hole,thick_cl,$G62,x,R_cl,D_cl_arr Hole,Decay_cl,vel_cl_arr Hole,nsum),0)","v":0},{"$f":"IF(NOT(Solution_type=\"a\"),(n)*GetJ_1laysol_inf(Conc_def_arr Hole/1000,thick_cl,$G62,x,R_cl,D_cl_arr Hole,Decay_cl,vel_cl_arr Hole,nsum),0)","v":0},null,{"$f":"IF(NOT(Solution_type=\"a\"),n*GetJ_1laysol_L(Conc_def_arr Tear/1000,thick_cl,$G62,x,R_cl,D_cl_arr Tear,Decay_cl,vel_cl_arr Tear,nsum),0)","v":0},{"$f":"IF(NOT(Solution_type=\"a\"),Get_1laysol_inf(Conc_def_arr Tear,thick_cl,$G62,x,R_cl,D_cl_arr Tear,Decay_cl,vel_cl_arr Tear,nsum),0)","v":0},{"$f":"IF(NOT(Solution_type=\"a\"),(n)*GetJ_1laysol_inf(Conc_def_arr Tear/1000,thick_cl,$G62,x,R_cl,D_cl_arr Tear,Decay_cl,vel_cl_arr Tear,nsum),0)","v":0}]
[{"$f":"IF(OR(CM=1,AND(CM>1,GM_opt=\"No\")),IF(Cont_Class=\"List I\",List_I_C_Darcy,List_II_J_Darcy*Area_Single),IF(Area_Single=0,0,IF(Defect_Choice=1,List_I_C_Pin,IF(Defect_Choice=2,List_I_C_Hole,IF(Defect_Choice=3,List_I_C_Tear,(List_II_J_Pin*Area_CZ_arr Pin+List_II_J_Hole*Area_CZ_arr Hole+List_II_J_Tear*Area_CZ_arr Tear))))))*IF(Cont_Class=\"List II\",1000/aq_Q,1)","v":{"$error":"#NAME?"}},{"$f":"IF(Cont_Class=\"List II\",IF(OR(CM=1,AND(CM>1,GM_opt=\"No\")),List_II_J_Darcy*Area_Single*s_per_day,(List_II_J_Pin*Area_CZ_arr Pin+List_II_J_Hole*Area_CZ_arr Hole+List_II_J_Tear*Area_CZ_arr Tear)*s_per_day),IF(OR(CM=1,AND(CM>1,GM_opt=\"No\")),List_I_J_Darcy_In*Area_Single*s_per_day,(List_I_J_Pin_In*Area_CZ_arr Pin+List_I_J_Hole_In*Area_CZ_arr Hole+List_I_J_Tear_In*Area_CZ_arr Tear)*s_per_day))","v":{"$error":"#NAME?"}},null,null,null,{"$f":"F62*tscale","v":100000.00000000033},3153600000000.0103,{"$error":"#NAME?"},{"$error":"#NAME?"},{"$error":"#NAME?"},null,{"$f":"IF(NOT(Solution_type=\"a\"),n*GetJ_1laysol_L(Conc_def_arr Pin/1000,thick_cl,$G63,x,R_cl,D_cl_arr Pin,Decay_cl,vel_cl_arr Pin,nsum),0)","v":0},{"$f":"IF(NOT(Solution_type=\"a\"),Get_1laysol_inf(Conc_def_arr Pin,thick_cl,$G63,x,R_cl,D_cl_arr Pin,Decay_cl,vel_cl_arr Pin,nsum),0)","v":0},{"$f":"IF(NOT(Solution_type=\"a\"),(n)*GetJ_1laysol_inf(Conc_def_arr Pin/1000,thick_cl,$G63,x,R_cl,D_cl_arr Pin,Decay_cl,vel_cl_arr Pin,nsum),0)","v":0},null,{"$f":"IF(NOT(Solution_type=\"a\"),n*GetJ_1laysol_L(Conc_def_arr Hole/1000,thick_cl,$G63,x,R_cl,D_cl_arr Hole,Decay_cl,vel_cl_arr Hole,nsum),0)","v":0},{"$f":"IF(NOT(Solution_type=\"a\"),Get_1laysol_inf(Conc_def_arr Hole,thick_cl,$G63,x,R_cl,D_cl_arr Hole,Decay_cl,vel_cl_arr Hole,nsum),0)","v":0},{"$f":"IF(NOT(Solution_type=\"a\"),(n)*GetJ_1laysol_inf(Conc_def_arr Hole/1000,thick_cl,$G63,x,R_cl,D_cl_arr Hole,Decay_cl,vel_cl_arr Hole,nsum),0)","v":0},null,{"$f":"IF(NOT(Solution_type=\"a\"),n*GetJ_1laysol_L(Conc_def_arr Tear/1000,thick_cl,$G63,x,R_cl,D_cl_arr Tear,Decay_cl,vel_cl_arr Tear,nsum),0)","v":0},{"$f":"IF(NOT(Solution_type=\"a\"),Get_1laysol_inf(Conc_def_arr Tear,thick_cl,$G63,x,R_cl,D_cl_arr Tear,Decay_cl,vel_cl_arr Tear,nsum),0)","v":0},{"$f":"IF(NOT(Solution_type=\"a\"),(n)*GetJ_1laysol_inf(Conc_def_arr Tear/1000,thick_cl,$G63,x,R_cl,D_cl_arr Tear,Decay_cl,vel_cl_arr Tear,nsum),0)","v":0}]

{"sheet":"Delamination","index":6,"n_rows":63,"n_cols":12,"rows_kept":63,"cut":false,"hidden":true,"merged":[[8,9,8,15],[10,0,10,2]]}
[]
["List I is the Max"]
["List II is combination of the fluxes"]
[]
["Frac_Delam",{"$f":"Area_delam/Area_contact","v":1}]
["x_org1",{"$f":"thick_cl","v":0.5}]
[]
[]
[null,null,null,null,null,null,null,null,null,"Using Darcy Flow for Delam Area"]
[]
["Concentration",null,null,null,null,null,null,null,null,"kg/(m2 s)","mg/l","kg/(m2 s)"]
["Delam Concentration output mg/l","Contact Concentration","Combined output","Delam kg/day","Contact kg/day","Combined Kg/day",null,"Time years","Time seconds","flux boundary at l+L","conc boundary at infininity","flux boundary at infinity"]
[{"$f":"IF(OR(GM_delam=\"No\",Solution_type=\"a\"),0,IF(Cont_Class=\"List I\",List_I_C_Delam,List_II_J_Delam)*IF(Cont_Class=\"List II\",Area_delam*1000/aq_Q,1))","v":0},{"$f":"IF(OR(GM_delam=\"No\",Solution_type=\"a\"),0,IF(Solution_type=\"b\",TwoLay_sol,Single_Lay_Sol))","v":0},{"$f":"IF(OR(GM_delam=\"No\",Solution_type=\"a\"),0,IF(Cont_Class=\"List I\",MAX(A13,B13),(Delam_Out*aq_Q/1000+Contact_Out*aq_Q/1000)*1000/aq_Q))","v":0},{"$f":"IF(OR(GM_delam=\"No\",Solution_type=\"a\"),0,IF(Cont_Class=\"List II\",List_II_J_Delam,List_I_J_Delam_In))*Area_delam*s_per_day","v":0},{"$f":"IF(OR(GM_delam=\"No\",Solution_type=\"a\"),0,IF(Solution_type=\"b\",Two_Lay_Mass,Single_Lay_Mass))","v":0},{"$f":"D13+E13","v":0},null,{"$f":"tmin","v":1},{"$f":"H13*365*24*60*60","v":31536000},{"$f":"IF(OR(GM_delam=\"No\",Solution_type=\"a\"),0,n*GetJ_1laysol_L(Conc_delam/1000,thick_cl,$I13,x,R_cl,Dcl_Delam,Decay_cl,vel_delam,nsum))","v":0},{"$f":"IF(OR(GM_delam=\"No\",Solution_type=\"a\"),0,Get_1laysol_inf(Conc_delam,thick_cl,$I13,x,R_cl,Dcl_Delam,Decay_cl,vel_delam,nsum))","v":0},{"$f":"IF(OR(GM_delam=\"No\",Solution_type=\"a\"),0,n*GetJ_1laysol_inf(Conc_delam/1000,thick_cl,$I13,x,R_cl,Dcl_Delam,Decay_cl,vel_delam,nsum))","v":0}]
[{"$f":"IF(OR(GM_delam=\"No\",Solution_type=\"a\"),0,IF(Cont_Class=\"List I\",List_I_C_Delam,List_II_J_Delam)*IF(Cont_Class=\"List II\",Area_delam*1000/aq_Q,1))","v":0},{"$f":"IF(OR(GM_delam=\"No\",Solution_type=\"a\"),0,IF(Solution_type=\"b\",TwoLay_sol,Single_Lay_Sol))","v":0},{"$f":"IF(OR(GM_delam=\"No\",Solution_type=\"a\"),0,IF(Cont_Class=\"List I\",MAX(A14,B14),(Delam_Out*aq_Q/1000+Contact_Out*aq_Q/1000)*1000/aq_Q))","v":0},{"$f":"IF(OR(GM_delam=\"No\",Solution_type=\"a\"),0,IF(Cont_Class=\"List II\",List_II_J_Delam,List_I_J_Delam_In))*Area_delam*s_per_day","v":0},{"$f":"IF(OR(GM_delam=\"No\",Solution_type=\"a\"),0,IF(Solution_type=\"b\",Two_Lay_Mass,Single_Lay_Mass))","v":0},{"$f":"D14+E14","v":0},null,{"$f":"H13*tscale","v":1.2589254117941673},39701471.786340863,0,0,0]
[0,0,0,0,0,0,null,1.5848931924611136,49981191.717453673,0,0,0]
[0,0,0,0,0,0,null,1.99526231496888,62922592.364858605,0,0,0]
[0,0,0,0,0,0,null,2.5118864315095806,79214850.504086137,0,0,0]
[0,0,0,0,0,0,null,3.16227766016838,99725588.291070029,0,0,0]
[0,0,0,0,0,0,null,3.9810717055349736,125547077.30575092,0,0,0]
[{"$f":"IF(OR(GM_delam=\"No\",Solution_type=\"a\"),0,IF(Cont_Class=\"List I\",List_I_C_Delam,List_II_J_Delam)*IF(Cont_Class=\"List II\",Area_delam*1000/aq_Q,1))","v":0},0,{"$f":"IF(OR(GM_delam=\"No\",Solution_type=\"a\"),0,IF(Cont_Class=\"List I\",MAX(A20,B20),(Delam_Out*aq_Q/1000+Contact_Out*aq_Q/1000)*1000/aq_Q))","v":0},0,{"$f":"IF(OR(GM_delam=\"No\",Solution_type=\"a\"),0,IF(Solution_type=\"b\",Two_Lay_Mass,Single_Lay_Mass))","v":0},{"$f":"D20+E20","v":0},null,5.0118723362727247,158054405.99669662,0,0,0]
[0,0,0,0,0,0,null,6.3095734448019352,198978708.15527385,0,0,0]
[0,0,0,0,0,0,null,7.9432823472428185,250499352.10264954,0,0,0]
[0,0,0,0,0,0,null,10.000000000000005,315360000.00000018,0,0,0]
[0,0,0,0,0,0,null,12.58925411794168,397014717.8634088,0,0,0]
[0,0,0,0,0,0,null,15.848931924611145,499811917.17453718,0,0,0]
[0,0,0,0,0,0,null,19.952623149688812,629225923.64858639,0,0,0]
[{"$f":"IF(OR(GM_delam=\"No\",Solution_type=\"a\"),0,IF(Cont_Class=\"List I\",List_I_C_Delam,List_II_J_Delam)*IF(Cont_Class=\"List II\",Area_delam*1000/aq_Q,1))","v":0},0,0,0,0,0,null,25.118864315095824,792148505.04086196,0,0,0]
[0,0,0,0,0,0,null,31.622776601683825,997255882.91070092,0,0,0]
[0,0,0,0,0,0,null,39.81071705534977,1255470773.0575106,0,0,0]
[0,0,0,0,0,0,null,50.118723362727287,1580544059.9669676,0,0,0]
[0,0,0,0,0,0,null,63.0957344480194,1989787081.5527399,0,0,0]
[0,0,0,0,0,0,null,79.432823472428254,2504993521.0264974,0,0,0]
[0,0,0,0,0,0,null,100.00000000000014,3153600000.0000038,0,0,0]
[0,0,0,0,0,0,null,125.89254117941691,3970147178.6340914,0,0,0]
[0,0,0,0,0,0,null,158.48931924611159,4998119171.7453747,0,0,0]
[0,0,0,0,0,0,null,199.52623149688827,6292259236.4858685,0,0,0]
[0,0,0,0,0,0,null,251.18864315095843,7921485050.4086246,0,0,0]
[0,0,0,0,0,0,null,316.22776601683847,9972558829.1070175,0,0,0]
[0,0,0,0,0,0,null,398.10717055349795,12554707730.575111,0,0,0]
[0,0,0,0,0,0,null,501.1872336272732,15805440599.669691,0,0,0]
[0,0,0,0,0,0,null,630.95734448019448,19897870815.527416,0,0,0]
[0,0,0,0,0,0,null,794.32823472428311,25049935210.264988,0,0,0]
[0,0,0,0,0,0,null,1000.000000000002,31536000000.000069,0,0,0]
[0,0,0,0,0,0,null,1258.9254117941698,39701471786.340935,0,0,0]
[0,0,0,0,0,0,null,1584.8931924611168,49981191717.453781,{"$f":"IF(OR(GM_delam=\"No\",Solution_type=\"a\"),0,n*GetJ_1laysol_L(Conc_delam/1000,thick_cl,$I45,x,R_cl,Dcl_Delam,Decay_cl,vel_delam,nsum))","v":0},{"$f":"IF(OR(GM_delam=\"No\",Solution_type=\"a\"),0,Get_1laysol_inf(Conc_delam,thick_cl,$I45,x,R_cl,Dcl_Delam,Decay_cl,vel_delam,nsum))","v":0},{"$f":"IF(OR(GM_delam=\"No\",Solution_type=\"a\"),0,n*GetJ_1laysol_inf(Conc_delam/1000,thick_cl,$I45,x,R_cl,Dcl_Delam,Decay_cl,vel_delam,nsum))","v":0}]
[0,0,0,0,0,0,null,1995.2623149688839,62922592364.858719,0,0,0]
[0,0,0,0,0,0,null,2511.8864315095857,79214850504.086304,0,0,0]
[0,0,0,0,0,0,null,3162.2776601683863,99725588291.070236,0,0,0]
[0,0,0,0,0,0,null,3981.0717055349814,125547077305.75116,0,0,0]
[0,0,0,0,0,0,null,5011.8723362727342,158054405996.69693,0,0,0]
[0,0,0,0,0,0,null,6309.5734448019475,198978708155.27423,0,0,0]
[0,0,0,0,0,0,null,7943.2823472428345,250499352102.65002,0,0,0]
[0,0,0,0,0,0,null,10000.000000000025,315360000000.00079,0,0,0]
[0,0,0,0,0,0,null,12589.254117941706,397014717863.40967,0,0,0]
[0,0,0,0,0,0,null,15848.931924611177,499811917174.53809,0,0,0]
[0,0,0,0,0,0,null,19952.62314968885,629225923648.58752,0,0,0]
[0,0,0,0,0,0,null,25118.864315095871,792148505040.86328,0,0,0]
[0,0,0,0,0,0,null,31622.776601683883,997255882910.70288,0,0,0]
[0,0,0,0,0,0,null,39810.717055349844,1255470773057.5127,0,0,0]
[0,0,0,0,0,0,null,50118.723362727382,1580544059966.9707,0,0,0]
[0,0,0,0,0,0,null,63095.734448019524,1989787081552.7437,0,0,0]
[0,0,0,0,0,0,null,79432.823472428412,2504993521026.5024,0,0,0]
[0,{"$f":"IF(OR(GM_delam=\"No\",Solution_type=\"a\"),0,IF(Solution_type=\"b\",TwoLay_sol,Single_Lay_Sol))","v":0},{"$f":"IF(OR(GM_delam=\"No\",Solution_type=\"a\"),0,IF(Cont_Class=\"List I\",MAX(A63,B63),(Delam_Out*aq_Q/1000+Contact_Out*aq_Q/1000)*1000/aq_Q))","v":0},{"$f":"IF(OR(GM_delam=\"No\",Solution_type=\"a\"),0,IF(Cont_Class=\"List II\",List_II_J_Delam,List_I_J_Delam_In))*Area_delam*s_per_day","v":0},{"$f":"IF(OR(GM_delam=\"No\",Solution_type=\"a\"),0,IF(Solution_type=\"b\",Two_Lay_Mass,Single_Lay_Mass))","v":0},0,null,100000.00000000033,3153600000000.0103,0,0,0]

{"sheet":"Two Layer Solutions Layer Two","index":7,"n_rows":63,"n_cols":13,"rows_kept":63,"cut":false,"hidden":true,"merged":[[10,5,10,6],[10,3,10,4]]}
[]
[null,null,null,null,null,null,null,null,"Flag_sol"]
[]
[]
[]
[]
[]
[null,null,null,null,null,null,null,null,"nsum",{"$f":"nsum","v":12}]
[null,null,null,null,null,null,null,null,"x_org",{"$f":"thick_cl+thick_gm","v":0.503},null,"List II","List I"]
["Area_two",{"$f":"Area_Flux-Area_CZ","v":18320.400000000001}]
[null,null,null,"Two layer sol's",null,"Single layer sol's",null,null,null,null,"Jkg/(s m2)","mg/l","Jkg/(s m2)"]
["Concentration output mg/l","Flux Kg/day",null,"Concentration output mg/l","Flux Kg/day","Concentration mg/l","Flux Kg/day",null,"Time years","Time seconds","flux boundary at l+L","conc boundary at infininity at edge of clay","flux boundary at infinity"]
[{"$f":"IF(Cont_Class=\"List I\",MAX(D13,F13),D13+F13)","v":{"$error":"#NAME?"}},{"$f":"Twolay_Flux+Twolay_defect_flux","v":{"$error":"#NAME?"}},null,{"$f":"IF(Area_two=0,0,IF(Cont_Class=\"List I\",List_I_C_TwoLay,List_II_J_TwoLay)*IF(Cont_Class=\"List II\",Area_two*1000/aq_Q,1))","v":0},{"$f":"IF(Cont_Class=\"List II\",List_II_J_TwoLay*Area_two*s_per_day,List_I_J_TwoLay_In*Area_two*s_per_day)","v":0},{"$f":"Single_Lay_Sol","v":{"$error":"#NAME?"}},{"$f":"Single_Lay_Mass","v":{"$error":"#NAME?"}},null,{"$f":"tmin","v":1},{"$f":"I13*365*24*60*60","v":31536000},{"$f":"IF(Solution_type=\"b\",get_Jsol2(Conc_gm/1000/Kd_gm,thick_gm,thick_cl,$J13,x_org,Kd_gm,1,R_cl,D_org*1,D_cl*n,0,Decay_cl,$J$8, 1,n),0)","v":0},{"$f":"IF(Solution_type=\"b\",get_sol2_infin(Conc_gm/Kd_gm,thick_gm,thick_cl,$J13,x_org,Kd_gm,1,R_cl,D_org*1,D_cl*n,0,Decay_cl,$J$8,1,n),0)","v":0},{"$f":"IF(Solution_type=\"b\",get_Jsol2_infin(Conc_gm/1000/Kd_gm,thick_gm,thick_cl,$J13,x_org,Kd_gm,1,R_cl,D_org*1,D_cl*n,0,Decay_cl,$J$8,1,n),0)","v":0}]
[{"$f":"IF(Cont_Class=\"List I\",MAX(D14,F14),D14+F14)","v":{"$error":"#NAME?"}},{"$f":"Twolay_Flux+Twolay_defect_flux","v":{"$error":"#NAME?"}},null,{"$f":"IF(Area_two=0,0,IF(Cont_Class=\"List I\",List_I_C_TwoLay,List_II_J_TwoLay)*IF(Cont_Class=\"List II\",Area_two*1000/aq_Q,1))","v":0},{"$f":"IF(Cont_Class=\"List II\",List_II_J_TwoLay*Area_two*s_per_day,List_I_J_TwoLay_In*Area_two*s_per_day)","v":0},{"$f":"Single_Lay_Sol","v":{"$error":"#NAME?"}},{"$f":"Single_Lay_Mass","v":{"$error":"#NAME?"}},null,{"$f":"I13*tscale","v":1.2589254117941673},{"$f":"I14*365*24*60*60","v":39701471.786340863},0,0,0]
[{"$error":"#NAME?"},{"$error":"#NAME?"},null,0,0,{"$error":"#NAME?"},{"$error":"#NAME?"},null,{"$f":"I14*tscale","v":1.5848931924611136},49981191.717453673,0,0,0]
[{"$error":"#NAME?"},{"$error":"#NAME?"},null,0,0,{"$error":"#NAME?"},{"$error":"#NAME?"},null,1.99526231496888,62922592.364858605,0,0,0]
[{"$error":"#NAME?"},{"$error":"#NAME?"},null,0,0,{"$error":"#NAME?"},{"$error":"#NAME?"},null,2.5118864315095806,79214850.504086137,0,0,0]
[{"$error":"#NAME?"},{"$error":"#NAME?"},null,0,0,{"$error":"#NAME?"},{"$error":"#NAME?"},null,3.16227766016838,99725588.291070029,0,0,0]
[{"$error":"#NAME?"},{"$error":"#NAME?"},null,0,0,{"$f":"Single_Lay_Sol","v":{"$error":"#NAME?"}},{"$error":"#NAME?"},null,3.9810717055349736,125547077.30575092,0,0,0]
[{"$error":"#NAME?"},{"$f":"Twolay_Flux+Twolay_defect_flux","v":{"$error":"#NAME?"}},null,0,0,{"$error":"#NAME?"},{"$error":"#NAME?"},null,5.0118723362727247,158054405.99669662,0,0,0]
[{"$error":"#NAME?"},{"$error":"#NAME?"},null,0,0,{"$error":"#NAME?"},{"$error":"#NAME?"},null,6.3095734448019352,198978708.15527385,0,0,0]
[{"$error":"#NAME?"},{"$error":"#NAME?"},null,0,0,{"$error":"#NAME?"},{"$error":"#NAME?"},null,7.9432823472428185,250499352.10264954,0,0,0]
[{"$error":"#NAME?"},{"$error":"#NAME?"},null,0,0,{"$error":"#NAME?"},{"$error":"#NAME?"},null,10.000000000000005,315360000.00000018,0,0,0]
[{"$error":"#NAME?"},{"$error":"#NAME?"},null,0,0,{"$error":"#NAME?"},{"$error":"#NAME?"},null,12.58925411794168,397014717.8634088,0,0,0]
[{"$error":"#NAME?"},{"$error":"#NAME?"},null,0,0,{"$error":"#NAME?"},{"$error":"#NAME?"},null,15.848931924611145,499811917.17453718,0,0,0]
[{"$error":"#NAME?"},{"$error":"#NAME?"},null,0,0,{"$error":"#NAME?"},{"$error":"#NAME?"},null,19.952623149688812,629225923.64858639,0,0,0]
[{"$error":"#NAME?"},{"$error":"#NAME?"},null,0,0,{"$error":"#NAME?"},{"$error":"#NAME?"},null,25.118864315095824,792148505.04086196,0,0,0]
[{"$error":"#NAME?"},{"$error":"#NAME?"},null,0,0,{"$error":"#NAME?"},{"$error":"#NAME?"},null,31.622776601683825,997255882.91070092,0,0,0]
[{"$error":"#NAME?"},{"$error":"#NAME?"},null,0,0,{"$error":"#NAME?"},{"$error":"#NAME?"},null,39.81071705534977,1255470773.0575106,0,0,0]
[{"$error":"#NAME?"},{"$error":"#NAME?"},null,0,0,{"$error":"#NAME?"},{"$error":"#NAME?"},null,50.118723362727287,1580544059.9669676,0,0,0]
[{"$error":"#NAME?"},{"$error":"#NAME?"},null,0,0,{"$error":"#NAME?"},{"$error":"#NAME?"},null,63.0957344480194,1989787081.5527399,0,0,0]
[{"$error":"#NAME?"},{"$error":"#NAME?"},null,0,0,{"$error":"#NAME?"},{"$error":"#NAME?"},null,79.432823472428254,2504993521.0264974,0,0,0]
[{"$error":"#NAME?"},{"$error":"#NAME?"},null,0,0,{"$error":"#NAME?"},{"$error":"#NAME?"},null,100.00000000000014,3153600000.0000038,0,0,0]
[{"$error":"#NAME?"},{"$error":"#NAME?"},null,0,0,{"$error":"#NAME?"},{"$error":"#NAME?"},null,125.89254117941691,3970147178.6340914,0,0,0]
[{"$error":"#NAME?"},{"$error":"#NAME?"},null,0,0,{"$error":"#NAME?"},{"$error":"#NAME?"},null,158.48931924611159,4998119171.7453747,0,0,0]
[{"$error":"#NAME?"},{"$error":"#NAME?"},null,0,0,{"$error":"#NAME?"},{"$error":"#NAME?"},null,199.52623149688827,6292259236.4858685,0,0,0]
[{"$error":"#NAME?"},{"$error":"#NAME?"},null,0,0,{"$error":"#NAME?"},{"$error":"#NAME?"},null,251.18864315095843,7921485050.4086246,0,0,0]
[{"$error":"#NAME?"},{"$error":"#NAME?"},null,0,0,{"$error":"#NAME?"},{"$error":"#NAME?"},null,316.22776601683847,9972558829.1070175,0,0,0]
[{"$error":"#NAME?"},{"$error":"#NAME?"},null,0,0,{"$error":"#NAME?"},{"$error":"#NAME?"},null,398.10717055349795,12554707730.575111,0,0,0]
[{"$error":"#NAME?"},{"$error":"#NAME?"},null,0,0,{"$error":"#NAME?"},{"$error":"#NAME?"},null,501.1872336272732,15805440599.669691,0,0,0]
[{"$error":"#NAME?"},{"$error":"#NAME?"},null,0,0,{"$error":"#NAME?"},{"$error":"#NAME?"},null,630.95734448019448,19897870815.527416,0,0,0]
[{"$error":"#NAME?"},{"$error":"#NAME?"},null,0,0,{"$error":"#NAME?"},{"$error":"#NAME?"},null,794.32823472428311,25049935210.264988,0,0,0]
[{"$error":"#NAME?"},{"$error":"#NAME?"},null,0,0,{"$error":"#NAME?"},{"$error":"#NAME?"},null,1000.000000000002,31536000000.000069,0,0,0]
[{"$error":"#NAME?"},{"$error":"#NAME?"},null,0,0,{"$error":"#NAME?"},{"$error":"#NAME?"},null,1258.9254117941698,39701471786.340935,0,0,0]
[{"$error":"#NAME?"},{"$error":"#NAME?"},null,0,0,{"$error":"#NAME?"},{"$error":"#NAME?"},null,1584.8931924611168,49981191717.453781,{"$f":"IF(Solution_type=\"b\",get_Jsol2(Conc_gm/1000/Kd_gm,thick_gm,thick_cl,$J45,x_org,Kd_gm,1,R_cl,D_org*1,D_cl*n,0,Decay_cl,$J$8, 1,n),0)","v":0},{"$f":"IF(Solution_type=\"b\",get_sol2_infin(Conc_gm/Kd_gm,thick_gm,thick_cl,$J45,x_org,Kd_gm,1,R_cl,D_org*1,D_cl*n,0,Decay_cl,$J$8,1,n),0)","v":0},{"$f":"IF(Solution_type=\"b\",get_Jsol2_infin(Conc_gm/1000/Kd_gm,thick_gm,thick_cl,$J45,x_org,Kd_gm,1,R_cl,D_org*1,D_cl*n,0,Decay_cl,$J$8,1,n),0)","v":0}]
[{"$error":"#NAME?"},{"$error":"#NAME?"},null,0,0,{"$error":"#NAME?"},{"$error":"#NAME?"},null,1995.2623149688839,62922592364.858719,0,0,0]
[{"$error":"#NAME?"},{"$error":"#NAME?"},null,0,0,{"$error":"#NAME?"},{"$error":"#NAME?"},null,2511.8864315095857,79214850504.086304,0,0,0]
[{"$error":"#NAME?"},{"$error":"#NAME?"},null,0,0,{"$error":"#NAME?"},{"$error":"#NAME?"},null,3162.2776601683863,99725588291.070236,0,0,0]
[{"$error":"#NAME?"},{"$error":"#NAME?"},null,0,0,{"$error":"#NAME?"},{"$error":"#NAME?"},null,3981.0717055349814,125547077305.75116,0,0,0]
[{"$error":"#NAME?"},{"$error":"#NAME?"},null,0,0,{"$error":"#NAME?"},{"$error":"#NAME?"},null,5011.8723362727342,158054405996.69693,0,0,0]
[{"$error":"#NAME?"},{"$error":"#NAME?"},null,0,0,{"$error":"#NAME?"},{"$error":"#NAME?"},null,6309.5734448019475,198978708155.27423,0,0,0]
[{"$error":"#NAME?"},{"$error":"#NAME?"},null,0,0,{"$error":"#NAME?"},{"$error":"#NAME?"},null,7943.2823472428345,250499352102.65002,0,0,0]
[{"$error":"#NAME?"},{"$error":"#NAME?"},null,0,0,{"$error":"#NAME?"},{"$error":"#NAME?"},null,10000.000000000025,315360000000.00079,0,0,0]
[{"$error":"#NAME?"},{"$error":"#NAME?"},null,0,0,{"$error":"#NAME?"},{"$error":"#NAME?"},null,12589.254117941706,397014717863.40967,0,0,0]
[{"$error":"#NAME?"},{"$error":"#NAME?"},null,0,0,{"$error":"#NAME?"},{"$error":"#NAME?"},null,15848.931924611177,499811917174.53809,0,0,0]
[{"$error":"#NAME?"},{"$f":"Twolay_Flux+Twolay_defect_flux","v":{"$error":"#NAME?"}},null,0,0,{"$error":"#NAME?"},{"$error":"#NAME?"},null,{"$f":"I55*tscale","v":19952.62314968885},629225923648.58752,0,0,0]
[{"$error":"#NAME?"},{"$error":"#NAME?"},null,0,0,{"$error":"#NAME?"},{"$error":"#NAME?"},null,25118.864315095871,792148505040.86328,0,0,0]
[{"$error":"#NAME?"},{"$error":"#NAME?"},null,0,0,{"$error":"#NAME?"},{"$error":"#NAME?"},null,31622.776601683883,997255882910.70288,0,0,0]
[{"$error":"#NAME?"},{"$error":"#NAME?"},null,0,0,{"$error":"#NAME?"},{"$error":"#NAME?"},null,39810.717055349844,1255470773057.5127,0,0,0]
[{"$f":"IF(Cont_Class=\"List I\",MAX(D60,F60),D60+F60)","v":{"$error":"#NAME?"}},{"$error":"#NAME?"},null,0,0,{"$error":"#NAME?"},{"$error":"#NAME?"},null,50118.723362727382,1580544059966.9707,0,0,0]
[{"$error":"#NAME?"},{"$error":"#NAME?"},null,0,0,{"$error":"#NAME?"},{"$error":"#NAME?"},null,63095.734448019524,1989787081552.7437,0,0,0]
[{"$error":"#NAME?"},{"$error":"#NAME?"},null,0,0,{"$error":"#NAME?"},{"$error":"#NAME?"},null,79432.823472428412,2504993521026.5024,0,0,0]
[{"$error":"#NAME?"},{"$f":"Twolay_Flux+Twolay_defect_flux","v":{"$error":"#NAME?"}},null,0,{"$f":"IF(Cont_Class=\"List II\",List_II_J_TwoLay*Area_two*s_per_day,List_I_J_TwoLay_In*Area_two*s_per_day)","v":0},{"$error":"#NAME?"},{"$f":"Single_Lay_Mass","v":{"$error":"#NAME?"}},null,{"$f":"I62*tscale","v":100000.00000000033},3153600000000.0103,0,0,0]